Workbook

Sheet LDC Info
Z3: 1 | AA3: Alectra Utilities Corporation-Brampton Rate Zone
Z4: 2 | AA4: Alectra Utilities Corporation-Enersource Rate Zone
Z5: 3 | AA5: Alectra Utilities Corporation-Horizon Utilities Rate Zone
Z6: 4 | AA6: Alectra Utilities Corporation-PowerStream Rate Zone
Z7: 5 | AA7: Alectra Utilities Corporation-Guelph Rate Zone
Z8: 6 | AA8: Algoma Power Inc.
Z9: 7 | AA9: Atikokan Hydro Inc.
Z10: 8 | AA10: Bluewater Power Distribution Corporation
Z11: 9 | AA11: Brantford Power Inc.
Z12: 10 | AA12: Burlington Hydro Inc.
Z13: 11 | AA13: Canadian Niagara Power Inc.
D14: Utility Name | E14: EPCOR Electricity Distribution Ontario Inc. | Z14: 12 | AA14: Centre Wellington Hydro Ltd.
Z15: 13 | AA15: Chapleau Public Utilities Corporation
D16: Assigned EB Number | E16: EB-2022-0028 | Z16: 14 | AA16: Cooperative Hydro Embrun Inc.
Z17: 15 | AA17: E.L.K. Energy Inc.
D18: Name of Contact and Title | E18: Tim Hesselink, Senior Manager, Regulatory Affairs | Z18: 16 | AA18: Elexicon Energy Inc.-Whitby Rate Zone
Z19: 17 | AA19: Elexicon Energy Inc.-Veridian Rate Zone
D20: Phone Number | E20: 705-445-1800 ext. 2274 | Z20: 18 | AA20: Energy+ Inc.
Z21: 19 | AA21: Entegrus Powerlines Inc.-For Entegrus-Main Rate Zone
D22: Email Address | E22: thesselink@epcor.com | Z22: 20 | AA22: Entegrus Powerlines Inc.-For Former St. Thomas Energy Rate Zone
Z23: 21 | AA23: ENWIN Utilities Ltd.
D24: Test Year | E24: 2023 | Z24: 22 | AA24: EPCOR Electricity Distribution Ontario Inc.
Z25: 23 | AA25: ERTH Power Corporation - ERTH Power Main Rate Zone
D26: Bridge Year | E26: =IF(ISBLANK(E24), "", E24-1) -> 2022 | Z26: 24 | AA26: ERTH POWER CORPORATION – GODERICH RATE ZONE
Z27: 25 | AA27: Essex Powerlines Corporation
D28: Last Rebasing Year | E28: 2013 | Z28: 26 | AA28: Festival Hydro Inc.
Z29: 27 | AA29: Fort Frances Power Corporation
A30: Identify the accounting standard used for the test year | Z30: 28 | AA30: Greater Sudbury Hydro Inc.
E31: MIFRS | Z31: 29 | AA31: Grimsby Power Incorporated
Z32: 30 | AA32: Halton Hills Hydro Inc.
A33: ="Did "& E14 &" update its depreciation and capitalization policies?" -> Did EPCOR Electricity Distribution Ontario Inc. update its depreciation and capitalization policies? | Z33: 31 | AA33: Hearst Power Distribution Co. Ltd.
E34: Yes | Z34: 32 | AA34: Hydro 2000 Inc.
Z35: 33 | AA35: Hydro Hawkesbury Inc.
A36: If "yes" to cell E34, were the changes in policies reflected in a prior rebasing application? | Z36: 34 | AA36: Hydro One Networks Inc.
E37: No | Z37: 35 | AA37: Hydro One Networks Inc.-Former Haldimand County Hydro Inc. Service Area
Z38: 36 | AA38: Hydro One Networks Inc.-Former Norfolk Power Distribution Inc. Service Area
A39: ="When did "&E14&" update its actual depreciation and capitalization policies?" -> When did EPCOR Electricity Distribution Ontario Inc. update its actual depreciation and capitalization policies? | Z39: 37 | AA39: Hydro One Networks Inc.-Former Woodstock Hydro Services Inc. Service Area
E40: 2001-01-01 | F40: 2013 | Z40: 38 | AA40: Hydro One Remote Communites Inc.
Z41: 39 | AA41: Hydro Ottawa Limited
A42: Identify the year the applicant adopted IFRS for financial reporting purposes | Z42: 40 | AA42: InnPower Corporation
E43: 2015 | Z43: 41 | AA43: Kingston Hydro Corporation
Z44: 42 | AA44: Kitchener-Wilmot Hydro Inc.
Z45: 43 | AA45: Lakefront Utilities Inc.
A46: ="Is " & E14 & " applying for cost recovery for the test and/or future year(s) for Green Energy initiatives?" -> Is EPCOR Electricity Distribution Ontario Inc. applying for cost recovery for the test and/or future year(s) for Green Energy initiatives? | Z46: 44 | AA46: Lakeland Power Distribution Ltd.
E47: Yes | Z47: 45 | AA47: Lakeland Power Distribution Ltd.-Parry Sound Service Area
Z48: 46 | AA48: London Hydro Inc.
A49: ="Is " & E14 & " an embedded distributor?" -> Is EPCOR Electricity Distribution Ontario Inc. an embedded distributor? | E49: Yes | Z49: 47 | AA49: Milton Hydro Distribution Inc.
Z50: 48 | AA50: Newmarket-Tay Power Distribution Ltd.-For Former Midland Power Utility Rate Zone
Z51: 49 | AA51: Newmarket-Tay Power Distribution Ltd.-For Newmarket-Tay Power Main Rate Zone
B52: Notes | Z52: 50 | AA52: Niagara Peninsula Energy Inc.
Z53: 51 | AA53: Niagara-on-the-Lake Hydro Inc.
C54: Pale green cells represent input cells. | Z54: 52 | AA54: North Bay Hydro Distribution Limited - Espanola service territory
Z55: 53 | AA55: North Bay Hydro Distribution Limited - North Bay service territory
C56: Pale blue cells represent drop-down lists. The applicant should select the appropriate item from the drop-down list. | Z56: 54 | AA56: Northern Ontario Wires Inc.
Z57: 55 | AA57: Oakville Hydro Electricity Distribution Inc.
C58: White cells contain fixed values, automatically generated values or formulae. | N58: =IF(LEN($G58)>1, (SUMPRODUCT(--($C$81:$C$1003=$C58),--($A$81:$A$1003=$D58), --($B$81:$B$1003=$B58&"_TOTAL"), $L$1:$L$889)), "") ->  | O58: =IF(LEN($G58)>1, (SUMPRODUCT(--($C$81:$C$1003=$C58),--($A$81:$A$1003=$D58), --($B$81:$B$1003=$B58&"_TOTAL"), $M$1:$M$889)), "") ->  | Z58: 56 | AA58: Orangeville Hydro Limited
Z59: 57 | AA59: Orillia Power Distribution Corporation
Z60: 58 | AA60: Oshawa PUC Networks Inc.
Z61: 59 | AA61: Ottawa River Power Corporation
Z62: 60 | AA62: Peterborough Distribution Incorporated
Z63: 61 | AA63: PUC Distribution Inc.
Z64: 62 | AA64: Renfrew Hydro Inc.
Z65: 63 | AA65: Rideau St. Lawrence Distribution Inc.
Z66: 64 | AA66: Sioux Lookout Hydro Inc.
Z67: 65 | AA67: Synergy North Corporation-Kenora Rate Zone
Z68: 66 | AA68: Synergy North Corporation-Thunder Bay Rate Zone
Z69: 67 | AA69: Tillsonburg Hydro Inc.
Z70: 68 | AA70: Toronto Hydro-Electric System Limited
Z71: 69 | AA71: Wasaga Distribution Inc.
Z72: 70 | AA72: Waterloo North Hydro Inc.
Z73: 71 | AA73: Welland Hydro-Electric System Corp.
Z74: 72 | AA74: Wellington North Power Inc.
Z75: 73 | AA75: Westario Power Inc.

Sheet Index
A15: 1 | B15: LDC Information Sheet | E15: 20 | F15: App.2-G: Service Reliability Indicators
A16: 2 | B16: Index | E16: 21 | F16: App.2-H: Other Operating Revenue (TO BE UPDATED AT THE DRAFT RATE ORDER STAGE)
A17: 3 | B17: Cost of Service Application Flowchart | E17: 22 | F17: App.2-I: Load Forecast CDM Adjustment Workform
A18: 4 | B18: List of Key References | E18: 23 | F18: App.2-IA: Load Forecast Data Instructions
A19: 5 | B19: App.2-A: List of Requested Approvals | E19: 24 | F19: App.2-IB: Actual and Forecast Load and Customer Data
A20: 6 | B20: App.2-AA: Capital Projects Table | E20: 25 | F20: App.2-JA: OM&A Summary Analysis (TO BE UPDATED AT THE DRAFT RATE ORDER STAGE)
A21: 7 | B21: App.2-AB: Capital Expenditures (TO BE UPDATED AT THE DRAFT RATE ORDER STAGE) | E21: 26 | F21: App.2-JB: Recoverable OM&A Cost Driver Table
A22: 8 | B22: App. 2-AC: Customer Engagement Worksheet | E22: 27 | F22: App.2-JC: OM&A Programs Table
A23: 9 | B23: App.2-B: General Accounting Instructions Relating to MIFRS Transition - CONTACT OEB STAFF IF TAB REQUIRED | E23: 28 | F23: App.2-JD: OM&A Programs Table
A24: 10 | B24: App.2-BA: Fixed Asset Continuity Schedule | E24: 29 | F24: App.2-L: Recoverable OM&A Cost per Customer and per FTE
A25: 11 | B25: Appendix 2-BB: Service Life Comparison | E25: 30 | F25: App.2-M: Regulatory Costs Schedule (TO BE UPDATED AT THE DRAFT RATE ORDER STAGE)
A26: 12 | B26: App.2-C_DepExp: Depreciation and Amortization Expense | E26: 31 | F26: App.2-N: Shared Services and Corporate Cost Allocation
A27: 13 | B27: App.2-D: Overhead Expenses | E27: 32 | F27: App.2-OA: Capital Structure and Cost of Capital
A28: 14 | B28: App.2-EA: Account 1575 PP&E Deferral Account (2015 IFRS Adopters) - CONTACT OEB STAFF IF TAB REQUIRED | E28: 33 | F28: App.2-OB: Debt Instruments
A29: 15 | B29: App.2-EB: Account 1576 - Accounting Changes Under CGAAP (2012 Changes) - CONTACT OEB STAFF IF TAB REQUIRED | E29: 34 | F29: App.2-Q: Cost of Serving Embedded Distributor(s)
A30: 16 | B30: App.2-EC: Account 1576 - Accounting Changes Under CGAAP (2013 Changes) - CONTACT OEB STAFF IF TAB REQUIRED | E30: 35 | F30: App.2-R: Loss Factors
A31: 17 | B31: App.2-FA: Renewable Generation Connection Investment Summary (TO BE UPDATED AT THE DRAFT RATE ORDER STAGE) | E31: 36 | F31: App.2-S: Stranded Meter Treatment- CONTACT OEB STAFF IF TAB REQUIRED
A32: 18 | B32: App.2-FB: Calculation of Renewable Generation Connection Direct Benefits/Provincial Amount: Renewable Enabling Improvement Investments (TO BE UPDATED AT THE DRAFT RATE ORDER STAGE) | E32: 37 | F32: App.2-Y: Transition to MIFRS Summary Impact - CONTACT OEB STAFF IF TAB REQUIRED
A33: 19 | B33: App.2-FC: Calculation of Renewable Generation Connection Direct Benefits/Provincial Amount: Renewable Expansion Investments (TO BE UPDATED AT THE DRAFT RATE ORDER STAGE) | E33: 38 | F33: App.2-YA: One-Time Incremental IFRS Transition Costs - CONTACT OEB STAFF IF TAB REQUIRED
E34: 39 | F34: App.2-ZA: Commodity Expense
E35: 40 | F35: App.2-ZB: Cost of Power
A42: Note: | B42: Appendices for the Tariff of Rates and Charges at Current and Proposed Rates, and for the Bill Impacts are now in a separate spreadsheet model. These appendices were formerly 2-Z and 2-W.

Sheet COS Flowchart
B4: Cost of Service Rate Application Schematic
B6: The Cost of Service Rate Application Schematic is a flowchart that is included as a guide for the components of an application. The schematic demonstrates how demand and costs interrelate to derive the revenue requirement and how the revenue requirement is allocated between classes and through fixed/variable splits to derive rates that will be compensatory for the annual revenue requirement, based on the the forecasted demand. There is no form to be filled out; therefore, this Schedule is not required to be filed.

Sheet List of Key References

Sheet App.2-A_Requested_Approvals
G1: File Number: | H1: =EBNUMBER -> EB-2022-0028
G2: Exhibit: | H2: 1
G3: Tab: | H3: 1
G4: Schedule: | H4: 1
G5: Page: | H5: 36
G7: Date: | H7: 2022-05-27
B9: Appendix 2-A
B10: List of Requested Approvals
B12: The distributor must fill out the following sheet with the complete list of specific approvals requested and relevant section(s) of the legislation must be provided. All approvals, including accounting orders (deferral and variance accounts) new rate classes, revised specific service charges or retail service charges which the applicant is seeking, must be separately identified, as well being clearly documented in the appropriate sections of the application.
B14: Additional requests may be added by copying and pasting blank input rows, as needed.
B16: If additional requests arise, or requested approvals are removed, during the processing of the application, the distributor should update this list.
B18: =CONCATENATE('LDC Info'!E14," is seeking the following approvals in this application:") -> EPCOR Electricity Distribution Ontario Inc. is seeking the following approvals in this application:
B20: 1 | F20: Approval of EEDO's forecasted 2023 Test Year service revenue requirement of $10,208,496 and base revenue requirement of $9,416,686.
B22: =B20+1 -> 2 | F22: Approval to charge distribution rates effective January 1, 2023 to recover a Base Revenue requirement and revenue deficiency, as detailed in the Revenue Requirement Workform and discussed in Exhibit 6, through applying the proposed rates as set out in the Tariff Schedule & Bill Impact model and Exhibit 8.
B24: =B22+1 -> 3 | F24: Approval of the Distribution System Plan as outlined in Exhibit 2
B26: =B24+1 -> 4 | F26: Approval of revised Low Voltage Rates as proposed and described in Exhibit 8
B28: =B26+1 -> 5 | F28: Approval for an adjustment to the Retail Transmission Service Rates approved in the Applicant’s 2022 IRM application (EB-2020-0021) as detailed in Exhibit 8.
B30: =B28+1 -> 6 | F30: Approval to continue to charge Wholesale Market Services, Capacity -Based Recovery and Rural Rate Protection charges as approved by the OEB and detailed in Exhibit 8.
B32: =B30+1 -> 7 | F32: Approval to continue the specific Service Charges and Transformer Allowance as previously approved by the OEB and as detailed in Exhibit 8.
B34: =B32+1 -> 8 | F34: Approval of the proposed Loss Factor as detailed in Exhibit 8 and calculated in Chapter 2 Filing Requirements Appendix worksheet App2-R Loss Factors.
B36: =B34+1 -> 9 | F36: Approval of the Rate Riders for a 12-month disposition of the Group 1 Deferral and Variance account balances as at December 31, 2021 along with the projected carrying charges in accordance with the Report of the Board on Electricity Distributors’ Deferral and Variance Account Review Initiative (EDDVAR – July 31, 2009) as detailed in Exhibit 9.
B38: =B36+1 -> 10 | F38: Approval of the Rate Riders for a 24-month disposition of the Group 2 Deferral and Variance account balances as at December 31, 2021 along with the projected carrying charges in accordance with the Report of the Board on Electricity Distributors’ Deferral and Variance Account Review Initiative (EDDVAR – July 31, 2009) as detailed in Exhibit 9.
B40: =B38+1 -> 11 | F40: EEDO is proposing the following deferral and variance accounts be closed and discontinued from use: 1. 1508-Deferred IFRS Transition Costs 2. 1508-Pole Attachment Revenue Variance 3. 1508-Retail Service Charge Incremental Revenue 4. 1508-Customer Choice Initiative Costs 5. 1508-Other Regulatory Assets - Icon F&G Meter Disposal 6. 1508-Other Regulatory Assets - OEB Cost Assessment Variance 7. 1508-Other Regulatory Assets - Energy East Consultation Costs 8. 1508-Other Regulatory Assets - LPP Variance 9. 1531-REG Capital Deferral Account 10. 1532-REG Capital OM&A Account 11. 1534-Smart Grid Capital Deferral Account 12. 1555-Smart Grid Capital Deferral - Stranded Meters 13. 1557-Meter Cost Deferral Account (MIST Meters)
B42: =B40+1 -> 12 | F42: EEDO is proposing the following deferral and variance accounts be established and the associated draft accounting orders be approved: 1. Non-Utility Billing Variance Account (“NBDA”); 2. Recovery of Income Taxes Deferral Account (“RITDA”).

Sheet App.2-AA_Capital Projects
J1: File Number: | K1: =EBNUMBER -> EB-2022-0028
J2: Exhibit: | K2: 2
J3: Tab: | K3: 1
J4: Schedule: | K4: 1
J5: Page: | K5: 20
J7: Date: | K7: 2022-05-27
A9: Appendix 2-AA
A10: Capital Projects Table
B13: 2013 OEB Approved | C13: 2013 | D13: 2014 | E13: 2015 | F13: 2016 | G13: 2017 | H13: 2018 | I13: 2019 | J13: 2020 | K13: 2021 | L13: 2022 | M13: 2023
A14: Reporting Basis | B14: CGAAP | C14: CGAAP | D14: CGAAP | E14: MIFRS | F14: MIFRS | G14: MIFRS | H14: MIFRS | I14: MIFRS | J14: MIFRS | K14: MIFRS | L14: MIFRS | M14: MIFRS
A15: SYSTEM RENEWAL
A16: Pole line rebuild | B16: =388301+122766+72120+17344+18624+100000 -> 719155 | C16: 302619.89 | D16: 489287 | E16: 411970 | F16: 533955 | G16: 1100367 | H16: 624202 | I16: 1941992 | J16: 1285638 | K16: 1513561 | L16: 1318901 | M16: 1276043
A17: Underground rebuild | B17: =64989+26404 -> 91393 | C17: 0 | D17: 19372 | E17: 3730 | F17: 35004 | G17: 39401 | H17: 212542 | I17: 28312 | J17: 119524 | K17: 636824 | L17: 67830 | M17: 67830
A18: Substation rebuild | B18: 0 | C18: 0 | D18: 106412 | E18: 0 | F18: 0 | G18: 0 | H18: 0 | I18: 0 | J18: 37562 | K18: 3605 | L18: 137400 | M18: 140330
A19: Pole replacement program | B19: =196800+43360 -> 240160 | C19: 311542 | D19: 222714 | E19: 234602 | F19: 335339 | G19: 465401 | H19: 370665 | I19: 196641 | J19: 587011 | K19: 595826 | L19: 582540 | M19: 582540
A20: Transformer replacement | B20: 0 | C20: 0 | D20: 130153 | E20: 139671 | F20: 324788 | G20: 561697 | H20: 99007 | I20: 209786 | J20: 11091 | K20: 850 | L20: 0 | M20: 0
A22: Subtotal | B22: =SUBTOTAL(9,B16:B21) -> 1050708 | C22: =SUBTOTAL(9,C16:C21) -> 614161.89 | D22: 967938 | E22: 789973 | F22: 1229086 | G22: 2166866 | H22: 1306416 | I22: 2376731 | J22: 2040826 | K22: 2750666 | L22: 2106671 | M22: 2066743
A24: SYSTEM ACCESS
A25: Road Authority & Customer Demanded | B25: =52278+9890+12832+350000 -> 425000 | C25: 191047 | D25: 387374 | E25: 910964 | F25: 1786670 | G25: 505788 | H25: 1021563 | I25: 700371 | J25: 1374126 | K25: 1233475 | L25: 1745000 | M25: 605131
A26: Services | B26: 150000 | C26: 132608 | D26: 148688 | E26: 130906 | F26: 147809 | G26: 211762 | H26: 253294 | I26: 342214 | J26: 188611 | K26: 190935 | L26: 344019 | M26: 348742
A27: Meter | B27: 275500 | C27: 191556.47 | D27: 235691 | E27: 264657 | F27: 63702 | G27: 138064 | H27: 143938 | I27: 126286 | J27: 177041 | K27: 119173 | L27: 190000 | M27: 377878
A28: Contributions | B28: -350000 | C28: -323111.27 | D28: -351231 | E28: -745573 | F28: -1739589 | G28: -527957 | H28: -1004456 | I28: -811666 | J28: -1086111 | K28: -690144 | L28: -1391830 | M28: -730672
A30: Subtotal | B30: =SUBTOTAL(9,B25:B29) -> 500500 | C30: =SUBTOTAL(9,C25:C29) -> 192100.2 | D30: 420522 | E30: 560954 | F30: 258592 | G30: 327657 | H30: 414339 | I30: 357205 | J30: 653667 | K30: 853439 | L30: 887189 | M30: 601079
A32: SYSTEM SERVICE
A33: Creemore 8.32kV feeder - Hydro One | B33: 0 | C33: 0 | D33: 0 | E33: 122895 | F33: 572269.04 | G33: 0 | H33: 2956 | I33: 0 | J33: 0 | K33: 0 | L33: 0 | M33: 0
A34: Substation upgrades | B34: 0 | C34: 0 | D34: 0 | E34: 0 | F34: 0 | G34: 0 | H34: 0 | I34: 0 | J34: 0 | K34: 0 | L34: 0 | M34: 689014
A35: Customer Enhancement | B35: 0 | C35: 0 | D35: 0 | E35: 0 | F35: 0 | G35: 0 | H35: 0 | I35: 0 | J35: 0 | K35: 0 | L35: 0 | M35: 40000
A36: ArcPro and UN Migration | B36: 0 | C36: 0 | D36: 0 | E36: 0 | F36: 0 | G36: 0 | H36: 0 | I36: 0 | J36: 0 | K36: 0 | L36: 0 | M36: 508602
A37: SCADA | B37: 40000 | C37: 13410.95 | D37: 13696 | E37: 35068 | F37: 2000 | G37: 36226 | H37: 0 | I37: 305635 | J37: 8085 | K37: 71150 | L37: 103979 | M37: 135000
A39: Subtotal | B39: =SUBTOTAL(9,B33:B38) -> 40000 | C39: =SUBTOTAL(9,C33:C38) -> 13410.95 | D39: 13696 | E39: 157963 | F39: 574269.04 | G39: 36226 | H39: 2956 | I39: 305635 | J39: 8085 | K39: 71150 | L39: 103979 | M39: 1372616
A41: GENERAL PLANT
A42: Land, Buildings & Equipment | B42: 75000 | C42: 30801.85 | D42: 69181 | E42: 27996 | F42: 22989 | G42: 45217 | H42: 9584 | I42: 248173 | J42: 47378 | K42: 35564 | L42: 134291 | M42: 0
A43: Hardware / Software | B43: 105000 | C43: 41952.34 | D43: 54969 | E43: 66275 | F43: 131262 | G43: 25036 | H43: 16243 | I43: 305741 | J43: 63227 | K43: 64281 | L43: 86677 | M43: 45400
A44: Vehicles | B44: 202000 | C44: 164943.44 | D44: 262918 | E44: 39115 | F44: 354140 | G44: 388939 | H44: 113100 | I44: 540882 | J44: 463574 | K44: 0 | L44: 719580 | M44: 210000
A46: Subtotal | B46: =SUBTOTAL(9,B42:B45) -> 382000 | C46: =SUBTOTAL(9,C42:C45) -> 237697.63 | D46: 387068 | E46: 133386 | F46: 508391 | G46: 459192 | H46: 138927 | I46: 1094796 | J46: 574179 | K46: 99845 | L46: 940548 | M46: 255400
A48: OTHER
A50: Subtotal | B50: =SUBTOTAL(9,B49) -> 0 | C50: =SUBTOTAL(9,C49) -> 0 | D50: 0 | E50: 0 | F50: 0 | G50: 0 | H50: 0 | I50: 0 | J50: 0 | K50: 0 | L50: 0 | M50: 0
A52: Total | B52: =SUM(B50,B46,B39,B30,B22) -> 1973208 | C52: =SUM(C50,C46,C39,C30,C22) -> 1057370.67 | D52: 1789224 | E52: 1642276 | F52: 2570338.04 | G52: 2989941 | H52: 1862638 | I52: 4134367 | J52: 3276757 | K52: 3775100 | L52: 4038387 | M52: 4295838
A55: Notes:
A57: 1 Please provide a breakdown of the major components of each capital project undertaken in each year. Please ensure that all projects below the materiality threshold are included in the miscellaneous line. Add more projects as required.
A58: 2 The applicant should group projects appropriately and avoid presentations that result in classification of significant components of the capital budget in the miscellaneous category.

Sheet App.2-AB_Capital Expenditures
AK1: File Number: | AM1: =EBNUMBER -> EB-2022-0028
AK2: Exhibit:
AK3: Tab:
AK4: Schedule:
A5: TO BE UPDATED AT THE DRAFT RATE ORDER STAGE | AK5: Page:
AK7: Date: | AM7: 2022-07-11
A9: Appendix 2-AB
A10: Table 2 - Capital Expenditure Summary from Chapter 5 Consolidated Distribution System Plan Filing Requirements
A11: First year of Forecast Period:
A12: =TestYear -> 2023
A13: CATEGORY | B13: Historical Period (previous plan1 & actual) | AI13: Forecast Period (planned)
B14: =H14-1 -> 2013 | E14: =H14-1 -> 2013 | H14: =K14-1 -> 2014 | K14: =N14-1 -> 2015 | N14: =Q14-1 -> 2016 | Q14: =T14-1 -> 2017 | T14: =W14-1 -> 2018 | W14: =Z14-1 -> 2019 | Z14: =AC14-1 -> 2020 | AC14: =AF14-1 -> 2021 | AF14: =AI14-1 -> 2022 | AI14: =A12 -> 2023 | AJ14: =AI14+1 -> 2024 | AK14: =AJ14+1 -> 2025 | AL14: =AK14+1 -> 2026 | AM14: =AL14+1 -> 2027
B15: Plan | C15: OEB Approved | D15: Var | E15: Plan | F15: Actual | G15: Var | H15: Plan | I15: Actual | J15: Var | K15: Plan | L15: Actual | M15: Var | N15: Plan | O15: Actual | P15: Var | Q15: Plan | R15: Actual | S15: Var | T15: Plan | U15: Actual | V15: Var | W15: Plan | X15: Actual | Y15: Var | Z15: Plan | AA15: Actual | AB15: Var | AC15: Plan | AD15: Actual | AE15: Var | AF15: Plan | AG15: Actual2 | AH15: Var
B16: $ '000 | D16: % | E16: $ '000 | G16: % | H16: $ '000 | J16: % | K16: $ '000 | M16: % | N16: $ '000 | P16: % | Q16: $ '000 | S16: % | T16: $ '000 | V16: % | W16: $ '000 | Y16: % | Z16: $ '000 | AB16: % | AC16: $ '000 | AE16: % | AF16: $ '000 | AH16: % | AI16: $ '000
A17: System Access | B17: 850500 | C17: 850500 | D17: =IF(ISERROR((C17-B17)/B17),"--",(C17-B17)/B17) -> 0 | E17: 850500 | F17: 515211.47 | G17: =IF(ISERROR((F17-E17)/E17),"--",(F17-E17)/E17) -> -0.3942251969 | H17: =425500+350000 -> 775500 | I17: 771753.02 | J17: =IF(ISERROR((I17-H17)/H17),"--",(I17-H17)/H17) -> -0.00483169568 | K17: =425500+350000 -> 775500 | L17: 1306526.83 | M17: =IF(ISERROR((L17-K17)/K17),"--",(L17-K17)/K17) -> 0.6847541328 | N17: 768753 | O17: 1998181 | P17: =IF(ISERROR((O17-N17)/N17),"--",(O17-N17)/N17) -> 1.599249694 | Q17: 752909 | R17: 855613.56 | S17: =IF(ISERROR((R17-Q17)/Q17),"--",(R17-Q17)/Q17) -> 0.1364103232 | T17: 1039693 | U17: 1418795 | V17: =IF(ISERROR((U17-T17)/T17),"--",(U17-T17)/T17) -> 0.3646287895 | W17: 779089 | X17: 1168871.28 | Y17: =IF(ISERROR((X17-W17)/W17),"--",(X17-W17)/W17) -> 0.5003052026 | Z17: 993236 | AA17: 1739777.96 | AB17: =IF(ISERROR((AA17-Z17)/Z17),"--",(AA17-Z17)/Z17) -> 0.751625958 | AC17: 1008318 | AD17: 1543582.82 | AE17: =IF(ISERROR((AD17-AC17)/AC17),"--",(AD17-AC17)/AC17) -> 0.5308492162 | AF17: 2279019 | AG17: 2279019 | AH17: =IF(ISERROR((AG17-AF17)/AF17),"--",(AG17-AF17)/AF17) -> 0 | AI17: 1331751 | AJ17: 1361747.36 | AK17: 1393275.338 | AL17: 1426425.138 | AM17: 1461300.89
A18: System Renewal | B18: 1050708 | C18: 1050708 | D18: =IF(ISERROR((C18-B18)/B18),"--",(C18-B18)/B18) -> 0 | E18: 1050708 | F18: 614161.89 | G18: =IF(ISERROR((F18-E18)/E18),"--",(F18-E18)/E18) -> -0.4154780491 | H18: =1900297.376-350000 -> 1550297.376 | I18: 967938 | J18: =IF(ISERROR((I18-H18)/H18),"--",(I18-H18)/H18) -> -0.3756436572 | K18: =3053004.776-350000-700000 -> 2003004.776 | L18: 789973 | M18: =IF(ISERROR((L18-K18)/K18),"--",(L18-K18)/K18) -> -0.6056060328 | N18: 2524177 | O18: 1229086 | P18: =IF(ISERROR((O18-N18)/N18),"--",(O18-N18)/N18) -> -0.5130745586 | Q18: 2115500 | R18: 2166866 | S18: =IF(ISERROR((R18-Q18)/Q18),"--",(R18-Q18)/Q18) -> 0.02428078468 | T18: 1895340 | U18: 1306416 | V18: =IF(ISERROR((U18-T18)/T18),"--",(U18-T18)/T18) -> -0.3107220868 | W18: 2117880 | X18: 2376731 | Y18: =IF(ISERROR((X18-W18)/W18),"--",(X18-W18)/W18) -> 0.1222217501 | Z18: 2449812.8 | AA18: 2040826 | AB18: =IF(ISERROR((AA18-Z18)/Z18),"--",(AA18-Z18)/Z18) -> -0.1669461438 | AC18: 2594023.48 | AD18: 2750666 | AE18: =IF(ISERROR((AD18-AC18)/AC18),"--",(AD18-AC18)/AC18) -> 0.06038592989 | AF18: 2025598.7 | AG18: 2106671 | AH18: =IF(ISERROR((AG18-AF18)/AF18),"--",(AG18-AF18)/AF18) -> 0.04002387047 | AI18: 2066743 | AJ18: 2208280 | AK18: 2095048 | AL18: 2168837 | AM18: 2103654
A19: System Service | B19: 40000 | C19: 40000 | D19: 0 | E19: 40000 | F19: 13410.95 | G19: -0.66472625 | H19: 40000 | I19: 13696 | J19: -0.6576 | K19: =40000+700000 -> 740000 | L19: 157963 | M19: -0.7865364865 | N19: 49200 | O19: 574269.04 | P19: 10.67213496 | Q19: 51087 | R19: 36226 | S19: -0.2908959226 | T19: 51087 | U19: 2956 | V19: -0.9421379216 | W19: 300000 | X19: 305635 | Y19: 0.01878333333 | Z19: 75000 | AA19: 8085 | AB19: -0.8922 | AC19: 101875 | AD19: 71150 | AE19: -0.301595092 | AF19: 103979 | AG19: 103979 | AH19: 0 | AI19: 1372616 | AJ19: 958750 | AK19: 681595 | AL19: 479037 | AM19: 519037
A20: General Plant | B20: 382000 | C20: 382000 | D20: 0 | E20: 382000 | F20: 237697.63 | G20: -0.3777548953 | H20: 505000 | I20: 387067.89 | J20: -0.2335289307 | K20: 220000 | L20: 133386 | M20: -0.3937 | N20: 621150 | O20: 508391.12 | P20: -0.1815324479 | Q20: 626334 | R20: 459191.76 | S20: -0.2668580023 | T20: 651930 | U20: 138927 | V20: -0.7868989002 | W20: 569210 | X20: 1094796 | Y20: 0.9233604469 | Z20: 657757 | AA20: 574179 | AB20: -0.1270651624 | AC20: 693180 | AD20: 99845 | AE20: -0.8559609337 | AF20: 440548 | AG20: 940548 | AH20: 1.134950108 | AI20: 255400 | AJ20: 709126 | AK20: 420764 | AL20: 476759 | AM20: 579770
A21: TOTAL EXPENDITURE | B21: =SUM(B17:B20) -> 2323208 | C21: =SUM(C17:C20) -> 2323208 | D21: 0 | E21: =SUM(E17:E20) -> 2323208 | F21: =SUM(F17:F20) -> 1380481.94 | G21: -0.4057863351 | H21: =SUM(H17:H20) -> 2870797.376 | I21: =SUM(I17:I20) -> 2140454.91 | J21: -0.2544040454 | K21: =SUM(K17:K20) -> 3738504.776 | L21: =SUM(L17:L20) -> 2387848.83 | M21: -0.3612823915 | N21: =SUM(N17:N20) -> 3963280 | O21: =SUM(O17:O20) -> 4309927.16 | P21: 0.08746471609 | Q21: =SUM(Q17:Q20) -> 3545830 | R21: =SUM(R17:R20) -> 3517897.32 | S21: -0.007877613986 | T21: =SUM(T17:T20) -> 3638050 | U21: =SUM(U17:U20) -> 2867094 | V21: -0.2119146246 | W21: 3766179 | X21: 4946033.28 | Y21: 0.3132762091 | Z21: 4175805.8 | AA21: 4362867.96 | AB21: 0.04479666176 | AC21: 4397396.48 | AD21: 4465243.82 | AE21: 0.01542897947 | AF21: 4849144.7 | AG21: 5430217 | AH21: 0.1198298537 | AI21: 5026510 | AJ21: 5237903.36 | AK21: 4590682.338 | AL21: 4551058.138 | AM21: =SUM(AM17:AM20) -> 4663761.89
A22: Capital Contributions | B22: -350000 | C22: -350000 | D22: 0 | E22: -350000 | F22: -323111.27 | G22: -0.07682494286 | H22: -350000 | I22: -351231.02 | J22: 0.0035172 | K22: -350000 | L22: -745572.83 | M22: 1.130208086 | N22: -449875 | O22: -1739589 | P22: 2.866827452 | Q22: -449875 | R22: -527956.56 | S22: 0.1735627897 | T22: -458423 | U22: -1004456 | V22: 1.191111703 | W22: -467133 | X22: -811666.28 | Y22: 0.7375485782 | Z22: -476009 | AA22: -1086110.96 | AB22: 1.281702573 | AC22: -654494.25 | AD22: -690143.82 | AE22: 0.05446888189 | AF22: -1391830 | AG22: -1391830 | AH22: 0 | AI22: -730672 | AJ22: -747129.6561 | AK22: -764427.6427 | AL22: -782615.4503 | AM22: -801750.2102
A23: Net Capital Expenditures | B23: =SUM(B21:B22) -> 1973208 | C23: 1973208 | D23: 0 | E23: =SUM(E21:E22) -> 1973208 | F23: =SUM(F21:F22) -> 1057370.67 | G23: -0.464136234 | H23: 2520797.376 | I23: =SUM(I21:I22) -> 1789223.89 | J23: -0.2902151093 | K23: 3388504.776 | L23: =SUM(L21:L22) -> 1642276 | M23: -0.5153390334 | N23: 3513405 | O23: =SUM(O21:O22) -> 2570338.16 | P23: -0.2684196214 | Q23: 3095955 | R23: =SUM(R21:R22) -> 2989940.76 | S23: -0.0342428233 | T23: 3179627 | U23: =SUM(U21:U22) -> 1862638 | V23: -0.4141960677 | W23: 3299046 | X23: =SUM(X21:X22) -> 4134367 | Y23: 0.2532007738 | Z23: 3699796.8 | AA23: =SUM(AA21:AA22) -> 3276757 | AB23: -0.1143413606 | AC23: 3742902.23 | AD23: =SUM(AD21:AD22) -> 3775100 | AE23: 0.008602354008 | AF23: 3457314.7 | AG23: =SUM(AG21:AG22) -> 4038387 | AH23: 0.1680704103 | AI23: 4295838 | AJ23: 4490773.703 | AK23: 3826254.695 | AL23: 3768442.688 | AM23: 3862011.68
A24: System O&M | B24: 1945300 | C24: 2073000 | D24: 0.06564540174 | E24: 1945300 | F24: 2053457.35 | G24: 0.0555993163 | H24: 2130006 | I24: 2169112.56 | J24: 0.01835983561 | K24: 2230665 | L24: 2388712.47 | M24: 0.07085217637 | N24: 2297585 | O24: 2482131.14 | P24: 0.08032179005 | Q24: 2517407 | R24: 2189893.99 | S24: -0.1300993483 | T24: 0 | U24: 2310043.22 | V24: -- | W24: 0 | X24: 2258487.07 | Y24: -- | Z24: 0 | AA24: 2785865.35 | AB24: -- | AC24: 0 | AD24: 2452353.39 | AE24: -- | AF24: 2530533.19 | AG24: 2530533.19 | AH24: 0 | AI24: 2617272.604 | AJ24: 2708877.145 | AK24: 2803687.845 | AL24: 2901816.92 | AM24: 3003380.512
A26: Notes to the Table:
A27: 1. Historical “previous plan” data is not required unless a plan has previously been filed. However, use the last OEB-approved, at least on a Total (Capital) Expenditure basis for the last cost of service rebasing year, and the applicant should include their planned budget in each subsequent historical year up to and including the Bridge Year.
A28: 2. Indicate the number of months of 'actual' data included in the last year of the Historical Period (normally a 'bridge' year):
A30: Explanatory Notes on Variances (complete only if applicable)
A31: Notes on shifts in forecast vs. historical budgets by category
A34: Notes on year over year Plan vs. Actual variances for Total Expenditures
A37: Notes on Plan vs. Actual variance trends for individual expenditure categories

Sheet Hidden_CAPEX (hidden)
A1: Utility Name | B1: EB Number | C1: Test Year | D1: Bridge Year | E1: Last Rebasing Year | F1: Category | G1: Year | H1: Plan | I1: Actual
A2: ='LDC Info'!$E$14 -> EPCOR Electricity Distribution Ontario Inc. | B2: =EBNUMBER -> EB-2022-0028 | C2: =TestYear -> 2023 | D2: =BridgeYear -> 2022 | E2: =RebaseYear -> 2013 | F2: System Access | G2: ='App.2-AB_Capital Expenditures'!H14 -> 2014 | H2: ='App.2-AB_Capital Expenditures'!H17 -> 775500 | I2: ='App.2-AB_Capital Expenditures'!I17 -> 771753.02
A3: ='LDC Info'!$E$14 -> EPCOR Electricity Distribution Ontario Inc. | B3: EB-2022-0028 | C3: 2023 | D3: 2022 | E3: 2013 | F3: System Renewal | G3: ='App.2-AB_Capital Expenditures'!H14 -> 2014 | H3: ='App.2-AB_Capital Expenditures'!H18 -> 1550297.376 | I3: ='App.2-AB_Capital Expenditures'!I18 -> 967938
A4: ='LDC Info'!$E$14 -> EPCOR Electricity Distribution Ontario Inc. | B4: EB-2022-0028 | C4: 2023 | D4: 2022 | E4: 2013 | F4: System Service | G4: ='App.2-AB_Capital Expenditures'!H14 -> 2014 | H4: ='App.2-AB_Capital Expenditures'!H19 -> 40000 | I4: ='App.2-AB_Capital Expenditures'!I19 -> 13696
A5: ='LDC Info'!$E$14 -> EPCOR Electricity Distribution Ontario Inc. | B5: EB-2022-0028 | C5: 2023 | D5: 2022 | E5: 2013 | F5: General Plant | G5: ='App.2-AB_Capital Expenditures'!H14 -> 2014 | H5: ='App.2-AB_Capital Expenditures'!H20 -> 505000 | I5: ='App.2-AB_Capital Expenditures'!I20 -> 387067.89
A6: ='LDC Info'!$E$14 -> EPCOR Electricity Distribution Ontario Inc. | B6: EB-2022-0028 | C6: 2023 | D6: 2022 | E6: 2013 | F6: Total Expenditure | G6: ='App.2-AB_Capital Expenditures'!H14 -> 2014 | H6: ='App.2-AB_Capital Expenditures'!H21 -> 2870797.376 | I6: ='App.2-AB_Capital Expenditures'!I21 -> 2140454.91
A7: ='LDC Info'!$E$14 -> EPCOR Electricity Distribution Ontario Inc. | B7: EB-2022-0028 | C7: 2023 | D7: 2022 | E7: 2013 | F7: Capital Contributions | G7: ='App.2-AB_Capital Expenditures'!H14 -> 2014 | H7: ='App.2-AB_Capital Expenditures'!H22 -> -350000 | I7: ='App.2-AB_Capital Expenditures'!I22 -> -351231.02
A8: ='LDC Info'!$E$14 -> EPCOR Electricity Distribution Ontario Inc. | B8: EB-2022-0028 | C8: 2023 | D8: 2022 | E8: 2013 | F8: Net Capital Expenditures | G8: ='App.2-AB_Capital Expenditures'!H14 -> 2014 | H8: ='App.2-AB_Capital Expenditures'!H23 -> 2520797.376 | I8: ='App.2-AB_Capital Expenditures'!I23 -> 1789223.89
A9: ='LDC Info'!$E$14 -> EPCOR Electricity Distribution Ontario Inc. | B9: EB-2022-0028 | C9: 2023 | D9: 2022 | E9: 2013 | F9: System O&M | G9: ='App.2-AB_Capital Expenditures'!H14 -> 2014 | H9: ='App.2-AB_Capital Expenditures'!H24 -> 2130006 | I9: ='App.2-AB_Capital Expenditures'!I24 -> 2169112.56
A10: ='LDC Info'!$E$14 -> EPCOR Electricity Distribution Ontario Inc. | B10: EB-2022-0028 | C10: 2023 | D10: 2022 | E10: 2013 | F10: System Access | G10: ='App.2-AB_Capital Expenditures'!K14 -> 2015 | H10: ='App.2-AB_Capital Expenditures'!K17 -> 775500 | I10: ='App.2-AB_Capital Expenditures'!L17 -> 1306526.83
A11: ='LDC Info'!$E$14 -> EPCOR Electricity Distribution Ontario Inc. | B11: EB-2022-0028 | C11: 2023 | D11: 2022 | E11: 2013 | F11: System Renewal | G11: ='App.2-AB_Capital Expenditures'!K14 -> 2015 | H11: ='App.2-AB_Capital Expenditures'!K18 -> 2003004.776 | I11: ='App.2-AB_Capital Expenditures'!L18 -> 789973
A12: ='LDC Info'!$E$14 -> EPCOR Electricity Distribution Ontario Inc. | B12: EB-2022-0028 | C12: 2023 | D12: 2022 | E12: 2013 | F12: System Service | G12: ='App.2-AB_Capital Expenditures'!K14 -> 2015 | H12: ='App.2-AB_Capital Expenditures'!K19 -> 740000 | I12: ='App.2-AB_Capital Expenditures'!L19 -> 157963
A13: ='LDC Info'!$E$14 -> EPCOR Electricity Distribution Ontario Inc. | B13: EB-2022-0028 | C13: 2023 | D13: 2022 | E13: 2013 | F13: General Plant | G13: ='App.2-AB_Capital Expenditures'!K14 -> 2015 | H13: ='App.2-AB_Capital Expenditures'!K20 -> 220000 | I13: ='App.2-AB_Capital Expenditures'!L20 -> 133386
A14: ='LDC Info'!$E$14 -> EPCOR Electricity Distribution Ontario Inc. | B14: EB-2022-0028 | C14: 2023 | D14: 2022 | E14: 2013 | F14: Total Expenditure | G14: ='App.2-AB_Capital Expenditures'!K14 -> 2015 | H14: ='App.2-AB_Capital Expenditures'!K21 -> 3738504.776 | I14: ='App.2-AB_Capital Expenditures'!L21 -> 2387848.83
A15: ='LDC Info'!$E$14 -> EPCOR Electricity Distribution Ontario Inc. | B15: EB-2022-0028 | C15: 2023 | D15: 2022 | E15: 2013 | F15: Capital Contributions | G15: ='App.2-AB_Capital Expenditures'!K14 -> 2015 | H15: ='App.2-AB_Capital Expenditures'!K22 -> -350000 | I15: ='App.2-AB_Capital Expenditures'!L22 -> -745572.83
A16: ='LDC Info'!$E$14 -> EPCOR Electricity Distribution Ontario Inc. | B16: EB-2022-0028 | C16: 2023 | D16: 2022 | E16: 2013 | F16: Net Capital Expenditures | G16: ='App.2-AB_Capital Expenditures'!K14 -> 2015 | H16: ='App.2-AB_Capital Expenditures'!K23 -> 3388504.776 | I16: ='App.2-AB_Capital Expenditures'!L23 -> 1642276
A17: ='LDC Info'!$E$14 -> EPCOR Electricity Distribution Ontario Inc. | B17: EB-2022-0028 | C17: 2023 | D17: 2022 | E17: 2013 | F17: System O&M | G17: ='App.2-AB_Capital Expenditures'!K14 -> 2015 | H17: ='App.2-AB_Capital Expenditures'!K24 -> 2230665 | I17: ='App.2-AB_Capital Expenditures'!L24 -> 2388712.47
A18: ='LDC Info'!$E$14 -> EPCOR Electricity Distribution Ontario Inc. | B18: EB-2022-0028 | C18: 2023 | D18: 2022 | E18: 2013 | F18: System Access | G18: ='App.2-AB_Capital Expenditures'!N14 -> 2016 | H18: ='App.2-AB_Capital Expenditures'!N17 -> 768753 | I18: ='App.2-AB_Capital Expenditures'!O17 -> 1998181
A19: ='LDC Info'!$E$14 -> EPCOR Electricity Distribution Ontario Inc. | B19: EB-2022-0028 | C19: 2023 | D19: 2022 | E19: 2013 | F19: System Renewal | G19: ='App.2-AB_Capital Expenditures'!N14 -> 2016 | H19: ='App.2-AB_Capital Expenditures'!N18 -> 2524177 | I19: ='App.2-AB_Capital Expenditures'!O18 -> 1229086
A20: ='LDC Info'!$E$14 -> EPCOR Electricity Distribution Ontario Inc. | B20: EB-2022-0028 | C20: 2023 | D20: 2022 | E20: 2013 | F20: System Service | G20: ='App.2-AB_Capital Expenditures'!N14 -> 2016 | H20: ='App.2-AB_Capital Expenditures'!N19 -> 49200 | I20: ='App.2-AB_Capital Expenditures'!O19 -> 574269.04
A21: ='LDC Info'!$E$14 -> EPCOR Electricity Distribution Ontario Inc. | B21: EB-2022-0028 | C21: 2023 | D21: 2022 | E21: 2013 | F21: General Plant | G21: ='App.2-AB_Capital Expenditures'!N14 -> 2016 | H21: ='App.2-AB_Capital Expenditures'!N20 -> 621150 | I21: ='App.2-AB_Capital Expenditures'!O20 -> 508391.12
A22: ='LDC Info'!$E$14 -> EPCOR Electricity Distribution Ontario Inc. | B22: EB-2022-0028 | C22: 2023 | D22: 2022 | E22: 2013 | F22: Total Expenditure | G22: ='App.2-AB_Capital Expenditures'!N14 -> 2016 | H22: ='App.2-AB_Capital Expenditures'!N21 -> 3963280 | I22: ='App.2-AB_Capital Expenditures'!O21 -> 4309927.16
A23: ='LDC Info'!$E$14 -> EPCOR Electricity Distribution Ontario Inc. | B23: EB-2022-0028 | C23: 2023 | D23: 2022 | E23: 2013 | F23: Capital Contributions | G23: ='App.2-AB_Capital Expenditures'!N14 -> 2016 | H23: ='App.2-AB_Capital Expenditures'!N22 -> -449875 | I23: ='App.2-AB_Capital Expenditures'!O22 -> -1739589
A24: ='LDC Info'!$E$14 -> EPCOR Electricity Distribution Ontario Inc. | B24: EB-2022-0028 | C24: 2023 | D24: 2022 | E24: 2013 | F24: Net Capital Expenditures | G24: ='App.2-AB_Capital Expenditures'!N14 -> 2016 | H24: ='App.2-AB_Capital Expenditures'!N23 -> 3513405 | I24: ='App.2-AB_Capital Expenditures'!O23 -> 2570338.16
A25: ='LDC Info'!$E$14 -> EPCOR Electricity Distribution Ontario Inc. | B25: EB-2022-0028 | C25: 2023 | D25: 2022 | E25: 2013 | F25: System O&M | G25: ='App.2-AB_Capital Expenditures'!N14 -> 2016 | H25: ='App.2-AB_Capital Expenditures'!N24 -> 2297585 | I25: ='App.2-AB_Capital Expenditures'!O24 -> 2482131.14
A26: ='LDC Info'!$E$14 -> EPCOR Electricity Distribution Ontario Inc. | B26: EB-2022-0028 | C26: 2023 | D26: 2022 | E26: 2013 | F26: System Access | G26: ='App.2-AB_Capital Expenditures'!Q14 -> 2017 | H26: ='App.2-AB_Capital Expenditures'!Q17 -> 752909 | I26: ='App.2-AB_Capital Expenditures'!R17 -> 855613.56
A27: ='LDC Info'!$E$14 -> EPCOR Electricity Distribution Ontario Inc. | B27: EB-2022-0028 | C27: 2023 | D27: 2022 | E27: 2013 | F27: System Renewal | G27: ='App.2-AB_Capital Expenditures'!Q14 -> 2017 | H27: ='App.2-AB_Capital Expenditures'!Q18 -> 2115500 | I27: ='App.2-AB_Capital Expenditures'!R18 -> 2166866
A28: ='LDC Info'!$E$14 -> EPCOR Electricity Distribution Ontario Inc. | B28: EB-2022-0028 | C28: 2023 | D28: 2022 | E28: 2013 | F28: System Service | G28: ='App.2-AB_Capital Expenditures'!Q14 -> 2017 | H28: ='App.2-AB_Capital Expenditures'!Q19 -> 51087 | I28: ='App.2-AB_Capital Expenditures'!R19 -> 36226
A29: ='LDC Info'!$E$14 -> EPCOR Electricity Distribution Ontario Inc. | B29: EB-2022-0028 | C29: 2023 | D29: 2022 | E29: 2013 | F29: General Plant | G29: ='App.2-AB_Capital Expenditures'!Q14 -> 2017 | H29: ='App.2-AB_Capital Expenditures'!Q20 -> 626334 | I29: ='App.2-AB_Capital Expenditures'!R20 -> 459191.76
A30: ='LDC Info'!$E$14 -> EPCOR Electricity Distribution Ontario Inc. | B30: EB-2022-0028 | C30: 2023 | D30: 2022 | E30: 2013 | F30: Total Expenditure | G30: ='App.2-AB_Capital Expenditures'!Q14 -> 2017 | H30: ='App.2-AB_Capital Expenditures'!Q21 -> 3545830 | I30: ='App.2-AB_Capital Expenditures'!R21 -> 3517897.32
A31: ='LDC Info'!$E$14 -> EPCOR Electricity Distribution Ontario Inc. | B31: EB-2022-0028 | C31: 2023 | D31: 2022 | E31: 2013 | F31: Capital Contributions | G31: ='App.2-AB_Capital Expenditures'!Q14 -> 2017 | H31: ='App.2-AB_Capital Expenditures'!Q22 -> -449875 | I31: ='App.2-AB_Capital Expenditures'!R22 -> -527956.56
A32: ='LDC Info'!$E$14 -> EPCOR Electricity Distribution Ontario Inc. | B32: EB-2022-0028 | C32: 2023 | D32: 2022 | E32: 2013 | F32: Net Capital Expenditures | G32: ='App.2-AB_Capital Expenditures'!Q14 -> 2017 | H32: ='App.2-AB_Capital Expenditures'!Q23 -> 3095955 | I32: ='App.2-AB_Capital Expenditures'!R23 -> 2989940.76
A33: ='LDC Info'!$E$14 -> EPCOR Electricity Distribution Ontario Inc. | B33: EB-2022-0028 | C33: 2023 | D33: 2022 | E33: 2013 | F33: System O&M | G33: ='App.2-AB_Capital Expenditures'!Q14 -> 2017 | H33: ='App.2-AB_Capital Expenditures'!Q24 -> 2517407 | I33: ='App.2-AB_Capital Expenditures'!R24 -> 2189893.99
A34: ='LDC Info'!$E$14 -> EPCOR Electricity Distribution Ontario Inc. | B34: =EBNUMBER -> EB-2022-0028 | C34: =TestYear -> 2023 | D34: =BridgeYear -> 2022 | E34: =RebaseYear -> 2013 | F34: System Access | G34: ='App.2-AB_Capital Expenditures'!T14 -> 2018 | H34: ='App.2-AB_Capital Expenditures'!T17 -> 1039693 | I34: ='App.2-AB_Capital Expenditures'!U17 -> 1418795
A35: ='LDC Info'!$E$14 -> EPCOR Electricity Distribution Ontario Inc. | B35: EB-2022-0028 | C35: 2023 | D35: 2022 | E35: 2013 | F35: System Renewal | G35: ='App.2-AB_Capital Expenditures'!T14 -> 2018 | H35: ='App.2-AB_Capital Expenditures'!T18 -> 1895340 | I35: ='App.2-AB_Capital Expenditures'!U18 -> 1306416
A36: ='LDC Info'!$E$14 -> EPCOR Electricity Distribution Ontario Inc. | B36: EB-2022-0028 | C36: 2023 | D36: 2022 | E36: 2013 | F36: System Service | G36: ='App.2-AB_Capital Expenditures'!T14 -> 2018 | H36: ='App.2-AB_Capital Expenditures'!T19 -> 51087 | I36: ='App.2-AB_Capital Expenditures'!U19 -> 2956
A37: ='LDC Info'!$E$14 -> EPCOR Electricity Distribution Ontario Inc. | B37: EB-2022-0028 | C37: 2023 | D37: 2022 | E37: 2013 | F37: General Plant | G37: ='App.2-AB_Capital Expenditures'!T14 -> 2018 | H37: ='App.2-AB_Capital Expenditures'!T20 -> 651930 | I37: ='App.2-AB_Capital Expenditures'!U20 -> 138927
A38: ='LDC Info'!$E$14 -> EPCOR Electricity Distribution Ontario Inc. | B38: EB-2022-0028 | C38: 2023 | D38: 2022 | E38: 2013 | F38: Total Expenditure | G38: ='App.2-AB_Capital Expenditures'!T14 -> 2018 | H38: ='App.2-AB_Capital Expenditures'!T21 -> 3638050 | I38: ='App.2-AB_Capital Expenditures'!U21 -> 2867094
A39: ='LDC Info'!$E$14 -> EPCOR Electricity Distribution Ontario Inc. | B39: EB-2022-0028 | C39: 2023 | D39: 2022 | E39: 2013 | F39: Capital Contributions | G39: ='App.2-AB_Capital Expenditures'!T14 -> 2018 | H39: ='App.2-AB_Capital Expenditures'!T22 -> -458423 | I39: ='App.2-AB_Capital Expenditures'!U22 -> -1004456
A40: ='LDC Info'!$E$14 -> EPCOR Electricity Distribution Ontario Inc. | B40: EB-2022-0028 | C40: 2023 | D40: 2022 | E40: 2013 | F40: Net Capital Expenditures | G40: ='App.2-AB_Capital Expenditures'!T14 -> 2018 | H40: ='App.2-AB_Capital Expenditures'!T23 -> 3179627 | I40: ='App.2-AB_Capital Expenditures'!U23 -> 1862638
A41: ='LDC Info'!$E$14 -> EPCOR Electricity Distribution Ontario Inc. | B41: EB-2022-0028 | C41: 2023 | D41: 2022 | E41: 2013 | F41: System O&M | G41: ='App.2-AB_Capital Expenditures'!T14 -> 2018 | H41: ='App.2-AB_Capital Expenditures'!T24 -> 0 | I41: ='App.2-AB_Capital Expenditures'!U24 -> 2310043.22
A42: ='LDC Info'!$E$14 -> EPCOR Electricity Distribution Ontario Inc. | B42: EB-2022-0028 | C42: 2023 | D42: 2022 | E42: 2013 | F42: System Access | G42: ='App.2-AB_Capital Expenditures'!W14 -> 2019 | H42: ='App.2-AB_Capital Expenditures'!W17 -> 779089 | I42: ='App.2-AB_Capital Expenditures'!X17 -> 1168871.28
A43: ='LDC Info'!$E$14 -> EPCOR Electricity Distribution Ontario Inc. | B43: EB-2022-0028 | C43: 2023 | D43: 2022 | E43: 2013 | F43: System Renewal | G43: ='App.2-AB_Capital Expenditures'!W14 -> 2019 | H43: ='App.2-AB_Capital Expenditures'!W18 -> 2117880 | I43: ='App.2-AB_Capital Expenditures'!X18 -> 2376731
A44: ='LDC Info'!$E$14 -> EPCOR Electricity Distribution Ontario Inc. | B44: EB-2022-0028 | C44: 2023 | D44: 2022 | E44: 2013 | F44: System Service | G44: ='App.2-AB_Capital Expenditures'!W14 -> 2019 | H44: ='App.2-AB_Capital Expenditures'!W19 -> 300000 | I44: ='App.2-AB_Capital Expenditures'!X19 -> 305635
A45: ='LDC Info'!$E$14 -> EPCOR Electricity Distribution Ontario Inc. | B45: EB-2022-0028 | C45: 2023 | D45: 2022 | E45: 2013 | F45: General Plant | G45: ='App.2-AB_Capital Expenditures'!W14 -> 2019 | H45: ='App.2-AB_Capital Expenditures'!W20 -> 569210 | I45: ='App.2-AB_Capital Expenditures'!X20 -> 1094796
A46: ='LDC Info'!$E$14 -> EPCOR Electricity Distribution Ontario Inc. | B46: EB-2022-0028 | C46: 2023 | D46: 2022 | E46: 2013 | F46: Total Expenditure | G46: ='App.2-AB_Capital Expenditures'!W14 -> 2019 | H46: ='App.2-AB_Capital Expenditures'!W21 -> 3766179 | I46: ='App.2-AB_Capital Expenditures'!X21 -> 4946033.28
A47: ='LDC Info'!$E$14 -> EPCOR Electricity Distribution Ontario Inc. | B47: EB-2022-0028 | C47: 2023 | D47: 2022 | E47: 2013 | F47: Capital Contributions | G47: ='App.2-AB_Capital Expenditures'!W14 -> 2019 | H47: ='App.2-AB_Capital Expenditures'!W22 -> -467133 | I47: ='App.2-AB_Capital Expenditures'!X22 -> -811666.28
A48: ='LDC Info'!$E$14 -> EPCOR Electricity Distribution Ontario Inc. | B48: EB-2022-0028 | C48: 2023 | D48: 2022 | E48: 2013 | F48: Net Capital Expenditures | G48: ='App.2-AB_Capital Expenditures'!W14 -> 2019 | H48: ='App.2-AB_Capital Expenditures'!W23 -> 3299046 | I48: ='App.2-AB_Capital Expenditures'!X23 -> 4134367
A49: ='LDC Info'!$E$14 -> EPCOR Electricity Distribution Ontario Inc. | B49: EB-2022-0028 | C49: 2023 | D49: 2022 | E49: 2013 | F49: System O&M | G49: ='App.2-AB_Capital Expenditures'!W14 -> 2019 | H49: ='App.2-AB_Capital Expenditures'!W24 -> 0 | I49: ='App.2-AB_Capital Expenditures'!X24 -> 2258487.07
A50: ='LDC Info'!$E$14 -> EPCOR Electricity Distribution Ontario Inc. | B50: EB-2022-0028 | C50: 2023 | D50: 2022 | E50: 2013 | F50: System Access | G50: ='App.2-AB_Capital Expenditures'!Z14 -> 2020 | H50: ='App.2-AB_Capital Expenditures'!Z17 -> 993236 | I50: ='App.2-AB_Capital Expenditures'!AA17 -> 1739777.96
A51: ='LDC Info'!$E$14 -> EPCOR Electricity Distribution Ontario Inc. | B51: EB-2022-0028 | C51: 2023 | D51: 2022 | E51: 2013 | F51: System Renewal | G51: ='App.2-AB_Capital Expenditures'!Z14 -> 2020 | H51: ='App.2-AB_Capital Expenditures'!Z18 -> 2449812.8 | I51: ='App.2-AB_Capital Expenditures'!AA18 -> 2040826
A52: ='LDC Info'!$E$14 -> EPCOR Electricity Distribution Ontario Inc. | B52: EB-2022-0028 | C52: 2023 | D52: 2022 | E52: 2013 | F52: System Service | G52: ='App.2-AB_Capital Expenditures'!Z14 -> 2020 | H52: ='App.2-AB_Capital Expenditures'!Z19 -> 75000 | I52: ='App.2-AB_Capital Expenditures'!AA19 -> 8085
A53: ='LDC Info'!$E$14 -> EPCOR Electricity Distribution Ontario Inc. | B53: EB-2022-0028 | C53: 2023 | D53: 2022 | E53: 2013 | F53: General Plant | G53: ='App.2-AB_Capital Expenditures'!Z14 -> 2020 | H53: ='App.2-AB_Capital Expenditures'!Z20 -> 657757 | I53: ='App.2-AB_Capital Expenditures'!AA20 -> 574179
A54: ='LDC Info'!$E$14 -> EPCOR Electricity Distribution Ontario Inc. | B54: EB-2022-0028 | C54: 2023 | D54: 2022 | E54: 2013 | F54: Total Expenditure | G54: ='App.2-AB_Capital Expenditures'!Z14 -> 2020 | H54: ='App.2-AB_Capital Expenditures'!Z21 -> 4175805.8 | I54: ='App.2-AB_Capital Expenditures'!AA21 -> 4362867.96
A55: ='LDC Info'!$E$14 -> EPCOR Electricity Distribution Ontario Inc. | B55: EB-2022-0028 | C55: 2023 | D55: 2022 | E55: 2013 | F55: Capital Contributions | G55: ='App.2-AB_Capital Expenditures'!Z14 -> 2020 | H55: ='App.2-AB_Capital Expenditures'!Z22 -> -476009 | I55: ='App.2-AB_Capital Expenditures'!AA22 -> -1086110.96
A56: ='LDC Info'!$E$14 -> EPCOR Electricity Distribution Ontario Inc. | B56: EB-2022-0028 | C56: 2023 | D56: 2022 | E56: 2013 | F56: Net Capital Expenditures | G56: ='App.2-AB_Capital Expenditures'!Z14 -> 2020 | H56: ='App.2-AB_Capital Expenditures'!Z23 -> 3699796.8 | I56: ='App.2-AB_Capital Expenditures'!AA23 -> 3276757
A57: ='LDC Info'!$E$14 -> EPCOR Electricity Distribution Ontario Inc. | B57: EB-2022-0028 | C57: 2023 | D57: 2022 | E57: 2013 | F57: System O&M | G57: ='App.2-AB_Capital Expenditures'!Z14 -> 2020 | H57: ='App.2-AB_Capital Expenditures'!Z24 -> 0 | I57: ='App.2-AB_Capital Expenditures'!AA24 -> 2785865.35
A58: ='LDC Info'!$E$14 -> EPCOR Electricity Distribution Ontario Inc. | B58: EB-2022-0028 | C58: 2023 | D58: 2022 | E58: 2013 | F58: System Access | G58: ='App.2-AB_Capital Expenditures'!AC14 -> 2021 | H58: ='App.2-AB_Capital Expenditures'!AC17 -> 1008318 | I58: ='App.2-AB_Capital Expenditures'!AD17 -> 1543582.82
A59: ='LDC Info'!$E$14 -> EPCOR Electricity Distribution Ontario Inc. | B59: EB-2022-0028 | C59: 2023 | D59: 2022 | E59: 2013 | F59: System Renewal | G59: ='App.2-AB_Capital Expenditures'!AC14 -> 2021 | H59: ='App.2-AB_Capital Expenditures'!AC18 -> 2594023.48 | I59: ='App.2-AB_Capital Expenditures'!AD18 -> 2750666
A60: ='LDC Info'!$E$14 -> EPCOR Electricity Distribution Ontario Inc. | B60: EB-2022-0028 | C60: 2023 | D60: 2022 | E60: 2013 | F60: System Service | G60: ='App.2-AB_Capital Expenditures'!AC14 -> 2021 | H60: ='App.2-AB_Capital Expenditures'!AC19 -> 101875 | I60: ='App.2-AB_Capital Expenditures'!AD19 -> 71150
A61: ='LDC Info'!$E$14 -> EPCOR Electricity Distribution Ontario Inc. | B61: EB-2022-0028 | C61: 2023 | D61: 2022 | E61: 2013 | F61: General Plant | G61: ='App.2-AB_Capital Expenditures'!AC14 -> 2021 | H61: ='App.2-AB_Capital Expenditures'!AC20 -> 693180 | I61: ='App.2-AB_Capital Expenditures'!AD20 -> 99845
A62: ='LDC Info'!$E$14 -> EPCOR Electricity Distribution Ontario Inc. | B62: EB-2022-0028 | C62: 2023 | D62: 2022 | E62: 2013 | F62: Total Expenditure | G62: ='App.2-AB_Capital Expenditures'!AC14 -> 2021 | H62: ='App.2-AB_Capital Expenditures'!AC21 -> 4397396.48 | I62: ='App.2-AB_Capital Expenditures'!AD21 -> 4465243.82
A63: ='LDC Info'!$E$14 -> EPCOR Electricity Distribution Ontario Inc. | B63: EB-2022-0028 | C63: 2023 | D63: 2022 | E63: 2013 | F63: Capital Contributions | G63: ='App.2-AB_Capital Expenditures'!AC14 -> 2021 | H63: ='App.2-AB_Capital Expenditures'!AC22 -> -654494.25 | I63: ='App.2-AB_Capital Expenditures'!AD22 -> -690143.82
A64: ='LDC Info'!$E$14 -> EPCOR Electricity Distribution Ontario Inc. | B64: EB-2022-0028 | C64: 2023 | D64: 2022 | E64: 2013 | F64: Net Capital Expenditures | G64: ='App.2-AB_Capital Expenditures'!AC14 -> 2021 | H64: ='App.2-AB_Capital Expenditures'!AC23 -> 3742902.23 | I64: ='App.2-AB_Capital Expenditures'!AD23 -> 3775100
A65: ='LDC Info'!$E$14 -> EPCOR Electricity Distribution Ontario Inc. | B65: EB-2022-0028 | C65: 2023 | D65: 2022 | E65: 2013 | F65: System O&M | G65: ='App.2-AB_Capital Expenditures'!AC14 -> 2021 | H65: ='App.2-AB_Capital Expenditures'!AC24 -> 0 | I65: ='App.2-AB_Capital Expenditures'!AD24 -> 2452353.39
A66: ='LDC Info'!$E$14 -> EPCOR Electricity Distribution Ontario Inc. | B66: =EBNUMBER -> EB-2022-0028 | C66: =TestYear -> 2023 | D66: =BridgeYear -> 2022 | E66: =RebaseYear -> 2013 | F66: System Access | G66: ='App.2-AB_Capital Expenditures'!AF14 -> 2022 | H66: ='App.2-AB_Capital Expenditures'!AF17 -> 2279019 | I66: ='App.2-AB_Capital Expenditures'!AG17 -> 2279019
A67: ='LDC Info'!$E$14 -> EPCOR Electricity Distribution Ontario Inc. | B67: EB-2022-0028 | C67: 2023 | D67: 2022 | E67: 2013 | F67: System Renewal | G67: ='App.2-AB_Capital Expenditures'!AF14 -> 2022 | H67: ='App.2-AB_Capital Expenditures'!AF18 -> 2025598.7 | I67: ='App.2-AB_Capital Expenditures'!AG18 -> 2106671
A68: ='LDC Info'!$E$14 -> EPCOR Electricity Distribution Ontario Inc. | B68: EB-2022-0028 | C68: 2023 | D68: 2022 | E68: 2013 | F68: System Service | G68: ='App.2-AB_Capital Expenditures'!AF14 -> 2022 | H68: ='App.2-AB_Capital Expenditures'!AF19 -> 103979 | I68: ='App.2-AB_Capital Expenditures'!AG19 -> 103979
A69: ='LDC Info'!$E$14 -> EPCOR Electricity Distribution Ontario Inc. | B69: EB-2022-0028 | C69: 2023 | D69: 2022 | E69: 2013 | F69: General Plant | G69: ='App.2-AB_Capital Expenditures'!AF14 -> 2022 | H69: ='App.2-AB_Capital Expenditures'!AF20 -> 440548 | I69: ='App.2-AB_Capital Expenditures'!AG20 -> 940548
A70: ='LDC Info'!$E$14 -> EPCOR Electricity Distribution Ontario Inc. | B70: EB-2022-0028 | C70: 2023 | D70: 2022 | E70: 2013 | F70: Total Expenditure | G70: ='App.2-AB_Capital Expenditures'!AF14 -> 2022 | H70: ='App.2-AB_Capital Expenditures'!AF21 -> 4849144.7 | I70: ='App.2-AB_Capital Expenditures'!AG21 -> 5430217
A71: ='LDC Info'!$E$14 -> EPCOR Electricity Distribution Ontario Inc. | B71: EB-2022-0028 | C71: 2023 | D71: 2022 | E71: 2013 | F71: Capital Contributions | G71: ='App.2-AB_Capital Expenditures'!AF14 -> 2022 | H71: ='App.2-AB_Capital Expenditures'!AF22 -> -1391830 | I71: ='App.2-AB_Capital Expenditures'!AG22 -> -1391830
A72: ='LDC Info'!$E$14 -> EPCOR Electricity Distribution Ontario Inc. | B72: EB-2022-0028 | C72: 2023 | D72: 2022 | E72: 2013 | F72: Net Capital Expenditures | G72: ='App.2-AB_Capital Expenditures'!AF14 -> 2022 | H72: ='App.2-AB_Capital Expenditures'!AF23 -> 3457314.7 | I72: ='App.2-AB_Capital Expenditures'!AG23 -> 4038387
A73: ='LDC Info'!$E$14 -> EPCOR Electricity Distribution Ontario Inc. | B73: EB-2022-0028 | C73: 2023 | D73: 2022 | E73: 2013 | F73: System O&M | G73: ='App.2-AB_Capital Expenditures'!AF14 -> 2022 | H73: ='App.2-AB_Capital Expenditures'!AF24 -> 2530533.19 | I73: ='App.2-AB_Capital Expenditures'!AG24 -> 2530533.19
A74: ='LDC Info'!$E$14 -> EPCOR Electricity Distribution Ontario Inc. | B74: EB-2022-0028 | C74: 2023 | D74: 2022 | E74: 2013 | F74: System Access | G74: ='App.2-AB_Capital Expenditures'!AI14 -> 2023 | H74: ='App.2-AB_Capital Expenditures'!AI17 -> 1331751
A75: ='LDC Info'!$E$14 -> EPCOR Electricity Distribution Ontario Inc. | B75: EB-2022-0028 | C75: 2023 | D75: 2022 | E75: 2013 | F75: System Renewal | G75: ='App.2-AB_Capital Expenditures'!AI14 -> 2023 | H75: ='App.2-AB_Capital Expenditures'!AI18 -> 2066743
A76: ='LDC Info'!$E$14 -> EPCOR Electricity Distribution Ontario Inc. | B76: EB-2022-0028 | C76: 2023 | D76: 2022 | E76: 2013 | F76: System Service | G76: ='App.2-AB_Capital Expenditures'!AI14 -> 2023 | H76: ='App.2-AB_Capital Expenditures'!AI19 -> 1372616
A77: ='LDC Info'!$E$14 -> EPCOR Electricity Distribution Ontario Inc. | B77: EB-2022-0028 | C77: 2023 | D77: 2022 | E77: 2013 | F77: General Plant | G77: ='App.2-AB_Capital Expenditures'!AI14 -> 2023 | H77: ='App.2-AB_Capital Expenditures'!AI20 -> 255400
A78: ='LDC Info'!$E$14 -> EPCOR Electricity Distribution Ontario Inc. | B78: EB-2022-0028 | C78: 2023 | D78: 2022 | E78: 2013 | F78: Total Expenditure | G78: ='App.2-AB_Capital Expenditures'!AI14 -> 2023 | H78: ='App.2-AB_Capital Expenditures'!AI21 -> 5026510
A79: ='LDC Info'!$E$14 -> EPCOR Electricity Distribution Ontario Inc. | B79: EB-2022-0028 | C79: 2023 | D79: 2022 | E79: 2013 | F79: Capital Contributions | G79: ='App.2-AB_Capital Expenditures'!AI14 -> 2023 | H79: ='App.2-AB_Capital Expenditures'!AI22 -> -730672
A80: ='LDC Info'!$E$14 -> EPCOR Electricity Distribution Ontario Inc. | B80: EB-2022-0028 | C80: 2023 | D80: 2022 | E80: 2013 | F80: Net Capital Expenditures | G80: ='App.2-AB_Capital Expenditures'!AI14 -> 2023 | H80: ='App.2-AB_Capital Expenditures'!AI23 -> 4295838
A81: ='LDC Info'!$E$14 -> EPCOR Electricity Distribution Ontario Inc. | B81: EB-2022-0028 | C81: 2023 | D81: 2022 | E81: 2013 | F81: System O&M | G81: ='App.2-AB_Capital Expenditures'!AI14 -> 2023 | H81: ='App.2-AB_Capital Expenditures'!AI24 -> 2617272.604
A82: ='LDC Info'!$E$14 -> EPCOR Electricity Distribution Ontario Inc. | B82: EB-2022-0028 | C82: 2023 | D82: 2022 | E82: 2013 | F82: System Access | G82: ='App.2-AB_Capital Expenditures'!AJ14 -> 2024 | H82: ='App.2-AB_Capital Expenditures'!AJ17 -> 1361747.36
A83: ='LDC Info'!$E$14 -> EPCOR Electricity Distribution Ontario Inc. | B83: EB-2022-0028 | C83: 2023 | D83: 2022 | E83: 2013 | F83: System Renewal | G83: ='App.2-AB_Capital Expenditures'!AJ14 -> 2024 | H83: ='App.2-AB_Capital Expenditures'!AJ18 -> 2208280
A84: ='LDC Info'!$E$14 -> EPCOR Electricity Distribution Ontario Inc. | B84: EB-2022-0028 | C84: 2023 | D84: 2022 | E84: 2013 | F84: System Service | G84: ='App.2-AB_Capital Expenditures'!AJ14 -> 2024 | H84: ='App.2-AB_Capital Expenditures'!AJ19 -> 958750
A85: ='LDC Info'!$E$14 -> EPCOR Electricity Distribution Ontario Inc. | B85: EB-2022-0028 | C85: 2023 | D85: 2022 | E85: 2013 | F85: General Plant | G85: ='App.2-AB_Capital Expenditures'!AJ14 -> 2024 | H85: ='App.2-AB_Capital Expenditures'!AJ20 -> 709126
A86: ='LDC Info'!$E$14 -> EPCOR Electricity Distribution Ontario Inc. | B86: EB-2022-0028 | C86: 2023 | D86: 2022 | E86: 2013 | F86: Total Expenditure | G86: ='App.2-AB_Capital Expenditures'!AJ14 -> 2024 | H86: ='App.2-AB_Capital Expenditures'!AJ21 -> 5237903.36
A87: ='LDC Info'!$E$14 -> EPCOR Electricity Distribution Ontario Inc. | B87: EB-2022-0028 | C87: 2023 | D87: 2022 | E87: 2013 | F87: Capital Contributions | G87: ='App.2-AB_Capital Expenditures'!AJ14 -> 2024 | H87: ='App.2-AB_Capital Expenditures'!AJ22 -> -747129.6561
A88: ='LDC Info'!$E$14 -> EPCOR Electricity Distribution Ontario Inc. | B88: EB-2022-0028 | C88: 2023 | D88: 2022 | E88: 2013 | F88: Net Capital Expenditures | G88: ='App.2-AB_Capital Expenditures'!AJ14 -> 2024 | H88: ='App.2-AB_Capital Expenditures'!AJ23 -> 4490773.703
A89: ='LDC Info'!$E$14 -> EPCOR Electricity Distribution Ontario Inc. | B89: EB-2022-0028 | C89: 2023 | D89: 2022 | E89: 2013 | F89: System O&M | G89: ='App.2-AB_Capital Expenditures'!AJ14 -> 2024 | H89: ='App.2-AB_Capital Expenditures'!AJ24 -> 2708877.145
A90: ='LDC Info'!$E$14 -> EPCOR Electricity Distribution Ontario Inc. | B90: EB-2022-0028 | C90: 2023 | D90: 2022 | E90: 2013 | F90: System Access | G90: ='App.2-AB_Capital Expenditures'!AK14 -> 2025 | H90: ='App.2-AB_Capital Expenditures'!AK17 -> 1393275.338
A91: ='LDC Info'!$E$14 -> EPCOR Electricity Distribution Ontario Inc. | B91: EB-2022-0028 | C91: 2023 | D91: 2022 | E91: 2013 | F91: System Renewal | G91: ='App.2-AB_Capital Expenditures'!AK14 -> 2025 | H91: ='App.2-AB_Capital Expenditures'!AK18 -> 2095048
A92: ='LDC Info'!$E$14 -> EPCOR Electricity Distribution Ontario Inc. | B92: EB-2022-0028 | C92: 2023 | D92: 2022 | E92: 2013 | F92: System Service | G92: ='App.2-AB_Capital Expenditures'!AK14 -> 2025 | H92: ='App.2-AB_Capital Expenditures'!AK19 -> 681595
A93: ='LDC Info'!$E$14 -> EPCOR Electricity Distribution Ontario Inc. | B93: EB-2022-0028 | C93: 2023 | D93: 2022 | E93: 2013 | F93: General Plant | G93: ='App.2-AB_Capital Expenditures'!AK14 -> 2025 | H93: ='App.2-AB_Capital Expenditures'!AK20 -> 420764
A94: ='LDC Info'!$E$14 -> EPCOR Electricity Distribution Ontario Inc. | B94: EB-2022-0028 | C94: 2023 | D94: 2022 | E94: 2013 | F94: Total Expenditure | G94: ='App.2-AB_Capital Expenditures'!AK14 -> 2025 | H94: ='App.2-AB_Capital Expenditures'!AK21 -> 4590682.338
A95: ='LDC Info'!$E$14 -> EPCOR Electricity Distribution Ontario Inc. | B95: EB-2022-0028 | C95: 2023 | D95: 2022 | E95: 2013 | F95: Capital Contributions | G95: ='App.2-AB_Capital Expenditures'!AK14 -> 2025 | H95: ='App.2-AB_Capital Expenditures'!AK22 -> -764427.6427
A96: ='LDC Info'!$E$14 -> EPCOR Electricity Distribution Ontario Inc. | B96: EB-2022-0028 | C96: 2023 | D96: 2022 | E96: 2013 | F96: Net Capital Expenditures | G96: ='App.2-AB_Capital Expenditures'!AK14 -> 2025 | H96: ='App.2-AB_Capital Expenditures'!AK23 -> 3826254.695
A97: ='LDC Info'!$E$14 -> EPCOR Electricity Distribution Ontario Inc. | B97: EB-2022-0028 | C97: 2023 | D97: 2022 | E97: 2013 | F97: System O&M | G97: ='App.2-AB_Capital Expenditures'!AK14 -> 2025 | H97: ='App.2-AB_Capital Expenditures'!AK24 -> 2803687.845
A98: ='LDC Info'!$E$14 -> EPCOR Electricity Distribution Ontario Inc. | B98: =EBNUMBER -> EB-2022-0028 | C98: =TestYear -> 2023 | D98: =BridgeYear -> 2022 | E98: =RebaseYear -> 2013 | F98: System Access | G98: ='App.2-AB_Capital Expenditures'!AL14 -> 2026 | H98: ='App.2-AB_Capital Expenditures'!AL17 -> 1426425.138
A99: ='LDC Info'!$E$14 -> EPCOR Electricity Distribution Ontario Inc. | B99: EB-2022-0028 | C99: 2023 | D99: 2022 | E99: 2013 | F99: System Renewal | G99: ='App.2-AB_Capital Expenditures'!AL14 -> 2026 | H99: ='App.2-AB_Capital Expenditures'!AL18 -> 2168837
A100: ='LDC Info'!$E$14 -> EPCOR Electricity Distribution Ontario Inc. | B100: EB-2022-0028 | C100: 2023 | D100: 2022 | E100: 2013 | F100: System Service | G100: ='App.2-AB_Capital Expenditures'!AL14 -> 2026 | H100: ='App.2-AB_Capital Expenditures'!AL19 -> 479037
A101: ='LDC Info'!$E$14 -> EPCOR Electricity Distribution Ontario Inc. | B101: EB-2022-0028 | C101: 2023 | D101: 2022 | E101: 2013 | F101: General Plant | G101: ='App.2-AB_Capital Expenditures'!AL14 -> 2026 | H101: ='App.2-AB_Capital Expenditures'!AL20 -> 476759
A102: ='LDC Info'!$E$14 -> EPCOR Electricity Distribution Ontario Inc. | B102: EB-2022-0028 | C102: 2023 | D102: 2022 | E102: 2013 | F102: Total Expenditure | G102: ='App.2-AB_Capital Expenditures'!AL14 -> 2026 | H102: ='App.2-AB_Capital Expenditures'!AL21 -> 4551058.138
A103: ='LDC Info'!$E$14 -> EPCOR Electricity Distribution Ontario Inc. | B103: EB-2022-0028 | C103: 2023 | D103: 2022 | E103: 2013 | F103: Capital Contributions | G103: ='App.2-AB_Capital Expenditures'!AL14 -> 2026 | H103: ='App.2-AB_Capital Expenditures'!AL22 -> -782615.4503
A104: ='LDC Info'!$E$14 -> EPCOR Electricity Distribution Ontario Inc. | B104: EB-2022-0028 | C104: 2023 | D104: 2022 | E104: 2013 | F104: Net Capital Expenditures | G104: ='App.2-AB_Capital Expenditures'!AL14 -> 2026 | H104: ='App.2-AB_Capital Expenditures'!AL23 -> 3768442.688
A105: ='LDC Info'!$E$14 -> EPCOR Electricity Distribution Ontario Inc. | B105: EB-2022-0028 | C105: 2023 | D105: 2022 | E105: 2013 | F105: System O&M | G105: ='App.2-AB_Capital Expenditures'!AL14 -> 2026 | H105: ='App.2-AB_Capital Expenditures'!AL24 -> 2901816.92
A106: ='LDC Info'!$E$14 -> EPCOR Electricity Distribution Ontario Inc. | B106: EB-2022-0028 | C106: 2023 | D106: 2022 | E106: 2013 | F106: System Access | G106: ='App.2-AB_Capital Expenditures'!AM14 -> 2027 | H106: ='App.2-AB_Capital Expenditures'!AM17 -> 1461300.89
A107: ='LDC Info'!$E$14 -> EPCOR Electricity Distribution Ontario Inc. | B107: EB-2022-0028 | C107: 2023 | D107: 2022 | E107: 2013 | F107: System Renewal | G107: ='App.2-AB_Capital Expenditures'!AM14 -> 2027 | H107: ='App.2-AB_Capital Expenditures'!AM18 -> 2103654
A108: ='LDC Info'!$E$14 -> EPCOR Electricity Distribution Ontario Inc. | B108: EB-2022-0028 | C108: 2023 | D108: 2022 | E108: 2013 | F108: System Service | G108: ='App.2-AB_Capital Expenditures'!AM14 -> 2027 | H108: ='App.2-AB_Capital Expenditures'!AM19 -> 519037
A109: ='LDC Info'!$E$14 -> EPCOR Electricity Distribution Ontario Inc. | B109: EB-2022-0028 | C109: 2023 | D109: 2022 | E109: 2013 | F109: General Plant | G109: ='App.2-AB_Capital Expenditures'!AM14 -> 2027 | H109: ='App.2-AB_Capital Expenditures'!AM20 -> 579770
A110: ='LDC Info'!$E$14 -> EPCOR Electricity Distribution Ontario Inc. | B110: EB-2022-0028 | C110: 2023 | D110: 2022 | E110: 2013 | F110: Total Expenditure | G110: ='App.2-AB_Capital Expenditures'!AM14 -> 2027 | H110: ='App.2-AB_Capital Expenditures'!AM21 -> 4663761.89
A111: ='LDC Info'!$E$14 -> EPCOR Electricity Distribution Ontario Inc. | B111: EB-2022-0028 | C111: 2023 | D111: 2022 | E111: 2013 | F111: Capital Contributions | G111: ='App.2-AB_Capital Expenditures'!AM14 -> 2027 | H111: ='App.2-AB_Capital Expenditures'!AM22 -> -801750.2102
A112: ='LDC Info'!$E$14 -> EPCOR Electricity Distribution Ontario Inc. | B112: EB-2022-0028 | C112: 2023 | D112: 2022 | E112: 2013 | F112: Net Capital Expenditures | G112: ='App.2-AB_Capital Expenditures'!AM14 -> 2027 | H112: ='App.2-AB_Capital Expenditures'!AM23 -> 3862011.68
A113: ='LDC Info'!$E$14 -> EPCOR Electricity Distribution Ontario Inc. | B113: EB-2022-0028 | C113: 2023 | D113: 2022 | E113: 2013 | F113: System O&M | G113: ='App.2-AB_Capital Expenditures'!AM14 -> 2027 | H113: ='App.2-AB_Capital Expenditures'!AM24 -> 3003380.512

Sheet App.2-AC_Customer Engagement
B1: File Number: | C1: =EBNUMBER -> EB-2022-0028
B2: Exhibit: | C2: 1
B3: Tab: | C3: 1
B4: Schedule: | C4: 1
B5: Page: | C5: 45
B7: Date: | C7: 2022-05-27
A9: Appendix 2-AC
A10: Customer Engagement Activities Summary
A12: Provide a list of customer engagement activities | B12: Provide a list of customer needs and preferences identified through each engagement activity | C12: Actions taken to respond to identified needs and preferences. If no action was taken, explain why.
A13: Community Engagement - Town of Collingwood Advisory Committee | B13: This committee provides an ongoing opportunity to discuss community issues relevant to both EEDO and the Town of Collingwood in an effort to educate and discuss industry and local topics | C13: New agendas and topics are brought forward each meeting depending on current events and changes. Action items are determined based on the item. Some actions include rate updates, pandemic response and pandemic measures, capital planning and community event education and alignment.
A14: Community Engagement - Community Events | B14: EEDO engages in sponsorships as a way to build its brand in its service territory. This helps to increase awareness of the services EEDO provides so customers know who to contact for electricity services and assistance. In addition, EEDO uses these opportunities to educate customers on how they can stay safe around utility infrastructure. EEDO and its employees also participate and volunteer in the community and contribute to not-for-profit and charitable organizations, particularly those that align with EEDO's social, environmental and governance values. | C14: EEDO supports the communities where its employees live and work. Some examples of community initiatives it has supported include: Collingwood Collegiate Institute Student Scholarship, local minor baseball, local junior hockey, Downtown Business Improvement Area events, Georgian Triangle Humane Society and Santa Claus Parades, as well as conservation events as community fairs and businesses. EEDO employees also participate in an annual United Way fundraising campaign with EEDO matching employee contributions to support the local chapter of the organization.
A15: Community Engagement - EPCOR Heart + Soul Fund | B15: Through EPCOR's Heart + Soul Fund, just under $30,000 has been invested into 10 organizations that focus on delivering artus, culture, charitable and mental health supports. The Heart + Soul Fund will continue into 2022. | C15: In 2020, EPCOR launched the Heart + Soul Fund to help arts, culture and non-profit sectors impacted by the COVID-19 pandemic. For the past two years, EPCOR has supported local programming that helps organizations build resiliency, uplifts our communities and enables them to continuing to do what they do best: bringing the heart and soul to the communities we serve.
A16: Customer Education - Bill Inserts, Bill Messaging | B16: Bill inserts and messaging provides an opportunity for customers to be made aware of changes in the industry that could impact them. This can include rate changes, pricing optionality, health and safety, conservation and low income support. The regulatory environment is complex and this medium provides an opportunity to proactively inform customers of changes that could impact them. | C16: Every EEDO customer is billed monthly. As such, this continues to be a good avenue to reach all customers. Periodic billing inserts provide current rate information and other important safety considerations. EEDO prepares a communication plan annually to schedule important customer communications allowing for flexibility to address industry changes.
A17: Customer Education - Electrical Safety Awareness & Training | B17: Education and Safety - There is a need for elementary students to understand electrical system hazards | C17: EEDO coordinated in-person safety programs for elementary schools in our service territory to help educate and inform students
A18: Customer Engagement - Surveys | B18: EEDO has engaged RedHead Media to conduct biennial Customer Satisfaction Surveys since 2016 (previously Utility Pulse). The primary objective of the survey is to provide information that supports discussions about improving customer care for residential and small commercial customers. | C18: In addition to the reliability concerns address in the Distribution System Plan, EEDO continues to invest and implement ways to improve the customer experience:
A20: Biennial Customer Satisfaction Survey - Residential and Small Business customers | B20: Each response/score is an important indicator/influencer of to determine priorities of investment and staff education. | C20: Outage map:
B22: EEDO's Overall Customer Satisfaction Scores has shown continuous improvement: | C22: Using SmartMap technology, EEDO launched an outage map that customers can access online to see planned and unplanned outages. Where possible, EEDO will update the map with restoration time and relevant updates. This tool provides customers with a consistent location to look for updates and to help determine the scale of outages.
B24: 2016-2017 - 72% of customers are overall satisfied with EEDO's performance and services; | C24: Improved digital experience: EEDO has converted several intake forms from paper to digital available on our website (new service connections/move forms, account applications etc...)
B25: 2018-2019 - 73%
B26: 2020-2021 - 74% | C26: Customer Connect: While EEDO's legacy customer portal is expected to be replaced in 2022 to allow for an improved digital experience, the current portal 'Customer Connect' allows customers to access historical data billing information to help address conservation and efficiency options. While Customer Connect has been a helpful tool, an upgrade will allow for easier access and reduce the number of calls and emails from customers as they get setup.
B28: While the results remain positive and demonstrate moderate continuous improvement, areas of customer concern include: reliability, increased communication, customer interaction. | C28: UtiliSmart Energy Manager Tool: In advance of the Green Button implementation, EEDO offers the UtiliSmart Energy Manager tool to C&I customers to track, validate and export consumption and demand data in detail.
C30: Green Button: EEDO is on track to meet the Ministry of Energy's November 2023 timing for implementation of the Green Button standard to allow customers improved access to account data.
C32: Web re-platform: EEDO is undertaking an overhaul of its current website to transfer to an updated platform
A33: Customer Engagement - Surveys | B33: Since 2015, EEDO has engaged RedHead Media to conduct its bi-annual survey to assess public awareness of the dangers/risks associated with electricity. The survey compiles data to measure the level of awareness of key electrical safety precautions among the public within the electricity distributor’s service territory. Results are based on a telephone survey (Random Digit Dialing) among 400 Members of the General Public,18 years of age or older, within the LDC’s geographic service territory. | C33: EEDO follows strict safety measurements making safety to our customers and community its number one priority. Responding to emergency services is also a critical part of its role with customers. EEDO responds immediately to customer concerns of downed power lines, open utility transformers, vehicle accidents involving power equipment and unplanned outages. EEDO educates customers on homeowner responsibilities and safety around utility infrastructure using various communication channels including billing inserts, social media, digital media, local newspapers, radio, events and school presentations. In addition, EEDO participates in public awareness days, such as Emergency Preparedness Week, Fire Prevention Week and Dig Safe Month to increase customer awareness on the importance of safety practices.
A35: Biennial Public Awareness of Safety Survey | B35: The 2020 survey results show many respondents have good knowledge or have received some information pertaining to the 6 core measurement questions. EEDO's Public Safety Awareness Index Score is 83%.
A36: Customer Engagement - Surveys | B36: Included questions concerning satisfaction, The specific objectives are to: | C36: Based on the survey, the top “high priority” statements for investment prioritization are:
B37: • Identify overarching and most sensitive areas of how we perform that matters most
A38: In anticipation of this Cost of Service rate application, EEDO conducted an additional customer survey inviting Residential, Small Business and Industrial & Commercial customers to provide feedback to help identify and align priorities to be used in the distribution system plan. | B38: • Gather feedback on existing or proposed broad areas of performance | C38: 1. Timely notices for maintenance (communication)
B39: • Early analysis of rate sensitivity | C39: 2. Renewing aging infrastructure
B40: • What to do with the information: Data will inform your decisions on initial prioritization of projects and consideration of performance measures (weighting and categories) | C40: 3. Reducing outages
C41: 4. Utilizing smart devices
B42: A copy of this report has been included in Exhibit 2
C43: EEDO customers are in agreement that to avoid risk they support EPCOR investing in these services for longer-term benefits
C44: and efficiencies. At minimum, they want to maintain status quo, though more agree with a slight increase in rates if it means improving reliability.
C46: EEDO has used this feedback to help shape its DSP and 5-year capital investment plan.
A47: Customer Service - In-Office open to the public | B47: a) Front Counter Engagement | C47: Consumer concerns and issues are dealt with immediately by knowledgeable Customer Service Representatives (CSR) over the phone and in-person.
B48: b) Technical Engagement
A49: Before closing to the public due to the COVID-19 pandemic, EEDO's office was open 5 days a week during business hours where customers could telephone, e-mail or visit and speak to a knowledgeable LDC representative on a variety of topics | B49: c) Bill query support - consumption analysis | C49: Queries regarding service lay-out requests, power outage or partial power are discussed with the Operations Staff.
B50: d) Account setup and configuration
B51: e) Bill payments | C51: CSR's assist consumers with queries such as understanding the bill and reviewing electricity usage queries. For example, CSR's can print interval data for a specified period and present to customers information showing when their consumption appears irregular (high/low). This assists customers in understanding TOU periods and rates.
B52: f) Customer/developer initiated expansion and construction
C53: EEDO management hold weekly team meetings with CSR staff to inform them of changes in the industry and also participate in utility collaborative meetings to further discuss changes and share best practices.
B54: Knowledgeable customer service representatives engage with EEDO customers on a daily basis through a number of direct customer service interactions – by telephone, email, mail, and face-to-face. Although EEDO continues to identify opportunities to shift services to on-line services, EEDO has been open to provide in person accessible customer service.
B56: EEDO averages approximately 15,000 customer calls annually.
A57: Customer Service - In-Office - Pandemic Response | B57: In its pandemic response, EEDO closed its doors to the public but shifted to accommodate changes in customer interactions (from in person to increased calls). EEDO has received approximately 1900 additional calls in 2020 and 2021 (13% increase) but has continued to maintain call answered percentages above OEB industry targets. | C57: As the office remains closed, EEDO has prioritized call answer performance as a customer service target to ensure that staff remain available to address customer concerns and provide options for bill payments, financial support and payment arrangements.
A59: On March 17 2020, EEDO closed its office due to the COVID-19 pandemic and public health guidelines. Customers, contractors and suppliers were not allowed to enter the LDC's building. | B59: While EEDO continues to receive increased phone calls, customers want to be able to access services on-line and on their own schedule in order to address account changes, bill inquiries and changes in the industry. | C59: Further information regarding improved digital and self-service can be found in the Biennial Customer Satisfaction Survey - Residential and Small Business customers section above
B61: - Online self-serve option for managing your account and usage; and,
B62: - Online self-serve options for requesting services.
A63: Customer Support - Financial Assistance Programs | B63: EEDO provides support through the United Way with the province's Low-income Energy Assistance Program (LEAP). These emergency financial assistance programs are designed to help low-income customers who have difficulty making their electricity bill payments. | C63: EEDO continues to promote financial assistance programs that are available to assist low-income customers through social media, the LDC's website, telephone calls and e-mails as well as bill inserts
A65: a) Low-Income Emergency Assistance Program (LEAP) | B65: EEDO actively promotes the Ontario Electricity Support Program (OESP) to customers through bill notifications and email/telephone correspondence.
A66: b) Ontario Electricity Support Program
A67: (c) Affordability Fund Trust (AFT) | B67: EEDO promoted the Affordability Fund Trust program (2018-2021) assisting approximately 70 customers. Promotion is through social media, bill inserts and EEDO's website.
A68: (d) COVID-19 Emergency Assistance Program (CEAP)
A69: (e) COVID-19 Emergency Assistance Program - Small Business (CEAP-SB) | B69: EEDO has promoted the COVID-19 Emergency Assistance Program (CEAP) through social media, EEDO's website as well as mentioning the program to customers when they telephone or e-mail.
A70: Conservation - Participation in conservation programs - Business | B70: Customers have provided clear feedback that they need clear, and up to date, information on the ever-changing conservation programs and initiatives available | C70: While EEDO administered Conservation First Framework and the Save on Energy programs, EEDO was active in its local community through promotion and education of business customers to determine their needs, as well as the programs available for them to participate. Including; energy conservation and the value it provides customers. EEDO remained ahead of the CFF targets.
C72: Support was offered to assist customers, identify projects, complete program applications, and implement energy conservation projects.
A73: Customer Collaboration - Customer Demand Work | B73: Customer require new services, service upgrades, increased transformation, service new developments including subdivisions | C73: EEDO will continue to maintain this service, provide digital options for project intake and working with customers to address supply chain issues (i.e. transformers) and low cost installation (through alternate bids)
A74: Customer Collaboration - Engineering Customer Engagement Activities | B74: Engineering staff regularly consult with, listen to and engage customers regarding specific projects such as pole replacements or padmount transformer locations, generation installation and new connections. | C74: Some specific examples of customer preference affecting project outcomes:
C75: 1. MicroFit Contract management and net metering setup
B76: EEDO also attends the Town of Collingwood development meetings to ensure we are updated on future expansion and growth. | C76: 2. A customer has engaged EPCOR regarding a hydro pole that requires relocation from legacy installation on private property.
C77: to accommodate the construction of a deck by customer
C78: 3. A customer has approached EPCOR regarding the relocation one of our an anchor that is located on private property.
A79: Customer Collaboration - Commercial & Industrial consumer interaction - DER | B79: Large customers are looking to implement emerging DER technologies in order to reduce peak demand and save energy. EEDO works with these customers to help efficiently complete projects and navigate the emerging regulatory landscape and technical requirements. | C79: As the regulatory framework evolves through the integration of distributed energy resources, EEDO continues to work with customers on new and emerging technology projects and build internal processes in order to improve project timing.
C81: As an embedded distributor, EEDO acts as a liaison between the customer and Hydro One to help navigate requirements and configuration.
C83: EEDO has supported the implementation of two large battery energy storage system (BESS) projects in its distribution area that are creating the ability to curtail approximately 7.5MW of demand during peak hours.
A84: Collaboration - Regional Planning Engagements/Hydro One | B84: EEDO regularly participates in: | C84: These meetings provide opportunity to bring forward customer feedback and LDC concerns regarding growth and expansion to ensure any upstream requirements are communicated.
B85: a) IESO regional planning meetings
B86: b) Hydro One planning meetings

Sheet App.2-B_Acctg Instructions (hidden)
A1: General Instructions to MIFRS Appendices
A2: Types of Schedules to File
A4: The purpose of this tab is to provide general instructions. The specific instructions to each appendix are listed in footnotes of each appendix.
A6: The typical applicant is expected to have made capitalization and depreciation policy changes under CGAAP as permitted by the OEB on January 1, 2012 or mandated by the OEB by January 1, 2013, and adopted IFRS for reporting purposes on January 1, 2015 (transition date January 1, 2014). Most distributors filing for 2021 rates have rebased with these accounting changes reflected in a prior rebasing application. If that is the case, information relating to pre-accounting policy changes is not generally required. Most distributors may have rebased under MIFRS. If that is the case, information related to the accounting standard used prior to IFRS is not generally required. The information to be provided by applicants will depend on when the accounting policy changes were made and when they last rebased. In general, applicants should provide the following information in the appendices:
E9: Reflecting Accounting Policy Changes in Current Application | G9: Reflected Accounting Policy Changes in Prior Application3 | H9: Rebased under MIFRS in Prior Application3
E10: Accounting Policy Changes in 2012 and Adopted IFRS in 2015 | F10: Accounting Policy Changes in 2013 and Adopted IFRS in 2015 | G10: Adopted IFRS in 2015 | H10: IFRS Since 2015
B11: 2021 | C11: Test | E11: MIFRS | F11: MIFRS | G11: MIFRS | H11: MIFRS
A12: Information to be filed in 2019 CoS Application | B12: 2020 | C12: Bridge | E12: MIFRS | F12: MIFRS | G12: MIFRS | H12: MIFRS
B13: 2019 | C13: Bridge | E13: MIFRS | F13: MIFRS | G13: MIFRS | H13: MIFRS
B14: 2018 | C14: Bridge | E14: MIFRS | F14: MIFRS | G14: MIFRS | H14: MIFRS
B15: 2017 | C15: Historical | E15: MIFRS | F15: MIFRS | G15: MIFRS | H15: MIFRS
B16: 2016 | C16: Historical | E16: MIFRS | F16: MIFRS | G16: MIFRS | H16: MIFRS
B17: 2015 | C17: Historical | E17: MIFRS and Revised CGAAP1 | F17: MIFRS and Revised CGAAP1 | G17: MIFRS and Revised CGAAP1 | H17: N/A
B18: 2014 | C18: Historical | E18: Revised CGAAP | F18: CGAAP and Revised CGAAP2 | G18: N/A | H18: N/A
B19: 2013 | C19: Historical | E19: CGAAP and Revised CGAAP2 | F19: N/A | G19: N/A | H19: N/A
A21: 1) For the transition year (2014), the applicant may file two appendices, one under Revised CGAAP and one under MIFRS, depending on the materiality of impacts. See the specific instructions under each appendix below for further details.
A22: 2) For applicants that are reflecting accounting policy changes for the first time in a rebasing application, the applicant must file two appendices in the year that the applicant implemented changes to its capitalization and depreciation policies (2012 or 2013), one before and one after the policy changes.
A23: 3) Applicants should provide CGAAP and Revised CGAAP schedules (i.e. as indicated in the first two columns of the above table) to support balances in Account 1576 if the account has yet to be disposed of.
A26: Appendix 2-BA - Fixed Asset Schedule
A28: Applicants are to provide Appendix 2-BA in accordance with the years and corresponding accounting standards noted in the above table to provide a year over year continuity in fixed assets.
A29: If this is the first application where the applicant is rebasing under MIFRS, the applicant should file two appendices, one under Revised CGAAP and one under MIFRS for the transition year (2014), if the change between Revised CGAAP and MIFRS is material. If the change from the accounting standards is not material, the applicant may choose to only provide one appendix under MIFRS. However, the applicant must also indicate the fixed asset net book value balance under Revised CGAAP, the total dollar value of the change and explain why it is not material.
A33: The applicant must establish the continuity of historical cost for gross assets and accumulated depreciation by asset class by ensuring that the opening balance in the year agrees to the closing balance in the prior year.
A36: Appendix 2-Cx - Depreciation and Amortization
A38: Applicants are to provide Appendix 2-C in accordance with the years and corresponding accounting standards listed in the above table.
A39: Appendix 2-C is to be used under all of the scenarios presented in the table above. In the appendix, the applicant will need to indicate which scenario applies. The appendix is to be duplicated for each year and for each accounting standard required as per the above table.
A40: Depreciation accounting policy changes were mandated by the OEB by January 1, 2013. In general, no further changes to an applicant's depreciation policy (i.e. assets' service lives) are expected after the OEB mandated changes by January 1, 2013, unless a change is determined to be necessary in accordance with the depreciation review required under IFRS. If the applicant has made any changes to its depreciation policy subsequent to the OEB mandated changes, for the year of the change, applicants must quantify the change in depreciation. If there are significant changes to multiple asset classes, the applicant must complete Appendix 2-C before and after the change. Applicants must also explain the nature of the change, the reason for the change, quantify the impact of the change.
A42: Appendix 2-E - Account 1575, IFRS-CGAAP Transitional PP&E Amounts (2-EA), Account 1576, Accounting Changes Under CGAAP (2-EB, 2-EC) CONTACT OEB STAFF IF TAB REQUIRED
A44: 1) For an applicant that has a balance in Account 1576 to dispose:
A45: · | B45: If an applicant changed capitalization and depreciation policies effective January 1, 2012, the applicant must complete Appendix 2-EB
A46: · | B46: If an applicant changed capitalization and depreciation policies effective January 1, 2013, the applicant must complete Appendix 2-EC
A48: 2) For an applicant that has a balance in Account 1575 to dispose:
A49: · | B49: The applicant must complete 2-EA
A50: If the applicant did not make any further PP&E accounting policy changes beyond the capitalization and depreciation policy changes as mandated by the OEB by January 1, 2013 (i.e. no further changes made on transition to IFRS), the applicant must indicate this and does not need to complete Appendix 2-EA.
A54: Appendix 2-Y - Summary of Impacts to Revenue Requirement from Transition to MIFRS CONTACT OEB STAFF IF TAB REQUIRED
A56: Applicants must complete Appendix 2-Y if this is the first rebasing application under MIFRS. An applicant must provide a summary of the dollar impacts of MIFRS to each component of the revenue requirement (e.g. rate base, operating costs, etc.), including the overall impact on the proposed revenue requirement. Accordingly, the applicant must identify financial differences and resulting revenue requirement impacts arising from the adoption of MIFRS as compared to CGAAP. If the applicant is reflecting the changes in capitalization and depreciation policies for the first time in a rebasing application as well, then a comparison between MIFRS and CGAAP before the change in accounting policies should be completed. If the applicant changed capitalization and depreciation policies and reflected these changes in a prior rebasing application, then a comparison between MIFRS and CGAAP after the change in accounting policies should be completed.

Sheet App.2-BA_Fixed Asset Cont
L1: File Number: | M1: =EBNUMBER -> EB-2022-0028
L2: Exhibit: | M2: 2
L3: Tab: | M3: 1
L4: Schedule: | M4: 1
L5: Page: | M5: 9
L7: Date: | M7: 2022-07-11
A9: Appendix 2-BA
A10: Fixed Asset Continuity Schedule 1
E12: Accounting Standard | F12: CGAAP
E13: Year | F13: 2013
D15: Cost | J15: Accumulated Depreciation
A16: CCA Class 2 | B16: OEB Account 3 | C16: Description 3 | D16: Opening Balance 8 | E16: Additions 4 | F16: Disposals 6 | G16: Closing Balance | I16: Opening Balance 8 | J16: Additions | K16: Disposals 6 | L16: Closing Balance | M16: Net Book Value
B17: 1609 | C17: Capital Contributions Paid | D17: 0 | E17: 0 | F17: 0 | G17: =D17+E17+F17 -> 0 | I17: 0 | J17: 0 | K17: 0 | L17: =I17+J17+K17 -> 0 | M17: =G17+L17 -> 0
A18: 12 | B18: 1611 | C18: Computer Software (Formally known as Account 1925) | D18: 515602.98 | E18: 37001.15 | F18: 0 | G18: =D18+E18+F18 -> 552604.13 | I18: -415162.98 | J18: -92780.54 | K18: 0 | L18: =I18+J18+K18 -> -507943.52 | M18: =G18+L18 -> 44660.61
A19: CEC | B19: 1612 | C19: Land Rights (Formally known as Account 1906) | D19: 0 | E19: 0 | F19: 0 | G19: 0 | I19: 0 | J19: 0 | K19: 0 | L19: =I19+J19+K19 -> 0 | M19: 0
A20: N/A | B20: 1805 | C20: Land | D20: 456548.3 | E20: 0 | F20: 0 | G20: 456548.3 | I20: 0 | J20: 0 | K20: 0 | L20: =I20+J20+K20 -> 0 | M20: 456548.3
A21: 47 | B21: 1808 | C21: Buildings | D21: 446277.24 | E21: 0 | F21: 0 | G21: 446277.24 | I21: -40559.24 | J21: -9269.42 | K21: 0 | L21: =I21+J21+K21 -> -49828.66 | M21: 396448.58
A22: 13 | B22: 1810 | C22: Leasehold Improvements | D22: 0 | E22: 0 | F22: 0 | G22: 0 | I22: 0 | J22: 0 | K22: 0 | L22: 0 | M22: 0
A23: 47 | B23: 1815 | C23: Transformer Station Equipment >50 kV | D23: 0 | E23: 0 | F23: 0 | G23: 0 | I23: 0 | J23: 0 | K23: 0 | L23: 0 | M23: 0
A24: 47 | B24: 1820 | C24: Distribution Station Equipment <50 kV | D24: 5329945.14 | E24: 0 | F24: 0 | G24: 5329945.14 | I24: -1900761.14 | J24: -134224.83 | K24: 0 | L24: -2034985.97 | M24: 3294959.17
A25: 47 | B25: 1825 | C25: Storage Battery Equipment | D25: 0 | E25: 0 | F25: 0 | G25: 0 | I25: 0 | J25: 0 | K25: 0 | L25: 0 | M25: 0
A26: 47 | B26: 1830 | C26: Poles, Towers & Fixtures | D26: 8258211.185 | E26: 383453.43 | F26: -84742.63 | G26: 8556921.985 | I26: -84172.65 | J26: -163380.71 | K26: 73851.44 | L26: -173701.92 | M26: 8383220.065
A27: 47 | B27: 1835 | C27: Overhead Conductors & Devices | D27: 4904588.365 | E27: 128928.27 | F27: -27160.51 | G27: 5006356.125 | I27: -6872095.9 | J27: -106859.54 | K27: 24444.45 | L27: -6954510.99 | M27: -1948154.865
A28: 47 | B28: 1840 | C28: Underground Conduit | D28: 1910293.38 | E28: 27076.22 | F28: -3155.1 | G28: 1934214.5 | I28: 0 | J28: -21012.62 | K28: 2872.3 | L28: -18140.32 | M28: 1916074.18
A29: 47 | B29: 1845 | C29: Underground Conductors & Devices | D29: 6644903.9 | E29: 162141.88 | F29: -4864.56 | G29: 6802181.22 | I29: -4833953.28 | J29: -115565.43 | K29: 4428.53 | L29: -4945090.18 | M29: 1857091.04
A30: 47 | B30: 1850 | C30: Line Transformers | D30: 5691652.65 | E30: 75058.98 | F30: -9404.78 | G30: 5757306.85 | I30: -2993927.25 | J30: -111947.36 | K30: 8934.86 | L30: -3096939.75 | M30: 2660367.1
A31: 47 | B31: 1855 | C31: Services (Overhead & Underground) | D31: 1093865.28 | E31: 132608 | F31: 0 | G31: 1226473.28 | I31: -227719.28 | J31: -31168.32 | K31: 0 | L31: -258887.6 | M31: 967585.68
A32: 47 | B32: 1860 | C32: Meters | D32: 491704.59 | E32: 18782.93 | F32: 0 | G32: 510487.52 | I32: -86723.24 | J32: -33385.63 | K32: 0 | L32: -120108.87 | M32: 390378.65
A33: 47 | B33: 1860 | C33: Meters (Smart Meters) | D33: 2606507.23 | E33: 172773.54 | F33: -388107.08 | G33: 2391173.69 | I33: -644029.73 | J33: -150956.33 | K33: 92299.97 | L33: -702686.09 | M33: 1688487.6
A34: N/A | B34: 1905 | C34: Land | D34: 0 | E34: 0 | F34: 0 | G34: 0 | I34: 0 | J34: 0 | K34: 0 | L34: 0 | M34: 0
A35: 47 | B35: 1908 | C35: Buildings & Fixtures | D35: 47865 | E35: 0 | F35: 0 | G35: 47865 | I35: -44675 | J35: -26.95 | K35: 0 | L35: -44701.95 | M35: 3163.05
A36: 13 | B36: 1910 | C36: Leasehold Improvements | D36: 0 | E36: 0 | F36: 0 | G36: 0 | I36: 0 | J36: 0 | K36: 0 | L36: 0 | M36: 0
A37: 8 | B37: 1915 | C37: Office Furniture & Equipment (10 years) | D37: 208008.86 | E37: 18040.21 | F37: 0 | G37: 226049.07 | I37: -142556.86 | J37: -12663.46 | K37: 0 | L37: -155220.32 | M37: 70828.75
A38: 8 | B38: 1915 | C38: Office Furniture & Equipment (5 years) | D38: 0 | E38: 0 | F38: 0 | G38: 0 | I38: 0 | J38: 0 | K38: 0 | L38: 0 | M38: 0
A39: 10 | B39: 1920 | C39: Computer Equipment - Hardware | D39: 18014.09 | E39: 4951.19 | F39: 0 | G39: 22965.28 | I39: -12009.09 | J39: -6830.2 | K39: 0 | L39: -18839.29 | M39: 4125.99
A40: 45 | B40: 1920 | C40: Computer Equip.-Hardware(Post Mar. 22/04) | D40: 0 | E40: 0 | F40: 0 | G40: 0 | I40: 0 | J40: 0 | K40: 0 | L40: 0 | M40: 0
A41: 50 | B41: 1920 | C41: Computer Equip.-Hardware(Post Mar. 19/07) | D41: 0 | E41: 0 | F41: 0 | G41: 0 | I41: 0 | J41: 0 | K41: 0 | L41: 0 | M41: 0
A42: 10 | B42: 1930 | C42: Transportation Equipment | D42: 1874847.34 | E42: 164943.44 | F42: -97998.23 | G42: 1941792.55 | I42: -1006148.84 | J42: -195949.5 | K42: 97998.23 | L42: -1104100.11 | M42: 837692.44
A43: 8 | B43: 1935 | C43: Stores Equipment | D43: 12000 | E43: 5482.15 | F43: 0 | G43: 17482.15 | I43: -3600 | J43: -1473.64 | K43: 0 | L43: -5073.64 | M43: 12408.51
A44: 8 | B44: 1940 | C44: Tools, Shop & Garage Equipment | D44: 0 | E44: 0 | F44: 0 | G44: 0 | I44: 0 | J44: 0 | K44: 0 | L44: 0 | M44: 0
A45: 8 | B45: 1945 | C45: Measurement & Testing Equipment | D45: 51800 | E45: 0 | F45: 0 | G45: 51800 | I45: -51800 | J45: 0 | K45: 0 | L45: -51800 | M45: 0
A46: 8 | B46: 1950 | C46: Power Operated Equipment | D46: 37260 | E46: 0 | F46: 0 | G46: 37260 | I46: -33534 | J46: -3726 | K46: 0 | L46: -37260 | M46: 0
A47: 8 | B47: 1955 | C47: Communications Equipment | D47: 71751.41 | E47: 7279.49 | F47: 0 | G47: 79030.9 | I47: -63271.41 | J47: -3829.98 | K47: 0 | L47: -67101.39 | M47: 11929.51
A48: 8 | B48: 1955 | C48: Communication Equipment (Smart Meters) | D48: 0 | E48: 0 | F48: 0 | G48: 0 | I48: 0 | J48: 0 | K48: 0 | L48: 0 | M48: 0
A49: 8 | B49: 1960 | C49: Miscellaneous Equipment | D49: 239173.56 | E49: 0 | F49: 0 | G49: 239173.56 | I49: -217357.56 | J49: -3534.31 | K49: 0 | L49: -220891.87 | M49: 18281.69
A50: 47 | B50: 1970 | C50: Load Management Controls Customer Premises | D50: 0 | E50: 0 | F50: 0 | G50: 0 | I50: 0 | J50: 0 | K50: 0 | L50: 0 | M50: 0
A51: 47 | B51: 1975 | C51: Load Management Controls Utility Premises | D51: 0 | E51: 0 | F51: 0 | G51: 0 | I51: 0 | J51: 0 | K51: 0 | L51: 0 | M51: 0
A52: 47 | B52: 1980 | C52: System Supervisor Equipment | D52: 672850.48 | E52: 13410.95 | F52: 0 | G52: 686261.43 | I52: -391830.48 | J52: -35717.42 | K52: 0 | L52: -427547.9 | M52: 258713.53
A53: 47 | B53: 1985 | C53: Miscellaneous Fixed Assets | D53: 0 | E53: 0 | F53: 0 | G53: 0 | I53: 0 | J53: 0 | K53: 0 | L53: 0 | M53: 0
A54: 47 | B54: 1990 | C54: Other Tangible Property | D54: 0 | E54: 138107.41 | F54: 0 | G54: 138107.41 | I54: 0 | J54: 0 | K54: 0 | L54: 0 | M54: 138107.41
A55: 47 | B55: 1995 | C55: Contributions & Grants | D55: -10571213.85 | E55: -323111.27 | F55: 0 | G55: -10894325.12 | I55: 4307640.13 | J55: 188565.18 | K55: 0 | L55: 4496205.31 | M55: -6398119.81
A56: 47 | B56: 2055 | C56: Construction Work in Process | D56: 26532.72 | E56: 28549.89 | F56: 0 | G56: 55082.61 | I56: 0 | J56: 0 | K56: 0 | L56: =I56+J56+K56 -> 0 | M56: 55082.61
A57: 47 | B57: 2440 | C57: Deferred Revenue5 | D57: 0 | E57: 0 | F57: 0 | G57: 0 | I57: 0 | J57: 0 | K57: 0 | L57: =I57+J57+K57 -> 0 | M57: 0
B58: 2005 | C58: Property Under Finance Lease7 | D58: 0 | E58: 0 | F58: 0 | G58: 0 | I58: 0 | J58: 0 | K58: 0 | L58: 0 | M58: 0
C59: Sub-Total | D59: =SUM(D17:D58) -> 31038989.85 | E59: =SUM(E17:E58) -> 1195477.86 | F59: =SUM(F17:F58) -> -615432.89 | G59: =SUM(G17:G58) -> 31619034.82 | I59: =SUM(I17:I58) -> -15758247.8 | J59: =SUM(J17:J58) -> -1045737.01 | K59: =SUM(K17:K58) -> 304829.78 | L59: =SUM(L17:L58) -> -16499155.03 | M59: =SUM(M17:M58) -> 15119879.79
C60: Less Socialized Renewable Energy Generation Investments (input as negative) | G60: =D60+E60+F60 -> 0 | L60: =I60+J60+K60 -> 0 | M60: =G60+L60 -> 0
C61: Less Other Non Rate-Regulated Utility Assets (input as negative) | G61: =D61+E61+F61 -> 0 | L61: =I61+J61+K61 -> 0 | M61: =G61+L61 -> 0
C62: Total PP&E | D62: =SUM(D59:D61) -> 31038989.85 | E62: =SUM(E59:E61) -> 1195477.86 | F62: =SUM(F59:F61) -> -615432.89 | G62: =SUM(G59:G61) -> 31619034.82 | I62: =SUM(I59:I61) -> -15758247.8 | J62: =SUM(J59:J61) -> -1045737.01 | K62: =SUM(K59:K61) -> 304829.78 | L62: =SUM(L59:L61) -> -16499155.03 | M62: =SUM(M59:M61) -> 15119879.79
C63: Depreciation Expense adj. from gain or loss on the retirement of assets (pool of like assets), if applicable6
C64: Total | J64: =J62+J63 -> -1045737.01
D65: 31038989.85 | E65: 1195477.86 | F65: -615432.89 | G65: 31619034.82 | H65: 0 | I65: -15758247.8 | J65: -1045737.01 | K65: 304829.78 | L65: -16499155.03 | M65: 15119879.79
D66: =D65-D62 -> 0 | E66: =E65-E62 -> 0 | F66: 0 | G66: 0 | H66: 0 | I66: 0 | J66: 0 | K66: 0 | L66: 0 | M66: 0
I68: Less: Fully Allocated Depreciation
A69: 10 | C69: Transportation | I69: Transportation | K69: =J42 -> -195949.5
A70: 8 | C70: Stores Equipment | I70: Stores Equipment
A71: 47 | C71: Deferred Revenue | I71: Deferred Revenue | K71: =J55 -> 188565.18
I72: Net Depreciation | K72: =J64-K69-K70-K71 -> -1038352.69
A74: Notes:
A76: 1 | B76: Tables in the format outlined above covering all fixed asset accounts should be submitted for the Test Year, Bridge Year and all relevant historical years. At a minimum , the applicant must provide data for the earlier of: 1) all historical years back to its last rebasing; or 2) at least three years of historical actuals, in addition to Bridge Year and Test Year forecasts. If this is the first application where the applicant is rebasing under MIFRS, contact OEB staff for further guidance on the appropriate fixed asset continuity schedules to complete (i.e. applicable years and accounting standard for each schedule).
A79: 2 | B79: The "CCA Class" for fixed assets should generally agree with the CCA Class used for tax purposes in Tax Returns. Fixed Assets sub-components may be used where the underlying asset components are classified under multiple CCA Classes for tax purposes. If an applicant uses any different classes from those shown in the table, an explanation should be provided. (also see note 3).
A82: 3 | B82: The table may need to be customized for a utility's asset categories or for any new asset accounts announced or authorized by the OEB.
A84: 4 | B84: The additions in column (E) must not include construction work in progress (CWIP).
A86: 5 | B86: Effective on the date of IFRS adoption, customer contributions will no longer be recorded in Account 1995 Contributions & Grants, but will be recorded in Account 2440, Deferred Revenues. Amortization of deferred revenue will be removed from the depreciation expense shown on this fixed asset continuity schedule as it should be included as income in Appendix 2-H Other Revenues.
A88: 6 | B88: The applicant must ensure that all asset disposals have been clearly identified in the Chapter 2 Appendices for all historic, bridge and test years. Where a distributor for general financial reporting purposes under IFRS has accounted for the amount of gain or loss on the retirement of assets in a pool of like assets as a charge or credit to income, for reporting and rate application filings, the distributor shall reclassify such gains and losses as depreciation expense, and disclose the amount separately.
A92: 7 | B92: This account includes the amount recorded under finance leases for plant leased from others and used by the utility in its utility operations.
A94: 8 | B94: The applicant must establish the continuity of historical cost for gross assets and accumulated depreciation by asset class by ensuring that the opening balance in the year agrees to the closing balance in the prior year.
E99: Accounting Standard | F99: CGAAP
E100: Year | F100: 2014
D102: Cost | J102: Accumulated Depreciation
A103: CCA Class 2 | B103: OEB Account 3 | C103: Description 3 | D103: Opening Balance 8 | E103: Additions 4 | F103: Disposals 6 | G103: Closing Balance | I103: Opening Balance 8 | J103: Additions | K103: Disposals 6 | L103: Closing Balance | M103: Net Book Value
B104: 1609 | C104: Capital Contributions Paid | D104: 0 | E104: 0 | F104: 0 | G104: =D104+E104+F104 -> 0 | I104: 0 | J104: 0 | K104: 0 | L104: =I104+J104+K104 -> 0 | M104: =G104+L104 -> 0
A105: 12 | B105: 1611 | C105: Computer Software (Formally known as Account 1925) | D105: 552604.13 | E105: 51314.4 | F105: 0 | G105: =D105+E105+F105 -> 603918.53 | I105: -507943.52 | J105: -21990.09 | K105: 0 | L105: =I105+J105+K105 -> -529933.61 | M105: 73984.92
A106: CEC | B106: 1612 | C106: Land Rights (Formally known as Account 1906) | D106: 0 | E106: 0 | F106: 0 | G106: 0 | I106: 0 | J106: 0 | K106: 0 | L106: =I106+J106+K106 -> 0 | M106: 0
A107: N/A | B107: 1805 | C107: Land | D107: 456548.3 | E107: 0 | F107: 0 | G107: 456548.3 | I107: 0 | J107: 0 | K107: 0 | L107: =I107+J107+K107 -> 0 | M107: 456548.3
A108: 47 | B108: 1808 | C108: Buildings | D108: 446277.24 | E108: 0 | F108: 0 | G108: 446277.24 | I108: -43608.59578 | J108: -9269.42 | K108: 0 | L108: =I108+J108+K108 -> -52878.01578 | M108: 393399.2242
A109: 13 | B109: 1810 | C109: Leasehold Improvements | D109: 0 | E109: 0 | F109: 0 | G109: 0 | I109: 0 | J109: 0 | K109: 0 | L109: 0 | M109: 0
A110: 47 | B110: 1815 | C110: Transformer Station Equipment >50 kV | D110: 0 | E110: 0 | F110: 0 | G110: 0 | I110: 0 | J110: 0 | K110: 0 | L110: 0 | M110: 0
A111: 47 | B111: 1820 | C111: Distribution Station Equipment <50 kV | D111: 5329945.14 | E111: 106412.35 | F111: 0 | G111: 5436357.49 | I111: -2038609.342 | J111: -135554.94 | K111: 0 | L111: -2174164.282 | M111: 3262193.208
A112: 47 | B112: 1825 | C112: Storage Battery Equipment | D112: 0 | E112: 0 | F112: 0 | G112: 0 | I112: 0 | J112: 0 | K112: 0 | L112: 0 | M112: 0
A113: 47 | B113: 1830 | C113: Poles, Towers & Fixtures | D113: 8556921.985 | E113: 802437.45 | F113: -61762.62 | G113: 9297596.815 | I113: -4413425.36 | J113: -175329.12 | K113: 44564.8 | L113: -4544189.68 | M113: 4753407.136
A114: 47 | B114: 1835 | C114: Overhead Conductors & Devices | D114: 5006356.125 | E114: 64947.83 | F114: -17168.57 | G114: 5054135.385 | I114: -2714787.552 | J114: -108441.52 | K114: 16023.99 | L114: -2807205.082 | M114: 2246930.302
A115: 47 | B115: 1840 | C115: Underground Conduit | D115: 1934214.5 | E115: 25204.92 | F115: -4325.44 | G115: 1955093.98 | I115: -1182407.528 | J115: -21503.13 | K115: 3970.02 | L115: -1199940.638 | M115: 755153.3416
A116: 47 | B116: 1845 | C116: Underground Conductors & Devices | D116: 6802181.22 | E116: 102246.08 | F116: -7658.74 | G116: 6896768.56 | I116: -3780822.969 | J116: -118698.79 | K116: 7143.76 | L116: -3892377.999 | M116: 3004390.561
A117: 47 | B117: 1850 | C117: Line Transformers | D117: 5757306.85 | E117: 89941.43 | F117: -15013.64 | G117: 5832234.64 | I117: -3096939.75 | J117: -113759.84 | K117: 11790.72 | L117: -3198908.87 | M117: 2633325.77
A118: 47 | B118: 1855 | C118: Services (Overhead & Underground) | D118: 1226473.28 | E118: 148688.37 | F118: -19600 | G118: 1355561.65 | I118: -258887.6 | J118: -34684.53 | K118: 19600 | L118: -273972.13 | M118: 1081589.52
A119: 47 | B119: 1860 | C119: Meters | D119: 510487.52 | E119: 22505.88 | F119: 0 | G119: 532993.4 | I119: -120108.87 | J119: -34761.93 | K119: 0 | L119: -154870.8 | M119: 378122.6
A120: 47 | B120: 1860 | C120: Meters (Smart Meters) | D120: 2391173.69 | E120: 213185.58 | F120: -244826 | G120: 2359533.27 | I120: -702686.09 | J120: -147818.48 | K120: 67831 | L120: -782673.57 | M120: 1576859.7
A121: N/A | B121: 1905 | C121: Land | D121: 0 | E121: 0 | F121: 0 | G121: 0 | I121: 0 | J121: 0 | K121: 0 | L121: 0 | M121: 0
A122: 47 | B122: 1908 | C122: Buildings & Fixtures | D122: 47865 | E122: 0 | F122: 0 | G122: 47865 | I122: -47298.64249 | J122: -26.95 | K122: 0 | L122: -47325.59249 | M122: 539.4075098
A123: 13 | B123: 1910 | C123: Leasehold Improvements | D123: 0 | E123: 0 | F123: 0 | G123: 0 | I123: 0 | J123: 0 | K123: 0 | L123: 0 | M123: 0
A124: 8 | B124: 1915 | C124: Office Furniture & Equipment (10 years) | D124: 226049.07 | E124: 9437.31 | F124: 0 | G124: 235486.38 | I124: -155220.32 | J124: -14037.36 | K124: 0 | L124: -169257.68 | M124: 66228.7
A125: 8 | B125: 1915 | C125: Office Furniture & Equipment (5 years) | D125: 0 | E125: 0 | F125: 0 | G125: 0 | I125: 0 | J125: 0 | K125: 0 | L125: 0 | M125: 0
A126: 10 | B126: 1920 | C126: Computer Equipment - Hardware | D126: 22965.28 | E126: 3654.19 | F126: 0 | G126: 26619.47 | I126: -18839.29 | J126: -2259.44 | K126: 0 | L126: -21098.73 | M126: 5520.74
A127: 45 | B127: 1920 | C127: Computer Equip.-Hardware(Post Mar. 22/04) | D127: 0 | E127: 0 | F127: 0 | G127: 0 | I127: 0 | J127: 0 | K127: 0 | L127: 0 | M127: 0
A128: 50 | B128: 1920 | C128: Computer Equip.-Hardware(Post Mar. 19/07) | D128: 0 | E128: 0 | F128: 0 | G128: 0 | I128: 0 | J128: 0 | K128: 0 | L128: 0 | M128: 0
A129: 10 | B129: 1930 | C129: Transportation Equipment | D129: 1941792.55 | E129: 262917.88 | F129: -148899.6 | G129: 2055810.83 | I129: -1104100.11 | J129: -219593.59 | K129: 148899.6 | L129: -1174794.1 | M129: 881016.73
A130: 8 | B130: 1935 | C130: Stores Equipment | D130: 17482.15 | E130: 6773.5 | F130: 0 | G130: 24255.65 | I130: -5073.64 | J130: -2086.43 | K130: 0 | L130: -7160.07 | M130: 17095.58
A131: 8 | B131: 1940 | C131: Tools, Shop & Garage Equipment | D131: 0 | E131: 0 | F131: 0 | G131: 0 | I131: 0 | J131: 0 | K131: 0 | L131: 0 | M131: 0
A132: 8 | B132: 1945 | C132: Measurement & Testing Equipment | D132: 51800 | E132: 27237.81 | F132: -51800 | G132: 27237.81 | I132: -51800 | J132: -1361.9 | K132: 51800 | L132: -1361.9 | M132: 25875.91
A133: 8 | B133: 1950 | C133: Power Operated Equipment | D133: 37260 | E133: 4866.8 | F133: 0 | G133: 42126.8 | I133: -37260 | J133: -243.34 | K133: 0 | L133: -37503.34 | M133: 4623.46
A134: 8 | B134: 1955 | C134: Communications Equipment | D134: 79030.9 | E134: 20866 | F134: 0 | G134: 99896.9 | I134: -67101.39 | J134: -4997.27 | K134: 0 | L134: -72098.66 | M134: 27798.24
A135: 8 | B135: 1955 | C135: Communication Equipment (Smart Meters) | D135: 0 | E135: 0 | F135: 0 | G135: 0 | I135: 0 | J135: 0 | K135: 0 | L135: 0 | M135: 0
A136: 8 | B136: 1960 | C136: Miscellaneous Equipment | D136: 239173.56 | E136: 0 | F136: 0 | G136: 239173.56 | I136: -220891.87 | J136: -3534.32 | K136: 0 | L136: -224426.19 | M136: 14747.37
A137: 47 | B137: 1970 | C137: Load Management Controls Customer Premises | D137: 0 | E137: 0 | F137: 0 | G137: 0 | I137: 0 | J137: 0 | K137: 0 | L137: 0 | M137: 0
A138: 47 | B138: 1975 | C138: Load Management Controls Utility Premises | D138: 0 | E138: 0 | F138: 0 | G138: 0 | I138: 0 | J138: 0 | K138: 0 | L138: 0 | M138: 0
A139: 47 | B139: 1980 | C139: System Supervisor Equipment | D139: 686261.43 | E139: 13696.15 | F139: 0 | G139: 699957.58 | I139: -427547.9 | J139: -36620.99 | K139: 0 | L139: -464168.89 | M139: 235788.69
A140: 47 | B140: 1985 | C140: Miscellaneous Fixed Assets | D140: 0 | E140: 0 | F140: 0 | G140: 0 | I140: 0 | J140: 0 | K140: 0 | L140: 0 | M140: 0
A141: 47 | B141: 1990 | C141: Other Tangible Property | D141: 138107.41 | E141: 12006.58 | F141: -10025.41 | G141: 140088.58 | I141: 0 | J141: 0 | K141: 0 | L141: 0 | M141: 140088.58
A142: 47 | B142: 1995 | C142: Contributions & Grants | D142: -10894325.12 | E142: -351231.02 | F142: 26825.26 | G142: -11218730.88 | I142: 4496205.31 | J142: 196711.42 | K142: -26825.26 | L142: 4666091.47 | M142: -6552639.41
A143: 47 | B143: 2055 | C143: Construction Work in Process | D143: 55082.61 | E143: 164121.98 | F143: 0 | G143: 219204.59 | I143: 0 | J143: 0 | K143: 0 | L143: =I143+J143-K143 -> 0 | M143: 219204.59
A144: 47 | B144: 2440 | C144: Deferred Revenue5 | D144: 0 | E144: 0 | F144: 0 | G144: 0 | I144: 0 | J144: 0 | K144: 0 | L144: =I144+J144-K144 -> 0 | M144: 0
B145: 2005 | C145: Property Under Finance Lease7 | D145: 0 | E145: 0 | F145: 0 | G145: 0 | I145: 0 | J145: 0 | K145: 0 | L145: =I145+J145-K145 -> 0 | M145: 0
C146: Sub-Total | D146: =SUM(D104:D145) -> 31619034.82 | E146: =SUM(E104:E145) -> 1801231.47 | F146: =SUM(F104:F145) -> -554254.76 | G146: =SUM(G104:G145) -> 32866011.53 | I146: =SUM(I104:I145) -> -16499155.03 | J146: =SUM(J104:J145) -> -1009861.96 | K146: =SUM(K104:K145) -> 344798.63 | L146: =SUM(L104:L145) -> -17164218.36 | M146: =SUM(M104:M145) -> 15701793.17
C147: Less Socialized Renewable Energy Generation Investments (input as negative) | G147: =D147+E147+F147 -> 0 | L147: =I147+J147+K147 -> 0 | M147: =G147+L147 -> 0
C148: Less Other Non Rate-Regulated Utility Assets (input as negative) | G148: =D148+E148+F148 -> 0 | L148: =I148+J148+K148 -> 0 | M148: =G148+L148 -> 0
C149: Total PP&E | D149: =SUM(D146:D148) -> 31619034.82 | E149: =SUM(E146:E148) -> 1801231.47 | F149: =SUM(F146:F148) -> -554254.76 | G149: =SUM(G146:G148) -> 32866011.53 | I149: =SUM(I146:I148) -> -16499155.03 | J149: =SUM(J146:J148) -> -1009861.96 | K149: =SUM(K146:K148) -> 344798.63 | L149: =SUM(L146:L148) -> -17164218.36 | M149: =SUM(M146:M148) -> 15701793.17
C150: Depreciation Expense adj. from gain or loss on the retirement of assets (pool of like assets), if applicable6
C151: Total | J151: =J149+J150 -> -1009861.96
D152: 31619034.82 | E152: 1801231.47 | F152: -554254.76 | G152: 32866011.53 | H152: 0 | I152: -16499155.03 | J152: -1009861.96 | K152: 344798.63 | L152: -17164218.36 | M152: 15701793.17
D153: =D152-D149 -> 0 | E153: =E152-E149 -> 0 | F153: 0 | G153: 0 | H153: 0 | I153: 0 | J153: 0 | K153: 0 | L153: 0 | M153: 0
I155: Less: Fully Allocated Depreciation
A156: 10 | C156: Transportation | I156: Transportation | K156: =J129 -> -219593.59
A157: 8 | C157: Stores Equipment | I157: Stores Equipment
A158: 47 | C158: Deferred Revenue | I158: Deferred Revenue | K158: =J142 -> 196711.42
I159: Net Depreciation | K159: =J151-K156-K157-K158 -> -986979.79
A161: Notes:
A163: 1 | B163: Tables in the format outlined above covering all fixed asset accounts should be submitted for the Test Year, Bridge Year and all relevant historical years. At a minimum , the applicant must provide data for the earlier of: 1) all historical years back to its last rebasing; or 2) at least three years of historical actuals, in addition to Bridge Year and Test Year forecasts. If this is the first application where the applicant is rebasing under MIFRS, contact OEB staff for further guidance on the appropriate fixed asset continuity schedules to complete (i.e. applicable years and accounting standard for each schedule).
A166: 2 | B166: The "CCA Class" for fixed assets should generally agree with the CCA Class used for tax purposes in Tax Returns. Fixed Assets sub-components may be used where the underlying asset components are classified under multiple CCA Classes for tax purposes. If an applicant uses any different classes from those shown in the table, an explanation should be provided. (also see note 3).
A169: 3 | B169: The table may need to be customized for a utility's asset categories or for any new asset accounts announced or authorized by the OEB.
A171: 4 | B171: The additions in column (E) must not include construction work in progress (CWIP).
A173: 5 | B173: Effective on the date of IFRS adoption, customer contributions will no longer be recorded in Account 1995 Contributions & Grants, but will be recorded in Account 2440, Deferred Revenues. Amortization of deferred revenue will be removed from the depreciation expense shown on this fixed asset continuity schedule as it should be included as income in Appendix 2-H Other Revenues.
A175: 6 | B175: The applicant must ensure that all asset disposals have been clearly identified in the Chapter 2 Appendices for all historic, bridge and test years. Where a distributor for general financial reporting purposes under IFRS has accounted for the amount of gain or loss on the retirement of assets in a pool of like assets as a charge or credit to income, for reporting and rate application filings, the distributor shall reclassify such gains and losses as depreciation expense, and disclose the amount separately.
A179: 7 | B179: This account includes the amount recorded under finance leases for plant leased from others and used by the utility in its utility operations.
A181: 8 | B181: The applicant must establish the continuity of historical cost for gross assets and accumulated depreciation by asset class by ensuring that the opening balance in the year agrees to the closing balance in the prior year.
E186: Accounting Standard | F186: MIFRS
E187: Year | F187: 2014
D189: Cost | J189: Accumulated Depreciation
A190: CCA Class 2 | B190: OEB Account 3 | C190: Description 3 | D190: Opening Balance 8 | E190: Additions 4 | F190: Disposals 6 | G190: Closing Balance | I190: Opening Balance 8 | J190: Additions | K190: Disposals 6 | L190: Closing Balance | M190: Net Book Value
B191: 1609 | C191: Capital Contributions Paid | D191: 0 | E191: 0 | F191: 0 | G191: =D191+E191+F191 -> 0 | I191: 0 | J191: 0 | K191: 0 | L191: =I191+J191+K191 -> 0 | M191: =G191+L191 -> 0
A192: 12 | B192: 1611 | C192: Computer Software (Formally known as Account 1925) | D192: 44660.61 | E192: 51314.4 | F192: 0 | G192: =D192+E192+F192 -> 95975.01 | I192: 0 | J192: -21990.09 | K192: 0 | L192: =I192+J192+K192 -> -21990.09 | M192: 73984.92
A193: CEC | B193: 1612 | C193: Land Rights (Formally known as Account 1906) | D193: 0 | E193: 0 | F193: 0 | G193: 0 | I193: 0 | J193: 0 | K193: 0 | L193: =I193+J193+K193 -> 0 | M193: 0
A194: N/A | B194: 1805 | C194: Land | D194: 456548.3 | E194: 0 | F194: 0 | G194: 456548.3 | I194: 0 | J194: 0 | K194: 0 | L194: =I194+J194+K194 -> 0 | M194: 456548.3
A195: 47 | B195: 1808 | C195: Buildings | D195: 402668.64 | E195: 0 | F195: 0 | G195: 402668.64 | I195: 0 | J195: -9269.42 | K195: 0 | L195: =I195+J195+K195 -> -9269.42 | M195: 393399.22
A196: 13 | B196: 1810 | C196: Leasehold Improvements | D196: 0 | E196: 0 | F196: 0 | G196: 0 | I196: 0 | J196: 0 | K196: 0 | L196: 0 | M196: 0
A197: 47 | B197: 1815 | C197: Transformer Station Equipment >50 kV | D197: 0 | E197: 0 | F197: 0 | G197: 0 | I197: 0 | J197: 0 | K197: 0 | L197: 0 | M197: 0
A198: 47 | B198: 1820 | C198: Distribution Station Equipment <50 kV | D198: 3291335.8 | E198: 106412.35 | F198: 0 | G198: 3397748.15 | I198: 0 | J198: -135554.94 | K198: 0 | L198: -135554.94 | M198: 3262193.21
A199: 47 | B199: 1825 | C199: Storage Battery Equipment | D199: 0 | E199: 0 | F199: 0 | G199: 0 | I199: 0 | J199: 0 | K199: 0 | L199: 0 | M199: 0
A200: 47 | B200: 1830 | C200: Poles, Towers & Fixtures | D200: 2056353.34 | E200: 802437.45 | F200: -17197.82 | G200: 2841592.97 | I200: 0 | J200: -116754.76 | K200: 0 | L200: -116754.76 | M200: 2724838.21
A201: 47 | B201: 1835 | C201: Overhead Conductors & Devices | D201: 1175960.11 | E201: 64947.83 | F201: -1144.58 | G201: 1239763.36 | I201: 0 | J201: -77047.84 | K201: 0 | L201: -77047.84 | M201: 1162715.52
A202: 47 | B202: 1840 | C202: Underground Conduit | D202: 407453.98 | E202: 25204.92 | F202: -355.42 | G202: 432303.48 | I202: 0 | J202: -21503.13 | K202: 0 | L202: -21503.13 | M202: 410800.35
A203: 47 | B203: 1845 | C203: Underground Conductors & Devices | D203: 1615860.46 | E203: 102246.08 | F203: -514.98 | G203: 1717591.56 | I203: 0 | J203: -62197.22 | K203: 0 | L203: -62197.22 | M203: 1655394.34
A204: 47 | B204: 1850 | C204: Line Transformers | D204: 1827640.16 | E204: 89941.43 | F204: -3222.92 | G204: 1914358.67 | I204: 0 | J204: -87316.37 | K204: 0 | L204: -87316.37 | M204: 1827042.3
A205: 47 | B205: 1855 | C205: Services (Overhead & Underground) | D205: 354795.34 | E205: 148688.37 | F205: 0 | G205: 503483.71 | I205: 0 | J205: -15042.5 | K205: 0 | L205: -15042.5 | M205: 488441.21
A206: 47 | B206: 1860 | C206: Meters | D206: 390378.65 | E206: 22505.88 | F206: 0 | G206: 412884.53 | I206: 0 | J206: -34761.93 | K206: 0 | L206: -34761.93 | M206: 378122.6
A207: 47 | B207: 1860 | C207: Meters (Smart Meters) | D207: 1688487.6 | E207: 213185.58 | F207: -166722 | G207: 1734951.18 | I207: 0 | J207: -147818.48 | K207: -10273 | L207: -158091.48 | M207: 1576859.7
A208: N/A | B208: 1905 | C208: Land | D208: 0 | E208: 0 | F208: 0 | G208: 0 | I208: 0 | J208: 0 | K208: 0 | L208: 0 | M208: 0
A209: 47 | B209: 1908 | C209: Buildings & Fixtures | D209: 566.36 | E209: 0 | F209: 0 | G209: 566.36 | I209: 0 | J209: -26.95 | K209: 0 | L209: -26.95 | M209: 539.41
A210: 13 | B210: 1910 | C210: Leasehold Improvements | D210: 0 | E210: 0 | F210: 0 | G210: 0 | I210: 0 | J210: 0 | K210: 0 | L210: 0 | M210: 0
A211: 8 | B211: 1915 | C211: Office Furniture & Equipment (10 years) | D211: 70828.75 | E211: 9437.31 | F211: 0 | G211: 80266.06 | I211: 0 | J211: -14037.36 | K211: 0 | L211: -14037.36 | M211: 66228.7
A212: 8 | B212: 1915 | C212: Office Furniture & Equipment (5 years) | D212: 0 | E212: 0 | F212: 0 | G212: 0 | I212: 0 | J212: 0 | K212: 0 | L212: 0 | M212: 0
A213: 10 | B213: 1920 | C213: Computer Equipment - Hardware | D213: 4125.99 | E213: 3654.19 | F213: 0 | G213: 7780.18 | I213: 0 | J213: -2259.44 | K213: 0 | L213: -2259.44 | M213: 5520.74
A214: 45 | B214: 1920 | C214: Computer Equip.-Hardware(Post Mar. 22/04) | D214: 0 | E214: 0 | F214: 0 | G214: 0 | I214: 0 | J214: 0 | K214: 0 | L214: 0 | M214: 0
A215: 50 | B215: 1920 | C215: Computer Equip.-Hardware(Post Mar. 19/07) | D215: 0 | E215: 0 | F215: 0 | G215: 0 | I215: 0 | J215: 0 | K215: 0 | L215: 0 | M215: 0
A216: 10 | B216: 1930 | C216: Transportation Equipment | D216: 837692.44 | E216: 262917.88 | F216: 0 | G216: 1100610.32 | I216: 0 | J216: -219593.59 | K216: 0 | L216: -219593.59 | M216: 881016.73
A217: 8 | B217: 1935 | C217: Stores Equipment | D217: 12408.51 | E217: 6773.5 | F217: 0 | G217: 19182.01 | I217: 0 | J217: -2086.43 | K217: 0 | L217: -2086.43 | M217: 17095.58
A218: 8 | B218: 1940 | C218: Tools, Shop & Garage Equipment | D218: 0 | E218: 0 | F218: 0 | G218: 0 | I218: 0 | J218: 0 | K218: 0 | L218: 0 | M218: 0
A219: 8 | B219: 1945 | C219: Measurement & Testing Equipment | D219: 0 | E219: 27237.81 | F219: 0 | G219: 27237.81 | I219: 0 | J219: -1361.9 | K219: 0 | L219: -1361.9 | M219: 25875.91
A220: 8 | B220: 1950 | C220: Power Operated Equipment | D220: 0 | E220: 4866.8 | F220: 0 | G220: 4866.8 | I220: 0 | J220: -243.34 | K220: 0 | L220: -243.34 | M220: 4623.46
A221: 8 | B221: 1955 | C221: Communications Equipment | D221: 11929.51 | E221: 20866 | F221: 0 | G221: 32795.51 | I221: 0 | J221: -4997.27 | K221: 0 | L221: -4997.27 | M221: 27798.24
A222: 8 | B222: 1955 | C222: Communication Equipment (Smart Meters) | D222: 0 | E222: 0 | F222: 0 | G222: 0 | I222: 0 | J222: 0 | K222: 0 | L222: 0 | M222: 0
A223: 8 | B223: 1960 | C223: Miscellaneous Equipment | D223: 18281.69 | E223: 0 | F223: 0 | G223: 18281.69 | I223: 0 | J223: -3534.32 | K223: 0 | L223: -3534.32 | M223: 14747.37
A224: 47 | B224: 1970 | C224: Load Management Controls Customer Premises | D224: 0 | E224: 0 | F224: 0 | G224: 0 | I224: 0 | J224: 0 | K224: 0 | L224: 0 | M224: 0
A225: 47 | B225: 1975 | C225: Load Management Controls Utility Premises | D225: 0 | E225: 0 | F225: 0 | G225: 0 | I225: 0 | J225: 0 | K225: 0 | L225: 0 | M225: 0
A226: 47 | B226: 1980 | C226: System Supervisor Equipment | D226: 258713.53 | E226: 13696.15 | F226: 0 | G226: 272409.68 | I226: 0 | J226: -36620.99 | K226: 0 | L226: -36620.99 | M226: 235788.69
A227: 47 | B227: 1985 | C227: Miscellaneous Fixed Assets | D227: 0 | E227: 0 | F227: 0 | G227: 0 | I227: 0 | J227: 0 | K227: 0 | L227: 0 | M227: 0
A228: 47 | B228: 1990 | C228: Other Tangible Property | D228: 138107.41 | E228: 12006.58 | F228: -10025.41 | G228: 140088.58 | I228: 0 | J228: 0 | K228: 0 | L228: 0 | M228: 140088.58
A229: 47 | B229: 1995 | C229: Contributions & Grants | D229: 0 | E229: 0 | F229: 0 | G229: 0 | I229: 0 | J229: 0 | K229: 0 | L229: 0 | M229: 0
A230: 47 | B230: 2055 | C230: Construction Work in Process | D230: 55082.61 | E230: 164121.98 | F230: 0 | G230: 219204.59 | I230: 0 | J230: 0 | K230: 0 | L230: =I230+J230-K230 -> 0 | M230: 219204.59
A231: 47 | B231: 2440 | C231: Deferred Revenue5 | D231: 0 | E231: -351231.02 | F231: 0 | G231: -351231.02 | I231: 0 | J231: 4156.31 | K231: 0 | L231: =I231+J231-K231 -> 4156.31 | M231: -347074.71
B232: 2005 | C232: Property Under Finance Lease7 | D232: 0 | E232: 0 | F232: 0 | G232: 0 | I232: 0 | J232: 0 | K232: 0 | L232: =I232+J232-K232 -> 0 | M232: 0
C233: Sub-Total | D233: =SUM(D191:D232) -> 15119879.79 | E233: =SUM(E191:E232) -> 1801231.47 | F233: =SUM(F191:F232) -> -199183.13 | G233: =SUM(G191:G232) -> 16721928.13 | I233: =SUM(I191:I232) -> 0 | J233: =SUM(J191:J232) -> -1009861.96 | K233: =SUM(K191:K232) -> -10273 | L233: =SUM(L191:L232) -> -1020134.96 | M233: =SUM(M191:M232) -> 15701793.17
C234: Less Socialized Renewable Energy Generation Investments (input as negative) | G234: =D234+E234+F234 -> 0 | L234: =I234+J234+K234 -> 0 | M234: =G234+L234 -> 0
C235: Less Other Non Rate-Regulated Utility Assets (input as negative) | G235: =D235+E235+F235 -> 0 | L235: =I235+J235+K235 -> 0 | M235: =G235+L235 -> 0
C236: Total PP&E | D236: =SUM(D233:D235) -> 15119879.79 | E236: =SUM(E233:E235) -> 1801231.47 | F236: =SUM(F233:F235) -> -199183.13 | G236: =SUM(G233:G235) -> 16721928.13 | I236: =SUM(I233:I235) -> 0 | J236: =SUM(J233:J235) -> -1009861.96 | K236: =SUM(K233:K235) -> -10273 | L236: =SUM(L233:L235) -> -1020134.96 | M236: =SUM(M233:M235) -> 15701793.17
C237: Depreciation Expense adj. from gain or loss on the retirement of assets (pool of like assets), if applicable6
C238: Total | J238: =J236+J237 -> -1009861.96
D239: 31619034.82 | E239: 1801231.47 | F239: -554254.76 | G239: 32866011.53 | H239: 0 | I239: -16499155.03 | J239: -1009861.96 | K239: 344798.63 | L239: -17164218.36 | M239: 15701793.17
D240: =D239-D236 -> 16499155.03 | E240: =E239-E236 -> 0 | F240: -355071.63 | G240: 16144083.4 | H240: 0 | I240: -16499155.03 | J240: 0 | K240: 355071.63 | L240: -16144083.4 | M240: 0.0002626776695
I242: Less: Fully Allocated Depreciation
A243: 10 | C243: Transportation | I243: Transportation | K243: =J216 -> -219593.59
... 698 more rows

Sheet Appendix 2-BB Service Life
N1: File Number: | P1: ='LDC Info'!E16 -> EB-2022-0028
N2: Exhibit: | P2: 2
N3: Tab: | P3: 1
N4: Schedule: | P4: 1
N5: Page: | P5: 53
N7: Date: | P7: 2022-05-27
A9: Appendix 2-BB
A10: Service Life Comparison
A11: Table F-1 from Kinetrics Report1
C15: Asset Details | F15: Useful Life | J15: USoA Account Number | K15: USoA Account Description | L15: Current | N15: Proposed | P15: Outside Range of Min, Max TUL?
A16: Parent* | B16: # | C16: Category| Component | Type | F16: MIN UL | G16: TUL | H16: MAX UL | L16: Years | M16: Rate | N16: Years | O16: Rate | P16: Below Min TUL | Q16: Above Max TUL
A17: OH | B17: 1 | C17: Fully Dressed Wood Poles | D17: Overall | F17: 35 | G17: 45 | H17: 75 | J17: 1830 | K17: Poles, Towers & Fixtures | L17: 45 | M17: =IF(ISERROR(1/L17), "", 1/L17) -> 0.02222222222 | N17: 45 | O17: =IF(ISERROR(1/N17), "", 1/N17) -> 0.02222222222 | P17: =IF(ISBLANK(N17),"",IF(N17<F17,"Yes","No")) -> No | Q17: =IF(ISBLANK(N17),"",IF(N17>H17,"Yes","No")) -> No
D18: Cross Arm | E18: Wood | F18: 20 | G18: 40 | H18: 55 | M18: =IF(ISERROR(1/L18), "", 1/L18) ->  | O18: =IF(ISERROR(1/N18), "", 1/N18) ->  | P18: =IF(ISBLANK(N18),"",IF(N18<F18,"Yes","No")) ->  | Q18: =IF(ISBLANK(N18),"",IF(N18>H18,"Yes","No")) -> 
E19: Steel | F19: 30 | G19: 70 | H19: 95
B20: 2 | C20: Fully Dressed Concrete Poles | D20: Overall | F20: 50 | G20: 60 | H20: 80 | J20: 1830 | K20: Poles, Towers & Fixtures | L20: 60 | M20: 0.01666666667 | N20: 60 | O20: 0.01666666667 | P20: No | Q20: No
D21: Cross Arm | E21: Wood | F21: 20 | G21: 40 | H21: 55
E22: Steel | F22: 30 | G22: 70 | H22: 95
B23: 3 | C23: Fully Dressed Steel Poles | D23: Overall | F23: 60 | G23: 60 | H23: 80
D24: Cross Arm | E24: Wood | F24: 20 | G24: 40 | H24: 55
E25: Steel | F25: 30 | G25: 70 | H25: 95
B26: 4 | C26: OH Line Switch | F26: 30 | G26: 45 | H26: 55 | J26: 1845 | K26: Overhead Conductors & Devices | L26: 45 | M26: 0.02222222222 | N26: 45 | O26: 0.02222222222 | P26: No | Q26: No
B27: 5 | C27: OH Line Switch Motor | F27: 15 | G27: 25 | H27: 25
B28: 6 | C28: OH Line Switch RTU | F28: 15 | G28: 20 | H28: 20 | J28: 1845 | K28: Overhead Conductors & Devices | L28: 45 | M28: 0.02222222222 | N28: 45 | O28: 0.02222222222 | P28: No | Q28: Yes
B29: 7 | C29: OH Integral Switches | F29: 35 | G29: 45 | H29: 60 | J29: 1845 | K29: Overhead Conductors & Devices | L29: 45 | M29: 0.02222222222 | N29: 45 | O29: 0.02222222222 | P29: No | Q29: No
B30: 8 | C30: OH Conductors | F30: 50 | G30: 60 | H30: 75 | J30: 1845 | K30: Overhead Conductors & Devices | L30: 45 | M30: 0.02222222222 | N30: 45 | O30: 0.02222222222 | P30: Yes | Q30: No
B31: 9 | C31: OH Transformers & Voltage Regulators | F31: 30 | G31: 40 | H31: 60 | J31: 1850 | K31: Line Transformers | L31: 40 | M31: 0.025 | N31: 40 | O31: 0.025 | P31: No | Q31: No
B32: 10 | C32: OH Shunt Capacitor Banks | F32: 25 | G32: 30 | H32: 40
B33: 11 | C33: Reclosers | F33: 25 | G33: 40 | H33: 55 | J33: 1845 | K33: Overhead Conductors & Devices | L33: 45 | M33: 0.02222222222 | N33: 45 | O33: 0.02222222222 | P33: No | Q33: No
A34: TS & MS | B34: 12 | C34: Power Transformers | D34: Overall | F34: 30 | G34: 45 | H34: 60 | J34: 1850 | K34: Dist Stat Equip below 50KV | L34: 45 | M34: 0.02222222222 | N34: 45 | O34: 0.02222222222 | P34: No | Q34: No
D35: Bushing | F35: 10 | G35: 20 | H35: 30
D36: Tap Changer | F36: 20 | G36: 30 | H36: 60
B37: 13 | C37: Station Service Transformer | F37: 30 | G37: 45 | H37: 55 | J37: 1850 | K37: Dist Stat Equip below 50KV | L37: 45 | M37: 0.02222222222 | N37: 45 | O37: 0.02222222222 | P37: No | Q37: No
B38: 14 | C38: Station Grounding Transformer | F38: 30 | G38: 40 | H38: 40
B39: 15 | C39: Station DC System | D39: Overall | F39: 10 | G39: 20 | H39: 30 | J39: 1820 | K39: Dist Stat Equip below 50KV | L39: 20 | M39: 0.05 | N39: 20 | O39: 0.05 | P39: No | Q39: No
D40: Battery Bank | F40: 10 | G40: 15 | H40: 15
D41: Charger | F41: 20 | G41: 20 | H41: 30
B42: 16 | C42: Station Metal Clad Switchgear | D42: Overall | F42: 30 | G42: 40 | H42: 60 | J42: 1820 | K42: Dist Stat Equip below 50KV | L42: 40 | M42: 0.025 | N42: 40 | O42: 0.025 | P42: No | Q42: No
D43: Removable Breaker | F43: 25 | G43: 40 | H43: 60 | J43: 1820 | K43: Dist Stat Equip below 50KV | L43: 40 | M43: 0.025 | N43: 40 | O43: 0.025 | P43: No | Q43: No
B44: 17 | C44: Station Independent Breakers | F44: 35 | G44: 45 | H44: 65 | J44: 1820 | K44: Dist Stat Equip below 50KV | L44: 40 | M44: 0.025 | N44: 40 | O44: 0.025 | P44: No | Q44: No
B45: 18 | C45: Station Switch | F45: 30 | G45: 50 | H45: 60 | J45: 1820 | K45: Dist Stat Equip below 50KV | L45: 40 | M45: 0.025 | N45: 40 | O45: 0.025 | P45: No | Q45: No
B46: 19 | C46: Electromechanical Relays | F46: 25 | G46: 35 | H46: 50 | J46: 1820 | K46: Dist Stat Equip below 50KV | L46: 40 | M46: 0.025 | N46: 40 | O46: 0.025 | P46: No | Q46: No
B47: 20 | C47: Solid State Relays | F47: 10 | G47: 30 | H47: 45 | J47: 1820 | K47: Dist Stat Equip below 50KV | L47: 20 | M47: 0.05 | N47: 20 | O47: 0.05 | P47: No | Q47: No
B48: 21 | C48: Digital & Numeric Relays | F48: 15 | G48: 20 | H48: 20 | J48: 1820 | K48: Dist Stat Equip below 50KV | L48: 20 | M48: 0.05 | N48: 20 | O48: 0.05 | P48: No | Q48: No
B49: 22 | C49: Rigid Busbars | F49: 30 | G49: 55 | H49: 60 | J49: 1820 | K49: Dist Stat Equip below 50KV | L49: 40 | M49: 0.025 | N49: 40 | O49: 0.025 | P49: No | Q49: No
B50: 23 | C50: Steel Structure | F50: 35 | G50: 50 | H50: 90 | J50: 1820 | K50: Dist Stat Equip below 50KV | L50: 40 | M50: 0.025 | N50: 40 | O50: 0.025 | P50: No | Q50: No
A51: UG | B51: 24 | C51: Primary Paper Insulated Lead Covered (PILC) Cables | F51: 60 | G51: 65 | H51: 75
B52: 25 | C52: Primary Ethylene-Propylene Rubber (EPR) Cables | F52: 20 | G52: 25 | H52: 25
B53: 26 | C53: Primary Non-Tree Retardant (TR) Cross Linked Polyethylene (XLPE) Cables Direct Buried | F53: 20 | G53: 25 | H53: 30 | J53: 1845 | K53: Underground Conductors & Devices | L53: 25 | M53: 0.04 | N53: 25 | O53: 0.04 | P53: No | Q53: No
B54: 27 | C54: Primary Non-TR XLPE Cables in Duct | F54: 20 | G54: 25 | H54: 30 | J54: 1845 | K54: Underground Conductors & Devices | L54: 25 | M54: 0.04 | N54: 25 | O54: 0.04 | P54: No | Q54: No
B55: 30 | C55: Secondary PILC Cables | F55: 70 | G55: 75 | H55: 80
B56: 31 | C56: Secondary Cables Direct Buried | F56: 25 | G56: 35 | H56: 40 | J56: 1855 | K56: Services | L56: 40 | M56: 0.025 | N56: 40 | O56: 0.025 | P56: No | Q56: No
B57: 32 | C57: Secondary Cables in Duct | F57: 35 | G57: 40 | H57: 60 | J57: 1855 | K57: Services | L57: 40 | M57: 0.025 | N57: 40 | O57: 0.025 | P57: No | Q57: No
B58: 33 | C58: Network Tranformers | D58: Overall | F58: 20 | G58: 35 | H58: 50
D59: Protector | F59: 20 | G59: 35 | H59: 40
B60: 34 | C60: Pad-Mounted Transformers | F60: 25 | G60: 40 | H60: 45 | J60: 1850 | K60: Line Transformers | L60: 40 | M60: 0.025 | N60: 40 | O60: 0.025 | P60: No | Q60: No
B61: 35 | C61: Submersible/Vault Transformers | F61: 25 | G61: 35 | H61: 45
B62: 36 | C62: UG Foundation | F62: 35 | G62: 55 | H62: 70 | J62: 1840 | K62: Underground Conduit | L62: 50 | M62: 0.02 | N62: 50 | O62: 0.02 | P62: No | Q62: No
B63: 37 | C63: UG Vaults | D63: Overall | F63: 40 | G63: 60 | H63: 80 | J63: 1840 | K63: Underground Conduit | L63: 50 | M63: 0.02 | N63: 50 | O63: 0.02 | P63: No | Q63: No
D64: Roof | F64: 20 | G64: 30 | H64: 45
B65: 38 | C65: UG Vault Switches | F65: 20 | G65: 35 | H65: 50
B66: 39 | C66: Pad-Mounted Switchgear | F66: 20 | G66: 30 | H66: 45 | J66: 1845 | K66: Underground Conductors & Devices | L66: 40 | M66: 0.025 | N66: 40 | O66: 0.025 | P66: No | Q66: No
B67: 40 | C67: Ducts | F67: 30 | G67: 50 | H67: 85 | J67: 1840 | K67: Underground Conduit | L67: 50 | M67: 0.02 | N67: 50 | O67: 0.02 | P67: No | Q67: No
B68: 41 | C68: Concrete Encased Duct Banks | F68: 35 | G68: 55 | H68: 80 | J68: 1840 | K68: Underground Conduit | L68: 50 | M68: 0.02 | N68: 50 | O68: 0.02 | P68: No | Q68: No
B69: 42 | C69: Cable Chambers | F69: 50 | G69: 60 | H69: 80
A70: S | B70: 43 | C70: Remote SCADA | F70: 15 | G70: 20 | H70: 30 | J70: 1980 | K70: System Supervisory Equipment | L70: 15 | M70: 0.06666666667 | N70: 15 | O70: 0.06666666667 | P70: No | Q70: No
A73: Table F-2 from Kinetrics Report1
C75: Asset Details | F75: Useful Life Range | J75: USoA Account Number | K75: USoA Account Description | L75: Current | N75: Proposed | P75: Outside Range of Min, Max TUL?
B76: # | C76: Category| Component | Type | L76: Years | M76: Rate | N76: Years | O76: Rate | P76: Below Min Range | Q76: Above Max Range
B77: 1 | C77: Office Equipment | F77: 5 | G77: 15 | J77: 1915 | K77: Office Furniture & Equipment | L77: 10 | M77: =IF(ISERROR(1/L77), "", 1/L77) -> 0.1 | N77: 10 | O77: =IF(ISERROR(1/N77), "", 1/N77) -> 0.1 | P77: =IF(ISBLANK(N77),"",IF(N77<F77,"Yes","No")) -> No | Q77: =IF(ISBLANK(N77),"",IF(N77>G77,"Yes","No")) -> No
B78: 2 | C78: Vehicles | D78: Trucks & Buckets | F78: 5 | G78: 15 | J78: 1930 | K78: Transportation Equipment | L78: 8 | M78: =IF(ISERROR(1/L78), "", 1/L78) -> 0.125 | N78: 8 | O78: =IF(ISERROR(1/N78), "", 1/N78) -> 0.125 | P78: =IF(ISBLANK(N78),"",IF(N78<F78,"Yes","No")) -> No | Q78: =IF(ISBLANK(N78),"",IF(N78>G78,"Yes","No")) -> No
D79: Trailers | F79: 5 | G79: 20 | M79: =IF(ISERROR(1/L79), "", 1/L79) ->  | O79: =IF(ISERROR(1/N79), "", 1/N79) ->  | P79: =IF(ISBLANK(N79),"",IF(N79<F79,"Yes","No")) ->  | Q79: =IF(ISBLANK(N79),"",IF(N79>G79,"Yes","No")) -> 
D80: Light Duty Vehicles | F80: 5 | G80: 10 | J80: 1930 | K80: Transportation Equipment | L80: 5 | M80: 0.2 | N80: 5 | O80: 0.2 | P80: No | Q80: No
B81: 3 | C81: Administrative Buildings | F81: 50 | G81: 75 | J81: 1808 | K81: Buildings & fixtures Other | L81: 50 | M81: 0.02 | N81: 50 | O81: 0.02 | P81: No | Q81: No
B82: 4 | C82: Leasehold Improvements | F82: Lease dependent | J82: 2005 | K82: Property under finance lease | L82: 10 | M82: 0.1 | N82: 10 | O82: 0.1 | P82: =IF(ISBLANK(N82),"",IF(N82<F82,"Yes","No")) -> Yes | Q82: =IF(ISBLANK(N82),"",IF(N82>G82,"Yes","No")) -> Yes
B83: 5 | C83: Station Buildings | D83: Station Buildings | F83: 50 | G83: 75 | J83: 1808 | K83: Buildings & Fixtures Substations | L83: 50 | M83: 0.02 | N83: 50 | O83: 0.02 | P83: No | Q83: No
D84: Parking | F84: 25 | G84: 30
D85: Fence | F85: 25 | G85: 60
D86: Roof | F86: 20 | G86: 30
B87: 6 | C87: Computer Equipment | D87: Hardware | F87: 3 | G87: 5 | J87: 1920 | K87: Computer Equipment | L87: 3 | M87: 0.3333333333 | N87: 3 | O87: 0.3333333333 | P87: No | Q87: No
D88: Software | F88: 2 | G88: 5 | J88: 1925 | K88: Computer Software | L88: 5 | M88: 0.2 | N88: 5 | O88: 0.2 | P88: No | Q88: No
B89: 7 | C89: Equipment | D89: Power Operated | F89: 5 | G89: 10 | J89: 1950 | K89: Power Operated Equipment | L89: 10 | M89: 0.1 | N89: 10 | O89: 0.1 | P89: No | Q89: No
D90: Stores | F90: 5 | G90: 10 | J90: 1935 | K90: Stores Equipment | L90: 10 | M90: 0.1 | N90: 10 | O90: 0.1 | P90: No | Q90: No
D91: Tools, Shop, Garage Equipment | F91: 5 | G91: 10 | J91: 1960 | K91: Miscellaneous Equipment | L91: 10 | M91: 0.1 | N91: 10 | O91: 0.1 | P91: No | Q91: No
D92: Measurement & Testing Equipment | F92: 5 | G92: 10 | J92: 1945 | K92: Measurement & Testing Equipment | L92: 10 | M92: 0.1 | N92: 10 | O92: 0.1 | P92: No | Q92: No
B93: 8 | C93: Communication | D93: Towers | F93: 60 | G93: 70
D94: Wireless | F94: 2 | G94: 10 | J94: 1955 | K94: Communication Equipment | L94: 10 | M94: 0.1 | N94: 10 | O94: 0.1 | P94: No | Q94: No
B95: 9 | C95: Residential Energy Meters | F95: 25 | G95: 35
B96: 10 | C96: Industrial/Commercial Energy Meters | F96: 25 | G96: 35
B97: 11 | C97: Wholesale Energy Meters | F97: 15 | G97: 30 | J97: 1860 | K97: Meters | L97: 15 | M97: 0.06666666667 | N97: 15 | O97: 0.06666666667 | P97: No | Q97: No
B98: 12 | C98: Current & Potential Transformer (CT & PT) | F98: 35 | G98: 50
B99: 13 | C99: Smart Meters | F99: 5 | G99: 15 | J99: 1860 | K99: Smart Meters | L99: 15 | M99: 0.06666666667 | N99: 15 | O99: 0.06666666667 | P99: No | Q99: No
B100: 14 | C100: Repeaters - Smart Metering | F100: 10 | G100: 15 | J100: 1860 | K100: Smart Meters | L100: 15 | M100: 0.06666666667 | N100: 15 | O100: 0.06666666667 | P100: No | Q100: No
B101: 15 | C101: Data Collectors - Smart Metering | F101: 15 | G101: 20 | J101: 1860 | K101: Smart Meters | L101: 15 | M101: 0.06666666667 | N101: 15 | O101: 0.06666666667 | P101: No | Q101: No
A104: * TS & MS = Transformer and Municipal Stations UG = Underground Systems S = Monitoring and Control Systems
A106: Note 1: | B106: Tables F-1 and F-2 above are to be used as a reference in order to complete columns J, K, L and N.
B107: See pages 17-19 of Kinetrics Report

Sheet App.2-C_DepExp
A9: Appendix 2-C | Y9: CGAAP
A10: Depreciation and Amortization Expense | Y10: Revised CGAAP
Y11: MIFRS
A12: This appendix is to be completed in conjunction with the accounting instructions in Appendix 2-B | I12: 2013 CGAAP
A14: Scenario that applies | C14: Applicable Years and Accounting Standard | R14: Year Reflected in Schedule Below | S14: Accounting Standard Reflected in Schedule Below | Y14: 2012
A15: Rebasing for the first time with depreciation policy changes made in 2012. | C15: ="This appendix must be duplicated and completed for the years 2012 to " & TestYear & ". The appendix for 2012 is to be completed under CGAAP (prior to changes in depreciation policies)." &" The appendix for 2012 to 2014 must be completed under Revised CGAAP (after changes in depreciation policies). The appendix for 2014 to " & TestYear & " is to be completed under MIFRS (2014 if changes to MIFRS are material)." -> This appendix must be duplicated and completed for the years 2012 to 2023. The appendix for 2012 is to be completed under CGAAP (prior to changes in depreciation policies). The appendix for 2012 to 2014 must be completed under Revised CGAAP (after changes in depreciation policies). The appendix for 2014 to 2023 is to be completed under MIFRS (2014 if changes to MIFRS are material). | Y15: 2013
A16: Rebasing for the first time with depreciation policy changes made in 2013. | C16: ="This appendix must be duplicated and completed for the years 2013 to " & TestYear & ". The appendix for 2013 is to be completed under CGAAP (prior to changes in depreciation policies)."&" The appendix for 2013 to 2014 must be completed under Revised CGAAP (after changes in depreciation policies). The appendix for 2014 to " & TestYear & " is to be completed under MIFRS (2014 if changes to MIFRS are material)." -> This appendix must be duplicated and completed for the years 2013 to 2023. The appendix for 2013 is to be completed under CGAAP (prior to changes in depreciation policies). The appendix for 2013 to 2014 must be completed under Revised CGAAP (after changes in depreciation policies). The appendix for 2014 to 2023 is to be completed under MIFRS (2014 if changes to MIFRS are material). | Y16: 2014
A17: Already rebased with depreciation policy changes in a prior rate application and rebasing MIFRS for the first time. | C17: This appendix must be completed for 2014 to the test year. The appendix for 2014 is to be completed under Revised CGAAP (after changes in depreciation policies). The appendix for 2014 to the test year is to be completed under MIFRS (2014 if changes to MIFRS are material). | R17: 2013 | S17: Revised CGAAP | Y17: 2015
A18: Already rebased under MIFRS in a prior rate application | C18: ="This appendix must be completed under MIFRS for each year for the earlier of: 1) all historical years back to its last rebasing; or 2) at least three years of historical actuals, in addition to Bridge Year and Test Year forecasts." -> This appendix must be completed under MIFRS for each year for the earlier of: 1) all historical years back to its last rebasing; or 2) at least three years of historical actuals, in addition to Bridge Year and Test Year forecasts. | Y18: 2016
Y19: 2017
C20: Book Values | J20: Service Lives | N20: Depreciation Expense | Y20: 2018
A21: Account | B21: Description | C21: Opening Net Book Value of Existing Assets as at Date of Policy Change (Jan. 1) 1 | D21: Less Fully Depreciated 7 | E21: Net Amount of Existing Assets Before Policy Change to be Depreciated | F21: Opening Gross Book Value of Assets Acquired After Policy Change 2 | G21: Less Fully Depreciated 8 | H21: Net Amount of Assets Acquired After Policy Change to be Depreciated | I21: Current Year Additions | J21: Average Remaining Life of Assets Existing Before Policy Change 3 | K21: Depreciation Rate Assets Acquired After Policy Change | L21: Life of Assets Acquired After Policy Change 4 | M21: Depreciation Rate on New Additions | N21: Depreciation Expense on Assets Existing Before Policy Change | O21: Depreciation Expense on Assets Acquired After Policy Change | P21: Depreciation Expense on Current Year Additions 5 | Q21: Total Current Year Depreciation Expense | R21: Depreciation Expense per Appendix 2-BA Fixed Assets, Column J | S21: Variance 6
C22: a | D22: b | E22: c = a-b | F22: d | G22: e | H22: f = d- e | I22: g | J22: h | K22: i = 1/h | L22: j | M22: k = 1/j | N22: l = c/h | O22: m = f/j | P22: n = g*0.5/j | Q22: o = l+m+n | R22: p | S22: q = p-o
A23: 1611 | B23: Computer Software (Formally known as Account 1925) | C23: 0 | D23: 0 | E23: =C23-D23 -> 0 | F23: 515602.98 | G23: 0 | H23: =F23-G23 -> 515602.98 | I23: 37001.15 | J23: 5.788011596 | K23: =IF(J23=0,0,1/J23) -> 0.1727709047 | L23: 5 | M23: =IF(L23=0,0,1/L23) -> 0.2 | N23: =IF(J23=0,0,+E23/J23) -> 0 | O23: =IF(J23=0,0,+H23/J23) -> 89081.19333 | P23: =IF(J23=0,0,+(I23*0.5)/J23) -> 3196.361081 | Q23: =IF(ISERROR(+N23+O23+P23), 0, +N23+O23+P23) -> 92277.55441 | R23: 92780.54 | S23: =IF(ISERROR(+R23-Q23), 0, +R23-Q23) -> 502.985586
A24: 1612 | B24: Land Rights (Formally known as Account 1906) | C24: 0 | D24: 0 | E24: =C24-D24 -> 0 | F24: 0 | G24: 0 | H24: =F24-G24 -> 0 | I24: 0 | J24: 0 | K24: =IF(J24=0,0,1/J24) -> 0 | L24: 0 | M24: =IF(L24=0,0,1/L24) -> 0 | N24: =IF(J24=0,0,+E24/J24) -> 0 | O24: =IF(J24=0,0,+H24/J24) -> 0 | P24: =IF(J24=0,0,+(I24*0.5)/J24) -> 0 | Q24: =IF(ISERROR(+N24+O24+P24), 0, +N24+O24+P24) -> 0 | R24: 0 | S24: =IF(ISERROR(+R24-Q24), 0, +R24-Q24) -> 0
A25: 1805 | B25: Land | C25: 0 | D25: 0 | E25: 0 | F25: 456548.3 | G25: 0 | H25: 456548.3 | I25: 0 | J25: 0 | K25: 0 | L25: 0 | M25: 0 | N25: 0 | O25: 0 | P25: 0 | Q25: 0 | R25: 0 | S25: 0
A26: 1808 | B26: Buildings | C26: 0 | D26: 0 | E26: 0 | F26: 446277.24 | G26: 0 | H26: 446277.24 | I26: 0 | J26: 48.11345561 | K26: 0.02078420657 | L26: 0 | M26: 0 | N26: 0 | O26: 9275.518342 | P26: 0 | Q26: 9275.518342 | R26: 9269.42 | S26: -6.098342391
A27: 1810 | B27: Leasehold Improvements | C27: 0 | D27: 0 | E27: 0 | F27: 0 | G27: 0 | H27: 0 | I27: 0 | J27: 0 | K27: 0 | L27: 0 | M27: 0 | N27: 0 | O27: 0 | P27: 0 | Q27: 0 | R27: 0 | S27: 0
A28: 1815 | B28: Transformer Station Equipment >50 kV | C28: 0 | D28: 0 | E28: 0 | F28: 0 | G28: 0 | H28: 0 | I28: 0 | J28: 0 | K28: 0 | L28: 0 | M28: 0 | N28: 0 | O28: 0 | P28: 0 | Q28: 0 | R28: 0 | S28: 0
A29: 1820 | B29: Distribution Station Equipment <50 kV | C29: 0 | D29: 0 | E29: 0 | F29: 5329945.14 | G29: 0 | H29: 5329945.14 | I29: 0 | J29: 39.68240602 | K29: 0.02520008488 | L29: 40 | M29: 0.025 | N29: 0 | O29: 134315.0699 | P29: 0 | Q29: 134315.0699 | R29: 134224.83 | S29: -90.23992486
A30: 1825 | B30: Storage Battery Equipment | C30: 0 | D30: 0 | E30: 0 | F30: 0 | G30: 0 | H30: 0 | I30: 0 | J30: 0 | K30: 0 | L30: 0 | M30: 0 | N30: 0 | O30: 0 | P30: 0 | Q30: 0 | R30: 0 | S30: 0
A31: 1830 | B31: Poles, Towers & Fixtures | C31: 0 | D31: 0 | E31: 0 | F31: 8258211.185 | G31: 84742.63 | H31: 8173468.555 | I31: 383453.43 | J31: 50.20195827 | K31: 0.01991954168 | L31: 45 | M31: 0.02222222222 | N31: 0 | O31: 162811.7475 | P31: 3819.10829 | Q31: 166630.8558 | R31: 163380.71 | S31: -3250.145815
A32: 1835 | B32: Overhead Conductors & Devices | C32: 0 | D32: 0 | E32: 0 | F32: 4904588.365 | G32: 27160.51 | H32: 4877427.855 | I32: 128928.27 | J32: 45.75205235 | K32: 0.02185694299 | L32: 45 | M32: 0.02222222222 | N32: 0 | O32: 106605.6626 | P32: 1408.988924 | Q32: 108014.6515 | R32: 106859.54 | S32: -1155.111498
A33: 1840 | B33: Underground Conduit | C33: 0 | D33: 0 | E33: 0 | F33: 1910293.38 | G33: 3155.1 | H33: 1907138.28 | I33: 27076.22 | J33: 90.53661578 | K33: 0.01104525491 | L33: 50 | M33: 0.02 | N33: 0 | O33: 21064.82845 | P33: 149.5318759 | Q33: 21214.36033 | R33: 21012.62 | S33: -201.7403271
A34: 1845 | B34: Underground Conductors & Devices | C34: 0 | D34: 0 | E34: 0 | F34: 6644903.9 | G34: 4864.56 | H34: 6640039.34 | I34: 162141.88 | J34: 57.71819649 | K34: 0.01732555868 | L34: 40 | M34: 0.025 | N34: 0 | O34: 115042.3912 | P34: 1404.599328 | Q34: 116446.9905 | R34: 115565.43 | S34: -881.560529
A35: 1850 | B35: Line Transformers | C35: 0 | D35: 0 | E35: 0 | F35: 5691652.65 | G35: 10251 | H35: 5681401.65 | I35: 75058.98 | J35: 50.91353374 | K35: 0.01964114306 | L35: 40 | M35: 0.025 | N35: =IF(J35=0,0,+E35/J35) -> 0 | O35: 111589.2226 | P35: 737.1220821 | Q35: 112326.3447 | R35: 111947.36 | S35: -378.9846829
A36: 1855 | B36: Services (Overhead & Underground) | C36: 0 | D36: 0 | E36: 0 | F36: 1093865.28 | G36: 0 | H36: 1093865.28 | I36: 132608 | J36: 37.29331489 | K36: 0.02681445731 | L36: 40 | M36: 0.025 | N36: 0 | O36: 29331.40385 | P36: 1777.905777 | Q36: 31109.30963 | R36: 31168.32 | S36: 59.01037473
A37: 1860 | B37: Meters | C37: 0 | D37: 0 | E37: 0 | F37: 491704.59 | G37: 0 | H37: 491704.59 | I37: 18782.93 | J37: 14.97949027 | K37: 0.06675794583 | L37: 15 | M37: 0.06666666667 | N37: 0 | O37: 32825.18838 | P37: 626.9549118 | Q37: 33452.1433 | R37: 33385.63 | S37: -66.51329615
A38: 1860 | B38: Meters (Smart Meters) | C38: 0 | D38: 0 | E38: 0 | F38: 2606507.23 | G38: 388107.08 | H38: 2218400.15 | I38: 172773.54 | J38: 14.97949027 | K38: 0.06675794583 | L38: 15 | M38: 0.06666666667 | N38: 0 | O38: 148095.837 | P38: 5767.003312 | Q38: 153862.8404 | R38: 150956.33 | S38: -2906.510359
A39: 1905 | B39: Land | C39: 0 | D39: 0 | E39: 0 | F39: 0 | G39: 0 | H39: 0 | I39: 0 | J39: 0 | K39: 0 | L39: 0 | M39: 0 | N39: 0 | O39: 0 | P39: 0 | Q39: 0 | R39: 0 | S39: 0
A40: 1908 | B40: Buildings & Fixtures | C40: 0 | D40: 0 | E40: 0 | F40: 47865 | G40: 0 | H40: 47865 | I40: 0 | J40: 0 | K40: 0 | L40: 50 | M40: 0.02 | N40: 0 | O40: 0 | P40: 0 | Q40: 0 | R40: 26.95 | S40: 26.95
A41: 1910 | B41: Leasehold Improvements | C41: 0 | D41: 0 | E41: 0 | F41: 0 | G41: 0 | H41: 0 | I41: 0 | J41: 0 | K41: 0 | L41: 0 | M41: 0 | N41: 0 | O41: 0 | P41: 0 | Q41: 0 | R41: 0 | S41: 0
A42: 1915 | B42: Office Furniture & Equipment (10 years) | C42: 0 | D42: 0 | E42: 0 | F42: 208008.86 | G42: 0 | H42: 208008.86 | I42: 18040.21 | J42: 18.19305604 | K42: 0.05496602648 | L42: 10 | M42: 0.1 | N42: 0 | O42: 11433.42051 | P42: 495.7993303 | Q42: 11929.21984 | R42: 12663.46 | S42: 734.2401636
A43: 1920 | B43: Computer Equipment - Hardware | C43: 0 | D43: 0 | E43: 0 | F43: 18014.09 | G43: 0 | H43: 18014.09 | I43: 4951.19 | J43: 2.99984846 | K43: 0.333350172 | L43: 3 | M43: 0.3333333333 | N43: 0 | O43: 6005 | P43: 825.2400191 | Q43: 6830.240019 | R43: 6830.2 | S43: -0.04001906286
A44: 1920 | B44: Computer Equip.-Hardware(Post Mar. 22/04) | C44: 0 | D44: 0 | E44: 0 | F44: 0 | G44: 0 | H44: 0 | I44: 0 | J44: 0 | K44: 0 | L44: 0 | M44: 0 | N44: 0 | O44: 0 | P44: 0 | Q44: 0 | R44: 0 | S44: 0
A45: 1920 | B45: Computer Equip.-Hardware(Post Mar. 19/07) | C45: 0 | D45: 0 | E45: 0 | F45: 0 | G45: 0 | H45: 0 | I45: 0 | J45: 0 | K45: 0 | L45: 0 | M45: 0 | N45: 0 | O45: 0 | P45: 0 | Q45: 0 | R45: 0 | S45: 0
A46: 1930 | B46: Transportation Equipment | C46: 0 | D46: 0 | E46: 0 | F46: 1782820.52 | G46: 420231.68 | H46: 1362588.84 | I46: 0 | J46: 7.999302156 | K46: 0.1250109048 | L46: 8 | M46: 0.125 | N46: 0 | O46: 170338.4637 | P46: 0 | Q46: 170338.4637 | R46: 161031.17 | S46: -9307.293716
A47: 1930 | B47: Transportation Equipment (5Yrs) | C47: 0 | D47: 0 | E47: =C47-D47 -> 0 | F47: 92026.82 | G47: 0 | H47: =F47-G47 -> 92026.82 | I47: 164943.44 | J47: 4.994945177 | K47: =IF(J47=0,0,1/J47) -> 0.2002023975 | L47: 5 | M47: =IF(L47=0,0,1/L47) -> 0.2 | N47: =IF(J47=0,0,+E47/J47) -> 0 | O47: 18423.99 | P47: 16511.03607 | Q47: =IF(ISERROR(+N47+O47+P47), 0, +N47+O47+P47) -> 34935.02607 | R47: 34918.33 | S47: -16.69607147
A48: 1935 | B48: Stores Equipment | C48: 0 | D48: 0 | E48: 0 | F48: 12000 | G48: 0 | H48: 12000 | I48: 5482.15 | J48: 9.828337574 | K48: 0.1017466069 | L48: 10 | M48: 0.1 | N48: 0 | O48: 1220.959283 | P48: 278.8950806 | Q48: 1499.854364 | R48: 1473.64 | S48: -26.21436384
A49: 1940 | B49: Tools, Shop & Garage Equipment | C49: 0 | D49: 0 | E49: 0 | F49: 0 | G49: 0 | H49: 0 | I49: 0 | J49: 0 | K49: 0 | L49: 0 | M49: 0 | N49: 0 | O49: 0 | P49: 0 | Q49: 0 | R49: 0 | S49: 0
A50: 1945 | B50: Measurement & Testing Equipment | C50: 0 | D50: 0 | E50: 0 | F50: 51800 | G50: 51800 | H50: 0 | I50: 0 | J50: 0 | K50: 0 | L50: 10 | M50: 0.1 | N50: 0 | O50: 0 | P50: 0 | Q50: 0 | R50: 0 | S50: 0
A51: 1950 | B51: Power Operated Equipment | C51: 0 | D51: 0 | E51: 0 | F51: 37260 | G51: 0 | H51: 37260 | I51: 0 | J51: 10 | K51: 0.1 | L51: 10 | M51: 0.1 | N51: 0 | O51: 3726 | P51: 0 | Q51: 3726 | R51: 3726 | S51: 0
A52: 1955 | B52: Communications Equipment | C52: 0 | D52: 0 | E52: 0 | F52: 71751.41 | G52: 0 | H52: 71751.41 | I52: 7279.49 | J52: 20.70072675 | K52: 0.04830748274 | L52: 10 | M52: 0.1 | N52: 0 | O52: 3466.13 | P52: 175.8269188 | Q52: 3641.956919 | R52: 3829.98 | S52: 188.0230812
A53: 1960 | B53: Miscellaneous Equipment | C53: 0 | D53: 0 | E53: 0 | F53: 239173.56 | G53: 203814.49 | H53: 35359.07 | I53: 0 | J53: 9.998815154 | K53: 0.1000118499 | L53: 10 | M53: 0.1 | N53: 0 | O53: 3536.326 | P53: 0 | Q53: 3536.326 | R53: 3534.31 | S53: -2.016
A54: 1970 | B54: Load Management Controls Customer Premises | C54: 0 | D54: 0 | E54: 0 | F54: 0 | G54: 0 | H54: 0 | I54: 0 | J54: 0 | K54: 0 | L54: 0 | M54: 0 | N54: 0 | O54: 0 | P54: 0 | Q54: 0 | R54: 0 | S54: 0
A55: 1975 | B55: Load Management Controls Utility Premises | C55: 0 | D55: 0 | E55: 0 | F55: 0 | G55: 0 | H55: 0 | I55: 0 | J55: 0 | K55: 0 | L55: 0 | M55: 0 | N55: 0 | O55: 0 | P55: 0 | Q55: 0 | R55: 0 | S55: 0
A56: 1980 | B56: System Supervisor Equipment | C56: 0 | D56: 0 | E56: 0 | F56: 672850.48 | G56: 143562.99 | H56: 529287.49 | I56: 13410.95 | J56: 14.98532223 | K56: 0.06673196511 | L56: 15 | M56: 0.06666666667 | N56: 0 | O56: 35320.39432 | P56: 447.4695238 | Q56: 35767.86384 | R56: 35717.42 | S56: -50.4438406
A57: 1985 | B57: Miscellaneous Fixed Assets | C57: 0 | D57: 0 | E57: 0 | F57: 0 | G57: 0 | H57: 0 | I57: 0 | J57: 0 | K57: 0 | L57: 0 | M57: 0 | N57: 0 | O57: 0 | P57: 0 | Q57: 0 | R57: 0 | S57: 0
A58: 1990 | B58: Other Tangible Property | C58: 0 | D58: 0 | E58: 0 | F58: 0 | G58: 0 | H58: 0 | I58: 138107.41 | J58: 0 | K58: 0 | L58: 0 | M58: 0 | N58: 0 | O58: 0 | P58: 0 | Q58: 0 | R58: 0 | S58: 0
A59: 1995 | B59: Contributions & Grants | C59: 0 | D59: 0 | E59: 0 | F59: -10571213.85 | G59: 0 | H59: -10571213.85 | I59: -323111.27 | J59: 55.6886596 | K59: 0.01795697737 | L59: 45 | M59: 0.02222222222 | N59: 0 | O59: -189827.0478 | P59: -2901.050881 | Q59: -192728.0987 | R59: -188565.18 | S59: 4162.918721
A60: 2055 | B60: Construction Work in Process | C60: 0 | D60: 0 | E60: 0 | F60: 26532.72 | G60: 0 | H60: 26532.72 | I60: 28549.89 | J60: 0 | K60: =IF(J60=0,0,1/J60) -> 0 | L60: 0 | M60: =IF(L60=0,0,1/L60) -> 0 | N60: =IF(J60=0,0,+E60/J60) -> 0 | O60: 0 | P60: 0 | Q60: =IF(ISERROR(+N60+O60+P60), 0, +N60+O60+P60) -> 0 | R60: 0 | S60: =IF(ISERROR(+R60-Q60), 0, +R60-Q60) -> 0
A61: 2005 | B61: Property Under Finance Lease | C61: 0 | D61: 0 | E61: 0 | F61: 0 | G61: 0 | H61: 0 | I61: 0 | J61: 0 | K61: 0 | L61: 10 | M61: 0.1 | N61: 0 | O61: 0 | P61: 0 | Q61: =IF(ISERROR(+N61+O61+P61), 0, +N61+O61+P61) -> 0 | R61: 0 | S61: 0
B62: Total | C62: =SUM(C23:C61) -> 0 | D62: 0 | E62: 0 | F62: 31038989.85 | G62: 1337690.04 | H62: 29701299.81 | I62: 1195477.86 | J62: 611.3475384 | K62: 1.617158369 | L62: 531 | N62: =SUM(N23:N61) -> 0 | O62: 1023681.699 | P62: 34720.79164 | Q62: 1058402.491 | R62: 1045737.01 | S62: -12665.48086
C63: 0 | D63: 0 | E63: 0 | F63: 31038989.85 | G63: 1337690.04 | H63: 29701299.81 | I63: 1195477.86 | J63: 611.3475384 | K63: 0 | L63: 531 | M63: 0 | N63: 0 | O63: 1023681.699 | P63: 34720.79164 | Q63: 1058402.491 | R63: 1045737.01 | S63: -12665.48086
C64: =C63-C62 -> 0 | D64: =D63-D62 -> 0 | E64: 0 | F64: 0 | G64: 0 | H64: 0 | I64: 0 | J64: 0 | K64: -1.617158369 | L64: 0 | M64: 0 | N64: 0 | O64: 0 | P64: 0 | Q64: 0 | R64: 0 | S64: 0
A65: General: | B65: Applicants are to complete this appendix to show the reasonability of the depreciation expense that is included in rate base via. Accumulated depreciation and the revenue requirement.
B66: Applicants must provide a breakdown of depreciation and amortization expense in the above format for all relevant accounts. Balances presented in the table should exclude asset retirement obligations (AROs) and the related depreciation and accretion expense. These should be disclosed separately consistent with the Notes of historical Audited Financial Statements.
B67: This appendix must be completed under MIFRS for each year for the earlier of: 1) all historical years back to its last rebasing; or 2) at least three years of historical actuals, in addition to Bridge Year and Test Year forecasts. If this is the first application where the applicant is rebasing under MIFRS, contact OEB staff for further guidance on the appropriate depreciation schedules to complete (i.e. applicable years and accounting standard for each schedule).
A69: Notes:
A70: 1 | B70: This is the net book value of assets that existed as at the date of the utility's change in depreciation policies (i.e. as at Jan. 1, 2012 or Jan. 1, 2013). These assets are to be depreciated at the average remaining service life. This amount will not change in years subsequent to the date of the utility's change in depreciation policies. This column is expected to be used until the assets that existed as at the date of the utility's change in depreciation policies are fully depreciated.
A71: 2 | B71: This is the opening gross book value of assets that have been acquired after the date of the utility's change in depreciation policies (i.e. additions starting in 2012/2013 for those who changed policies Jan. 1, 2012/2013). These assets are to be depreciated at the revised service life. The amount is expected to be equal to the opening gross book value of the prior year plus the prior year's additions.
A72: 3 | B72: A recalculation should be performed to determine the average remaining life of opening balance of assets (i.e. excluding current year's additions) under the change in policies under CGAAP. For example, Asset A had a useful life of 20 years under CGAAP without the change in policies. On January 1 of the year of policy changes, Asset A was 3 years depreciated. As a result, Asset A would have a remaining service life of 17 years (20 years less 3 years) as at January 1 of the year of policy changes. Due to making the change in policies under CGAAP, management re-assessed the asset useful lives and concluded that the revised useful life of Asset A is now 30 years. Therefore, the average remaining useful life of the opening balance of Asset A is determined to be 27 years (30 years less 3 years) under the revised CGAAP as at January 1 of the year of policy changes.
A73: 4 | B73: The useful life used should be consistent with the OEB's regulatory accounting policies as set out in the Accounting Procedures Handbook for Electricity Distributors, effective Jan. 1, 2012 and also with the Report of the Board, Transition to International Financial Reporting Standards, EB-2008-0408, and the Kinectrics Report.
A74: 5 | B74: OEB policy of the "half-year" rule - the applicant must ensure that additions in the year attract a half-year depreciation expense in the first year. Deviations from this standard practice must be supported in the application.
A75: 6 | B75: The applicant must provide an explanation of material variances in evidence.
A76: 7 | B76: This should include assets in column A (excel column C) that become fully depreciated since the date of the policy change. The amount input in b (excel column D) should equal the net book value of the asset as at the date of depreciation policy change
A77: 8 | B77: This should include assets in column D (excel column F) that have become fully depreciated. The amount input in e (excel column G) should equal the gross book value of the asset
A80: Appendix 2-C
A81: Depreciation and Amortization Expense
A82: This appendix is to be completed in conjunction with the accounting instructions in Appendix 2-B | I82: 2014 CGAAP
C85: Book Values | J85: Service Lives | N85: Depreciation Expense
A86: Account | B86: Description | C86: Opening Net Book Value of Existing Assets as at Date of Policy Change (Jan. 1) 1 | D86: Less Fully Depreciated 7 | E86: Net Amount of Existing Assets Before Policy Change to be Depreciated | F86: Opening Gross Book Value of Assets Acquired After Policy Change 2 | G86: Less Fully Depreciated 8 | H86: Net Amount of Assets Acquired After Policy Change to be Depreciated | I86: Current Year Additions | J86: Average Remaining Life of Assets Existing Before Policy Change 3 | K86: Depreciation Rate Assets Acquired After Policy Change | L86: Life of Assets Acquired After Policy Change 4 | M86: Depreciation Rate on New Additions | N86: Depreciation Expense on Assets Existing Before Policy Change | O86: Depreciation Expense on Assets Acquired After Policy Change | P86: Depreciation Expense on Current Year Additions 5 | Q86: Total Current Year Depreciation Expense | R86: Depreciation Expense per Appendix 2-BA Fixed Assets, Column J | S86: Variance 6
C87: a | D87: b | E87: c = a-b | F87: d | G87: e | H87: f = d- e | I87: g | J87: h | K87: i = 1/h | L87: j | M87: k = 1/j | N87: l = c/h | O87: m = f/j | P87: n = g*0.5/j | Q87: o = l+m+n | R87: p | S87: q = p-o
A88: 1611 | B88: Computer Software (Formally known as Account 1925) | C88: 44660.61 | D88: 0 | E88: =C88-D88 -> 44660.61 | F88: 0 | G88: 0 | H88: =F88-G88 -> 0 | I88: 51314.4 | J88: 2.649121371 | K88: =IF(J88=0,0,1/J88) -> 0.3774836483 | L88: 5 | M88: =IF(L88=0,0,1/L88) -> 0.2 | N88: =IF(J88=0,0,+E88/J88) -> 16858.65 | O88: =IF(J88=0,0,+H88/J88) -> 0 | P88: =IF(L88=0,0,+(I88*0.5)/L88) -> 5131.44 | Q88: =IF(ISERROR(+N88+O88+P88), 0, +N88+O88+P88) -> 21990.09 | R88: 21990.09 | S88: =IF(ISERROR(+R88-Q88), 0, +R88-Q88) -> 3.637978807e-12
A89: 1612 | B89: Land Rights (Formally known as Account 1906) | C89: 0 | D89: 0 | E89: =C89-D89 -> 0 | F89: 0 | G89: 0 | H89: =F89-G89 -> 0 | I89: 0 | J89: 0 | K89: =IF(J89=0,0,1/J89) -> 0 | L89: 0 | M89: =IF(L89=0,0,1/L89) -> 0 | N89: =IF(J89=0,0,+E89/J89) -> 0 | O89: =IF(J89=0,0,+H89/J89) -> 0 | P89: 0 | Q89: =IF(ISERROR(+N89+O89+P89), 0, +N89+O89+P89) -> 0 | R89: 0 | S89: =IF(ISERROR(+R89-Q89), 0, +R89-Q89) -> 0
A90: 1805 | B90: Land | C90: 456548.3 | D90: 0 | E90: 456548.3 | F90: 0 | G90: 0 | H90: 0 | I90: 0 | J90: 0 | K90: 0 | L90: 0 | M90: 0 | N90: 0 | O90: 0 | P90: 0 | Q90: 0 | R90: 0 | S90: 0
A91: 1808 | B91: Buildings | C91: 402668.65 | D91: 0 | E91: 402668.65 | F91: 0 | G91: 0 | H91: 0 | I91: 0 | J91: 43.41198358 | K91: 0.02303511421 | L91: 0 | M91: 0 | N91: 9275.518342 | O91: 0 | P91: 0 | Q91: 9275.518342 | R91: 9269.42 | S91: -6.098342391
A92: 1810 | B92: Leasehold Improvements | C92: 0 | D92: 0 | E92: 0 | F92: 0 | G92: 0 | H92: 0 | I92: 0 | J92: 0 | K92: 0 | L92: 0 | M92: 0 | N92: 0 | O92: 0 | P92: 0 | Q92: 0 | R92: 0 | S92: 0
A93: 1815 | B93: Transformer Station Equipment >50 kV | C93: 0 | D93: 0 | E93: 0 | F93: 0 | G93: 0 | H93: 0 | I93: 0 | J93: 0 | K93: 0 | L93: 0 | M93: 0 | N93: 0 | O93: 0 | P93: 0 | Q93: 0 | R93: 0 | S93: 0
A94: 1820 | B94: Distribution Station Equipment <50 kV | C94: 3291335.798 | D94: 0 | E94: 3291335.798 | F94: 0 | G94: 0 | H94: 0 | I94: 106412.35 | J94: 24.51188703 | K94: 0.04079653268 | L94: 40 | M94: 0.025 | N94: 134275.0884 | O94: 0 | P94: 1330.154375 | Q94: 135605.2428 | R94: 135554.94 | S94: -50.30281795
A95: 1820 | B95: Distribution Station Equipment <50 kV (20Yrs) | C95: 0 | D95: 0 | E95: 0 | F95: 0 | G95: 0 | H95: 0 | I95: 0 | J95: 0 | K95: 0 | L95: 0 | M95: 0 | N95: 0 | O95: 0 | P95: 0 | Q95: 0 | R95: 0 | S95: =IF(ISERROR(+R95-Q95), 0, +R95-Q95) -> 0
A96: 1820 | B96: Distribution Station Equipment <50 kV (45Yrs) | C96: 0 | D96: 0 | E96: 0 | F96: 0 | G96: 0 | H96: 0 | I96: 0 | J96: 0 | K96: 0 | L96: 0 | M96: 0 | N96: 0 | O96: 0 | P96: 0 | Q96: 0 | R96: 0 | S96: =IF(ISERROR(+R96-Q96), 0, +R96-Q96) -> 0
A97: 1825 | B97: Storage Battery Equipment | C97: 0 | D97: 0 | E97: 0 | F97: 0 | G97: 0 | H97: 0 | I97: 0 | J97: 0 | K97: 0 | L97: 0 | M97: 0 | N97: 0 | O97: 0 | P97: 0 | Q97: 0 | R97: 0 | S97: 0
A98: 1830 | B98: Poles, Towers & Fixtures | C98: 4143496.626 | D98: 0 | E98: 4143496.626 | F98: 0 | G98: 0 | H98: 0 | I98: 802437.45 | J98: 26.55933787 | K98: 0.03765154105 | L98: 45 | M98: 0.02222222222 | N98: 156009.0333 | O98: 0 | P98: 8915.971667 | Q98: 164925.005 | R98: 175329.12 | S98: 10404.11502
A99: 1835 | B99: Overhead Conductors & Devices | C99: 2291568.572 | D99: 0 | E99: 2291568.572 | F99: 0 | G99: 0 | H99: 0 | I99: 64947.83 | J99: 21.76901574 | K99: 0.04593684952 | L99: 45 | M99: 0.02222222222 | N99: 105267.4407 | O99: 0 | P99: 721.6425556 | Q99: 105989.0832 | R99: 108441.52 | S99: 2452.43678
A100: 1840 | B100: Underground Conduit | C100: 751806.9716 | D100: 0 | E100: 751806.9716 | F100: 0 | G100: 0 | H100: 0 | I100: 25204.92 | J100: 35.40441415 | K100: 0.0282450656 | L100: 50 | M100: 0.02 | N100: =IF(J100=0,0,+E100/J100) -> 21234.83723 | O100: 0 | P100: 252.0492 | Q100: 21486.88643 | R100: 21503.13 | S100: 16.24357138
A101: 1845 | B101: Underground Conductors & Devices | C101: 3021358.251 | D101: 0 | E101: 3021358.251 | F101: 0 | G101: 0 | H101: 0 | I101: 102246.08 | J101: 25.73239192 | K101: 0.03886152531 | L101: 40 | M101: 0.025 | N101: =IF(J101=0,0,+E101/J101) -> 117414.5901 | O101: 0 | P101: 1278.076 | Q101: 118692.6661 | R101: 118698.79 | S101: 6.123859661
A102: 1850 | B102: Line Transformers | C102: 2660367.1 | D102: 0 | E102: 2660367.1 | F102: 0 | G102: 0 | H102: 0 | I102: 89941.43 | J102: 23.62642219 | K102: 0.0423254944 | L102: 40 | M102: 0.025 | N102: 112601.3528 | O102: 0 | P102: 1124.267875 | Q102: 113725.6207 | R102: 113759.84 | S102: 34.21933442
A103: 1855 | B103: Services (Overhead & Underground) | C103: 967586.8373 | D103: 0 | E103: 967586.8373 | F103: 0 | G103: 0 | H103: 0 | I103: 148688.37 | J103: 29.47527504 | K103: 0.03392674025 | L103: 40 | M103: 0.025 | N103: 32827.0673 | O103: 0 | P103: 1858.604625 | Q103: 34685.67192 | R103: 34684.53 | S103: -1.141924999
A104: 1860 | B104: Meters | C104: 390378.65 | D104: 0 | E104: 390378.65 | F104: 0 | G104: 0 | H104: 0 | I104: 22505.88 | J104: 11.63251066 | K104: 0.08596596464 | L104: 15 | M104: 0.06666666667 | N104: 33559.27722 | O104: 0 | P104: 750.196 | Q104: 34309.47322 | R104: 34761.93 | S104: 452.4567762
A105: 1860 | B105: Meters (Smart Meters) | C105: 1688487.6 | D105: 0 | E105: 1688487.6 | F105: 0 | G105: 0 | H105: 0 | I105: 213185.58 | J105: 11.80328543 | K105: 0.08472217386 | L105: 15 | M105: 0.06666666667 | N105: 143052.34 | O105: 0 | P105: 7106.186 | Q105: 150158.526 | R105: 147818.48 | S105: -2340.046
A106: 1905 | B106: Land | C106: 0 | D106: 0 | E106: 0 | F106: 0 | G106: 0 | H106: 0 | I106: 0 | J106: 0 | K106: 0 | L106: 0 | M106: 0 | N106: 0 | O106: 0 | P106: 0 | Q106: 0 | R106: 0 | S106: 0
A107: 1908 | B107: Buildings & Fixtures | C107: 566.36 | D107: 0 | E107: 566.36 | F107: 0 | G107: 0 | H107: 0 | I107: 0 | J107: 21 | K107: 0.04761904762 | L107: 50 | M107: 0.02 | N107: 26.96952381 | O107: 0 | P107: 0 | Q107: 26.96952381 | R107: 26.95 | S107: -0.01952380952
A108: 1910 | B108: Leasehold Improvements | C108: 0 | D108: 0 | E108: 0 | F108: 0 | G108: 0 | H108: 0 | I108: 0 | J108: 0 | K108: 0 | L108: 0 | M108: 0 | N108: 0 | O108: 0 | P108: 0 | Q108: 0 | R108: 0 | S108: 0
A109: 1915 | B109: Office Furniture & Equipment (10 years) | C109: 70828.75 | D109: 0 | E109: 70828.75 | F109: 0 | G109: 0 | H109: 0 | I109: 9437.31 | J109: 5.179904598 | K109: 0.1930537486 | L109: 10 | M109: 0.1 | N109: 13673.75569 | O109: 0 | P109: 471.8655 | Q109: 14145.62119 | R109: 14037.36 | S109: -108.2611944
A110: 1915 | B110: Office Furniture & Equipment (5 years) | C110: 0 | D110: 0 | E110: 0 | F110: 0 | G110: 0 | H110: 0 | I110: 0 | J110: 0 | K110: 0 | L110: 0 | M110: 0 | N110: 0 | O110: 0 | P110: 0 | Q110: 0 | R110: 0 | S110: 0
A111: 1920 | B111: Computer Equipment - Hardware | C111: 4125.99 | D111: 0 | E111: 4125.99 | F111: 0 | G111: 0 | H111: 0 | I111: 3654.19 | J111: 2.5 | K111: 0.4 | L111: 3 | M111: 0.3333333333 | N111: 1650.396 | O111: 0 | P111: 609.0316667 | Q111: 2259.427667 | R111: 2259.44 | S111: 0.01233333333
A112: 1920 | B112: Computer Equip.-Hardware(Post Mar. 22/04) | C112: 0 | D112: 0 | E112: =C112-D112 -> 0 | F112: 0 | G112: 0 | H112: =F112-G112 -> 0 | I112: 0 | J112: 0 | K112: =IF(J112=0,0,1/J112) -> 0 | L112: 0 | M112: =IF(L112=0,0,1/L112) -> 0 | N112: =IF(J112=0,0,+E112/J112) -> 0 | O112: 0 | P112: 0 | Q112: =IF(ISERROR(+N112+O112+P112), 0, +N112+O112+P112) -> 0 | R112: 0 | S112: 0
A113: 1920 | B113: Computer Equip.-Hardware(Post Mar. 19/07) | C113: 0 | D113: 0 | E113: =C113-D113 -> 0 | F113: 0 | G113: 0 | H113: =F113-G113 -> 0 | I113: 0 | J113: 0 | K113: =IF(J113=0,0,1/J113) -> 0 | L113: 0 | M113: =IF(L113=0,0,1/L113) -> 0 | N113: =IF(J113=0,0,+E113/J113) -> 0 | O113: 0 | P113: 0 | Q113: =IF(ISERROR(+N113+O113+P113), 0, +N113+O113+P113) -> 0 | R113: 0 | S113: 0
A114: 1930 | B114: Transportation Equipment | C114: 652637.83 | D114: 0 | E114: 652637.83 | F114: 0 | G114: 0 | H114: 0 | I114: 262295.05 | J114: 4.301447064 | K114: 0.2324799039 | L114: 8 | M114: 0.125 | N114: 151725.18 | O114: 0 | P114: 16393.44062 | Q114: 168118.6206 | R114: 168118.627 | S114: 0.006374999997
A115: 1930 | B115: Transportation Equipment (5Yrs) | C115: 185054.61 | D115: 0 | E115: 185054.61 | F115: 0 | G115: 0 | H115: 0 | I115: 622.83 | J115: 3.599396297 | K115: 0.2778243676 | L115: 5 | M115: 0.2 | N115: 51412.68 | O115: 0 | P115: 62.283 | Q115: 51474.963 | R115: 51474.963 | S115: =IF(ISERROR(+R115-Q115), 0, +R115-Q115) -> -7.275957614e-12
A116: 1935 | B116: Stores Equipment | C116: 12408.51 | D116: 0 | E116: 12408.51 | F116: 0 | G116: 0 | H116: 0 | I116: 6773.5 | J116: 7.099705335 | K116: 0.140850916 | L116: 10 | M116: 0.1 | N116: 1747.75 | O116: 0 | P116: 338.675 | Q116: 2086.425 | R116: 2086.43 | S116: 0.005
A117: 1940 | B117: Tools, Shop & Garage Equipment | C117: 0 | D117: 0 | E117: 0 | F117: 0 | G117: 0 | H117: 0 | I117: 0 | J117: 0 | K117: 0 | L117: 0 | M117: 0 | N117: 0 | O117: 0 | P117: 0 | Q117: 0 | R117: 0 | S117: 0
A118: 1945 | B118: Measurement & Testing Equipment | C118: 0 | D118: 0 | E118: 0 | F118: 0 | G118: 0 | H118: 0 | I118: 27237.81 | J118: 0 | K118: 0 | L118: 10 | M118: 0.1 | N118: 0 | O118: 0 | P118: 1361.8905 | Q118: 1361.8905 | R118: 1361.9 | S118: 0.0095
A119: 1950 | B119: Power Operated Equipment | C119: 0 | D119: 0 | E119: 0 | F119: 0 | G119: 0 | H119: 0 | I119: 4866.8 | J119: 0 | K119: 0 | L119: 10 | M119: 0.1 | N119: 0 | O119: 0 | P119: 243.34 | Q119: 243.34 | R119: 243.34 | S119: 0
A120: 1955 | B120: Communications Equipment | C120: 11929.51 | D120: 0 | E120: 11929.51 | F120: 0 | G120: 0 | H120: 0 | I120: 20866 | J120: 3.017096741 | K120: 0.33144446 | L120: 10 | M120: 0.1 | N120: 3953.97 | O120: 0 | P120: 1043.3 | Q120: 4997.27 | R120: 4997.27 | S120: 0
A121: 1960 | B121: Miscellaneous Equipment | C121: 18281.69 | D121: 0 | E121: =C121-D121 -> 18281.69 | F121: 0 | G121: 0 | H121: =F121-G121 -> 0 | I121: 0 | J121: 5.172618778 | K121: =IF(J121=0,0,1/J121) -> 0.1933256718 | L121: 10 | M121: =IF(L121=0,0,1/L121) -> 0.1 | N121: =IF(J121=0,0,+E121/J121) -> 3534.32 | O121: =IF(J121=0,0,+H121/J121) -> 0 | P121: 0 | Q121: =IF(ISERROR(+N121+O121+P121), 0, +N121+O121+P121) -> 3534.32 | R121: 3534.32 | S121: =IF(ISERROR(+R121-Q121), 0, +R121-Q121) -> -4.547473509e-13
A122: 1970 | B122: Load Management Controls Customer Premises | C122: 0 | D122: 0 | E122: 0 | F122: 0 | G122: 0 | H122: 0 | I122: 0 | J122: 0 | K122: 0 | L122: 0 | M122: 0 | N122: 0 | O122: 0 | P122: 0 | Q122: 0 | R122: 0 | S122: 0
A123: 1975 | B123: Load Management Controls Utility Premises | C123: 0 | D123: 0 | E123: 0 | F123: 0 | G123: 0 | H123: 0 | I123: 0 | J123: 0 | K123: 0 | L123: 0 | M123: 0 | N123: 0 | O123: 0 | P123: 0 | Q123: 0 | R123: 0 | S123: 0
A124: 1980 | B124: System Supervisor Equipment | C124: 258713.53 | D124: 0 | E124: 258713.53 | F124: 0 | G124: 0 | H124: 0 | I124: 13696.15 | J124: 7.14375669 | K124: 0.1399823711 | L124: 15 | M124: 0.06666666667 | N124: 36215.33336 | O124: 0 | P124: 456.5383333 | Q124: 36671.8717 | R124: 36620.99 | S124: -50.88169769
A125: 1985 | B125: Miscellaneous Fixed Assets | C125: 0 | D125: 0 | E125: 0 | F125: 0 | G125: 0 | H125: 0 | I125: 0 | J125: 0 | K125: 0 | L125: 0 | M125: 0 | N125: 0 | O125: 0 | P125: 0 | Q125: 0 | R125: 0 | S125: 0
A126: 1990 | B126: Other Tangible Property | C126: 138107.41 | D126: 0 | E126: 138107.41 | F126: 0 | G126: 0 | H126: 0 | I126: 12006.58 | J126: 0 | K126: 0 | L126: 0 | M126: 0 | N126: 0 | O126: 0 | P126: 0 | Q126: 0 | R126: 0 | S126: 0
A127: 1995 | B127: Contributions & Grants | C127: -6398120.95 | D127: 0 | E127: -6398120.95 | F127: 0 | G127: 0 | H127: 0 | I127: -351231.02 | J127: 33.2092071 | K127: 0.03011213116 | L127: 45 | M127: 0.02222222222 | N127: -192661.0572 | O127: 0 | P127: =IF(L127=0,0,+(I127*0.5)/L127) -> -3902.566889 | Q127: -196563.6241 | R127: -196711.42 | S127: -147.7958919
A128: 2055 | B128: Construction Work in Process | C128: 55082.61 | D128: 0 | E128: 55082.61 | F128: 0 | G128: 0 | H128: 0 | I128: 164121.98 | J128: 0 | K128: 0 | L128: 0 | M128: 0 | N128: 0 | O128: 0 | P128: =IF(L128=0,0,+(I128*0.5)/L128) -> 0 | Q128: 0 | R128: 0 | S128: 0
A129: 2005 | B129: Property Under Finance Lease | C129: 0 | D129: 0 | E129: 0 | F129: 0 | G129: 0 | H129: 0 | I129: 0 | J129: 0 | K129: 0 | L129: 10 | M129: 0.1 | N129: 0 | O129: 0 | P129: 0 | Q129: 0 | R129: 0 | S129: 0
B130: Total | C130: =SUM(C88:C129) -> 15119879.82 | D130: 0 | E130: 15119879.82 | F130: 0 | G130: 0 | H130: 0 | I130: 1801231.47 | J130: 348.7987776 | K130: 2.825643268 | L130: 531 | N130: =SUM(N88:N129) -> 953654.4928 | O130: 0 | P130: 45546.38603 | Q130: 999200.8788 | R130: 1009861.96 | S130: 10661.08116
A133: General: | B133: Applicants are to complete this appendix to show the reasonability of the depreciation expense that is included in rate base via. Accumulated depreciation and the revenue requirement.
B134: Applicants must provide a breakdown of depreciation and amortization expense in the above format for all relevant accounts. Balances presented in the table should exclude asset retirement obligations (AROs) and the related depreciation and accretion expense. These should be disclosed separately consistent with the Notes of historical Audited Financial Statements.
B135: This appendix must be completed under MIFRS for each year for the earlier of: 1) all historical years back to its last rebasing; or 2) at least three years of historical actuals, in addition to Bridge Year and Test Year forecasts. If this is the first application where the applicant is rebasing under MIFRS, contact OEB staff for further guidance on the appropriate depreciation schedules to complete (i.e. applicable years and accounting standard for each schedule).
A137: Notes:
A138: 1 | B138: This is the net book value of assets that existed as at the date of the utility's change in depreciation policies (i.e. as at Jan. 1, 2012 or Jan. 1, 2013). These assets are to be depreciated at the average remaining service life. This amount will not change in years subsequent to the date of the utility's change in depreciation policies. This column is expected to be used until the assets that existed as at the date of the utility's change in depreciation policies are fully depreciated.
A139: 2 | B139: This is the opening gross book value of assets that have been acquired after the date of the utility's change in depreciation policies (i.e. additions starting in 2012/2013 for those who changed policies Jan. 1, 2012/2013). These assets are to be depreciated at the revised service life. The amount is expected to be equal to the opening gross book value of the prior year plus the prior year's additions.
A140: 3 | B140: A recalculation should be performed to determine the average remaining life of opening balance of assets (i.e. excluding current year's additions) under the change in policies under CGAAP. For example, Asset A had a useful life of 20 years under CGAAP without the change in policies. On January 1 of the year of policy changes, Asset A was 3 years depreciated. As a result, Asset A would have a remaining service life of 17 years (20 years less 3 years) as at January 1 of the year of policy changes. Due to making the change in policies under CGAAP, management re-assessed the asset useful lives and concluded that the revised useful life of Asset A is now 30 years. Therefore, the average remaining useful life of the opening balance of Asset A is determined to be 27 years (30 years less 3 years) under the revised CGAAP as at January 1 of the year of policy changes.
A141: 4 | B141: The useful life used should be consistent with the OEB's regulatory accounting policies as set out in the Accounting Procedures Handbook for Electricity Distributors, effective Jan. 1, 2012 and also with the Report of the Board, Transition to International Financial Reporting Standards, EB-2008-0408, and the Kinectrics Report.
A142: 5 | B142: OEB policy of the "half-year" rule - the applicant must ensure that additions in the year attract a half-year depreciation expense in the first year. Deviations from this standard practice must be supported in the application.
A143: 6 | B143: The applicant must provide an explanation of material variances in evidence.
A144: 7 | B144: This should include assets in column A (excel column C) that become fully depreciated since the date of the policy change. The amount input in b (excel column D) should equal the net book value of the asset as at the date of depreciation policy change
A145: 8 | B145: This should include assets in column D (excel column F) that have become fully depreciated. The amount input in e (excel column G) should equal the gross book value of the asset
A150: Appendix 2-C
A151: Depreciation and Amortization Expense
A152: This appendix is to be completed in conjunction with the accounting instructions in Appendix 2-B | I152: 2014 MIFRS
C155: Book Values | J155: Service Lives | N155: Depreciation Expense
A156: Account | B156: Description | C156: Opening Net Book Value of Existing Assets as at Date of Policy Change (Jan. 1) 1 | D156: Less Fully Depreciated 7 | E156: Net Amount of Existing Assets Before Policy Change to be Depreciated | F156: Opening Gross Book Value of Assets Acquired After Policy Change 2 | G156: Less Fully Depreciated 8 | H156: Net Amount of Assets Acquired After Policy Change to be Depreciated | I156: Current Year Additions | J156: Average Remaining Life of Assets Existing Before Policy Change 3 | K156: Depreciation Rate Assets Acquired After Policy Change | L156: Life of Assets Acquired After Policy Change 4 | M156: Depreciation Rate on New Additions | N156: Depreciation Expense on Assets Existing Before Policy Change | O156: Depreciation Expense on Assets Acquired After Policy Change | P156: Depreciation Expense on Current Year Additions 5 | Q156: Total Current Year Depreciation Expense | R156: Depreciation Expense per Appendix 2-BA Fixed Assets, Column J | S156: Variance 6
C157: a | D157: b | E157: c = a-b | F157: d | G157: e | H157: f = d- e | I157: g | J157: h | K157: i = 1/h | L157: j | M157: k = 1/j | N157: l = c/h | O157: m = f/j | P157: n = g*0.5/j | Q157: o = l+m+n | R157: p | S157: q = p-o
A158: 1611 | B158: Computer Software (Formally known as Account 1925) | C158: 44660.61 | D158: 0 | E158: =C158-D158 -> 44660.61 | F158: 0 | G158: 0 | H158: =F158-G158 -> 0 | I158: 51314.4 | J158: 2.649121371 | K158: =IF(J158=0,0,1/J158) -> 0.3774836483 | L158: 5 | M158: =IF(L158=0,0,1/L158) -> 0.2 | N158: =IF(J158=0,0,+E158/J158) -> 16858.65 | O158: =IF(J158=0,0,+H158/J158) -> 0 | P158: =IF(L158=0,0,+(I158*0.5)/L158) -> 5131.44 | Q158: =IF(ISERROR(+N158+O158+P158), 0, +N158+O158+P158) -> 21990.09 | R158: 21990.09 | S158: =IF(ISERROR(+R158-Q158), 0, +R158-Q158) -> -3.637978807e-12
A159: 1612 | B159: Land Rights (Formally known as Account 1906) | C159: 0 | D159: 0 | E159: =C159-D159 -> 0 | F159: 0 | G159: 0 | H159: =F159-G159 -> 0 | I159: 0 | J159: 0 | K159: =IF(J159=0,0,1/J159) -> 0 | L159: 0 | M159: =IF(L159=0,0,1/L159) -> 0 | N159: =IF(J159=0,0,+E159/J159) -> 0 | O159: =IF(J159=0,0,+H159/J159) -> 0 | P159: 0 | Q159: =IF(ISERROR(+N159+O159+P159), 0, +N159+O159+P159) -> 0 | R159: 0 | S159: =IF(ISERROR(+R159-Q159), 0, +R159-Q159) -> 0
A160: 1805 | B160: Land | C160: 456548.3 | D160: 0 | E160: 456548.3 | F160: 0 | G160: 0 | H160: 0 | I160: 0 | J160: 0 | K160: 0 | L160: 0 | M160: 0 | N160: 0 | O160: 0 | P160: 0 | Q160: 0 | R160: 0 | S160: 0
A161: 1808 | B161: Buildings | C161: 402668.64 | D161: 0 | E161: 402668.64 | F161: 0 | G161: 0 | H161: 0 | I161: 0 | J161: 43.44054321 | K161: 0.02301996997 | L161: 0 | M161: 0 | N161: 9269.42 | O161: 0 | P161: 0 | Q161: 9269.42 | R161: 9269.42 | S161: 0
A162: 1810 | B162: Leasehold Improvements | C162: 0 | D162: 0 | E162: 0 | F162: 0 | G162: 0 | H162: 0 | I162: 0 | J162: 0 | K162: 0 | L162: 0 | M162: 0 | N162: 0 | O162: 0 | P162: 0 | Q162: 0 | R162: 0 | S162: 0
A163: 1815 | B163: Transformer Station Equipment >50 kV | C163: 0 | D163: 0 | E163: 0 | F163: 0 | G163: 0 | H163: 0 | I163: 0 | J163: 0 | K163: 0 | L163: 0 | M163: 0 | N163: 0 | O163: 0 | P163: 0 | Q163: 0 | R163: 0 | S163: 0
A164: 1820 | B164: Distribution Station Equipment <50 kV | C164: 3291335.8 | D164: 0 | E164: 3291335.8 | F164: 0 | G164: 0 | H164: 0 | I164: 106412.35 | J164: 24.52107325 | K164: 0.04078124925 | L164: 40 | M164: 0.025 | N164: 134224.7856 | O164: 0 | P164: 1330.154375 | Q164: 135554.94 | R164: 135554.94 | S164: 0
A165: 1820 | B165: Distribution Station Equipment <50 kV (20Yrs) | C165: 0 | D165: 0 | E165: 0 | F165: 0 | G165: 0 | H165: 0 | I165: 0 | J165: 0 | K165: 0 | L165: 0 | M165: 0 | N165: 0 | O165: 0 | P165: 0 | Q165: 0 | R165: 0 | S165: =IF(ISERROR(+R165-Q165), 0, +R165-Q165) -> 0
A166: 1820 | B166: Distribution Station Equipment <50 kV (45Yrs) | C166: 0 | D166: 0 | E166: 0 | F166: 0 | G166: 0 | H166: 0 | I166: 0 | J166: 0 | K166: 0 | L166: 0 | M166: 0 | N166: 0 | O166: 0 | P166: 0 | Q166: 0 | R166: 0 | S166: =IF(ISERROR(+R166-Q166), 0, +R166-Q166) -> 0
A167: 1825 | B167: Storage Battery Equipment | C167: 0 | D167: 0 | E167: 0 | F167: 0 | G167: 0 | H167: 0 | I167: 0 | J167: 0 | K167: 0 | L167: 0 | M167: 0 | N167: 0 | O167: 0 | P167: 0 | Q167: 0 | R167: 0 | S167: =IF(ISERROR(+R167-Q167), 0, +R167-Q167) -> 0
A168: 1830 | B168: Poles, Towers & Fixtures | C168: 2056353.34 | D168: 0 | E168: 2056353.34 | F168: 0 | G168: 0 | H168: 0 | I168: 802437.45 | J168: 19.06877267 | K168: 0.05244176 | L168: 45 | M168: 0.02222222222 | N168: 107838.7883 | O168: 0 | P168: 8915.971667 | Q168: 116754.76 | R168: 116754.76 | S168: 0
A169: 1835 | B169: Overhead Conductors & Devices | C169: 1175960.11 | D169: 0 | E169: 1175960.11 | F169: 0 | G169: 0 | H169: 0 | I169: 64947.83 | J169: 15.40703126 | K169: 0.06490543072 | L169: 45 | M169: 0.02222222222 | N169: 76326.19744 | O169: 0 | P169: 721.6425556 | Q169: 77047.84 | R169: 77047.84 | S169: 0
A170: 1840 | B170: Underground Conduit | C170: 407453.98 | D170: 0 | E170: 407453.98 | F170: 0 | G170: 0 | H170: 0 | I170: 25204.92 | J170: 19.17332976 | K170: 0.05215578162 | L170: 50 | M170: 0.02 | N170: =IF(J170=0,0,+E170/J170) -> 21251.0808 | O170: 0 | P170: 252.0492 | Q170: 21503.13 | R170: 21503.13 | S170: 0
A171: 1845 | B171: Underground Conductors & Devices | C171: 1615860.46 | D171: 0 | E171: 1615860.46 | F171: 0 | G171: 0 | H171: 0 | I171: 102246.08 | J171: 26.52467441 | K171: 0.03770074552 | L171: 40 | M171: 0.025 | N171: =IF(J171=0,0,+E171/J171) -> 60919.144 | O171: 0 | P171: 1278.076 | Q171: 62197.22 | R171: 62197.22 | S171: -7.275957614e-12
A172: 1850 | B172: Line Transformers | C172: 1827640.16 | D172: 0 | E172: 1827640.16 | F172: 0 | G172: 75.48 | H172: -75.48 | I172: 89941.43 | J172: 21.20426483 | K172: 0.04716032401 | L172: 40 | M172: 0.025 | N172: 86192.10212 | O172: -3.559661257 | P172: 1124.267875 | Q172: 87312.81034 | R172: 87316.37 | S172: 3.559661257
A173: 1855 | B173: Services (Overhead & Underground) | C173: 354795.34 | D173: 0 | E173: 354795.34 | F173: 0 | G173: 0 | H173: 0 | I173: 148688.37 | J173: 26.91126787 | K173: 0.03715915597 | L173: 40 | M173: 0.025 | N173: 13183.89538 | O173: 0 | P173: 1858.604625 | Q173: 15042.5 | R173: 15042.5 | S173: -1.818989404e-12
A174: 1860 | B174: Meters | C174: 390378.65 | D174: 0 | E174: 390378.65 | F174: 0 | G174: 0 | H174: 0 | I174: 22505.88 | J174: 11.47776382 | K174: 0.08712498493 | L174: 15 | M174: 0.06666666667 | N174: 34011.734 | O174: 0 | P174: 750.196 | Q174: 34761.93 | R174: 34761.93 | S174: 0
A175: 1860 | B175: Meters (Smart Meters) | C175: 1688487.6 | D175: 0 | E175: 1688487.6 | F175: 0 | G175: 0 | H175: 0 | I175: 213185.58 | J175: 11.99957411 | K175: 0.08333629101 | L175: 15 | M175: 0.06666666667 | N175: 140712.294 | O175: 0 | P175: 7106.186 | Q175: 147818.48 | R175: 147818.48 | S175: 0
A176: 1905 | B176: Land | C176: 0 | D176: 0 | E176: 0 | F176: 0 | G176: 0 | H176: 0 | I176: 0 | J176: 0 | K176: 0 | L176: 0 | M176: 0 | N176: 0 | O176: 0 | P176: 0 | Q176: 0 | R176: 0 | S176: 0
A177: 1908 | B177: Buildings & Fixtures | C177: 566.36 | D177: 0 | E177: 566.36 | F177: 0 | G177: 0 | H177: 0 | I177: 0 | J177: 21.01521336 | K177: 0.04758457518 | L177: 50 | M177: 0.02 | N177: 26.95 | O177: 0 | P177: 0 | Q177: 26.95 | R177: 26.95 | S177: 0
A178: 1910 | B178: Leasehold Improvements | C178: 0 | D178: 0 | E178: 0 | F178: 0 | G178: 0 | H178: 0 | I178: 0 | J178: 0 | K178: 0 | L178: 0 | M178: 0 | N178: 0 | O178: 0 | P178: 0 | Q178: 0 | R178: 0 | S178: 0
A179: 1915 | B179: Office Furniture & Equipment (10 years) | C179: 70828.75 | D179: 0 | E179: 70828.75 | F179: 0 | G179: 0 | H179: 0 | I179: 9437.31 | J179: 5.221243501 | K179: 0.1915252563 | L179: 10 | M179: 0.1 | N179: 13565.4945 | O179: 0 | P179: 471.8655 | Q179: 14037.36 | R179: 14037.36 | S179: 0
A180: 1915 | B180: Office Furniture & Equipment (5 years) | C180: 0 | D180: 0 | E180: 0 | F180: 0 | G180: 0 | H180: 0 | I180: 0 | J180: 0 | K180: 0 | L180: 0 | M180: 0 | N180: 0 | O180: 0 | P180: 0 | Q180: 0 | R180: 0 | S180: 0
A181: 1920 | B181: Computer Equipment - Hardware | C181: 4125.99 | D181: 0 | E181: 4125.99 | F181: 0 | G181: 0 | H181: 0 | I181: 3654.19 | J181: 2.499981318 | K181: 0.4000029892 | L181: 3 | M181: 0.3333333333 | N181: 1650.408333 | O181: 0 | P181: 609.0316667 | Q181: 2259.44 | R181: 2259.44 | S181: 0
A182: 1920 | B182: Computer Equip.-Hardware(Post Mar. 22/04) | C182: 0 | D182: 0 | E182: =C182-D182 -> 0 | F182: 0 | G182: 0 | H182: =F182-G182 -> 0 | I182: 0 | J182: 0 | K182: =IF(J182=0,0,1/J182) -> 0 | L182: 0 | M182: =IF(L182=0,0,1/L182) -> 0 | N182: =IF(J182=0,0,+E182/J182) -> 0 | O182: 0 | P182: 0 | Q182: =IF(ISERROR(+N182+O182+P182), 0, +N182+O182+P182) -> 0 | R182: 0 | S182: 0
A183: 1920 | B183: Computer Equip.-Hardware(Post Mar. 19/07) | C183: 0 | D183: 0 | E183: =C183-D183 -> 0 | F183: 0 | G183: 0 | H183: =F183-G183 -> 0 | I183: 0 | J183: 0 | K183: =IF(J183=0,0,1/J183) -> 0 | L183: 0 | M183: =IF(L183=0,0,1/L183) -> 0 | N183: =IF(J183=0,0,+E183/J183) -> 0 | O183: 0 | P183: 0 | Q183: =IF(ISERROR(+N183+O183+P183), 0, +N183+O183+P183) -> 0 | R183: 0 | S183: 0
A184: 1930 | B184: Transportation Equipment | C184: 652637.83 | D184: 0 | E184: 652637.83 | F184: 0 | G184: 0 | H184: 0 | I184: 262917.88 | J184: 4.302550753 | K184: 0.2324202682 | L184: 8 | M184: 0.125 | N184: 151686.2595 | O184: 0 | P184: 16432.3675 | Q184: 168118.627 | R184: 168118.627 | S184: 0
A185: 1930 | B185: Transportation Equipment (5Yrs) | C185: 185054.61 | D185: 0 | E185: 185054.61 | F185: 0 | G185: 0 | H185: 0 | I185: 0 | J185: 3.595041147 | K185: 0.2781609331 | L185: 5 | M185: 0.2 | N185: 51474.963 | O185: 0 | P185: 0 | Q185: 51474.963 | R185: 51474.963 | S185: =IF(ISERROR(+R185-Q185), 0, +R185-Q185) -> 0
A186: 1935 | B186: Stores Equipment | C186: 12408.51 | D186: 0 | E186: 12408.51 | F186: 0 | G186: 0 | H186: 0 | I186: 6773.5 | J186: 7.099685025 | K186: 0.140851319 | L186: 10 | M186: 0.1 | N186: 1747.755 | O186: 0 | P186: 338.675 | Q186: 2086.43 | R186: 2086.43 | S186: =IF(ISERROR(+R186-Q186), 0, +R186-Q186) -> 0
A187: 1940 | B187: Tools, Shop & Garage Equipment | C187: 0 | D187: 0 | E187: 0 | F187: 0 | G187: 0 | H187: 0 | I187: 0 | J187: 0 | K187: 0 | L187: 0 | M187: 0 | N187: 0 | O187: 0 | P187: 0 | Q187: 0 | R187: 0 | S187: 0
A188: 1945 | B188: Measurement & Testing Equipment | C188: 0 | D188: 0 | E188: 0 | F188: 0 | G188: 0 | H188: 0 | I188: 27237.81 | J188: 0 | K188: 0 | L188: 10 | M188: 0.1 | N188: 0 | O188: 0 | P188: 1361.8905 | Q188: 1361.8905 | R188: 1361.9 | S188: 0.0095
A189: 1950 | B189: Power Operated Equipment | C189: 0 | D189: 0 | E189: 0 | F189: 0 | G189: 0 | H189: 0 | I189: 4866.8 | J189: 0 | K189: 0 | L189: 10 | M189: 0.1 | N189: 0 | O189: 0 | P189: 243.34 | Q189: 243.34 | R189: 243.34 | S189: 0
A190: 1955 | B190: Communications Equipment | C190: 11929.51 | D190: 0 | E190: 11929.51 | F190: 0 | G190: 0 | H190: 0 | I190: 20866 | J190: 3.017096741 | K190: 0.33144446 | L190: 10 | M190: 0.1 | N190: 3953.97 | O190: 0 | P190: 1043.3 | Q190: 4997.27 | R190: 4997.27 | S190: 0
A191: 1960 | B191: Miscellaneous Equipment | C191: 18281.69 | D191: 0 | E191: 18281.69 | F191: 0 | G191: 0 | H191: 0 | I191: 0 | J191: 5.172618778 | K191: 0.1933256718 | L191: 10 | M191: 0.1 | N191: 3534.32 | O191: 0 | P191: 0 | Q191: 3534.32 | R191: 3534.32 | S191: -4.547473509e-13
A192: 1970 | B192: Load Management Controls Customer Premises | C192: 0 | D192: 0 | E192: 0 | F192: 0 | G192: 0 | H192: 0 | I192: 0 | J192: 0 | K192: 0 | L192: 0 | M192: 0 | N192: 0 | O192: 0 | P192: 0 | Q192: 0 | R192: 0 | S192: 0
A193: 1975 | B193: Load Management Controls Utility Premises | C193: 0 | D193: 0 | E193: 0 | F193: 0 | G193: 0 | H193: 0 | I193: 0 | J193: 0 | K193: 0 | L193: 0 | M193: 0 | N193: 0 | O193: 0 | P193: 0 | Q193: 0 | R193: 0 | S193: 0
A194: 1980 | B194: System Supervisor Equipment | C194: 258713.53 | D194: 0 | E194: 258713.53 | F194: 0 | G194: 0 | H194: 0 | I194: 13696.15 | J194: 7.153807623 | K194: 0.1397856991 | L194: 15 | M194: 0.06666666667 | N194: 36164.45167 | O194: 0 | P194: 456.5383333 | Q194: 36620.99 | R194: 36620.99 | S194: -7.275957614e-12
A195: 1985 | B195: Miscellaneous Fixed Assets | C195: 0 | D195: 0 | E195: 0 | F195: 0 | G195: 0 | H195: 0 | I195: 0 | J195: 0 | K195: 0 | L195: 0 | M195: 0 | N195: 0 | O195: 0 | P195: 0 | Q195: 0 | R195: 0 | S195: 0
A196: 1990 | B196: Other Tangible Property | C196: 138107.41 | D196: 0 | E196: 138107.41 | F196: 0 | G196: 0 | H196: 0 | I196: 12006.58 | J196: 0 | K196: 0 | L196: 0 | M196: 0 | N196: 0 | O196: 0 | P196: 0 | Q196: 0 | R196: 0 | S196: 0
A197: 1995 | B197: Contributions & Grants | C197: 0 | D197: 0 | E197: 0 | F197: 0 | G197: 0 | H197: 0 | I197: 0 | J197: 0 | K197: 0 | L197: 45 | M197: 0.02222222222 | N197: 0 | O197: 0 | P197: =IF(L197=0,0,+(I197*0.5)/L197) -> 0 | Q197: 0 | R197: -4156.31 | S197: -4156.31
A198: 2055 | B198: Construction Work in Process | C198: 55082.61 | D198: 0 | E198: 55082.61 | F198: 0 | G198: 0 | H198: 0 | I198: 164121.98 | J198: 0 | K198: 0 | L198: 0 | M198: 0 | N198: 0 | O198: 0 | P198: =IF(L198=0,0,+(I198*0.5)/L198) -> 0 | Q198: 0 | R198: 0 | S198: 0
A199: 2005 | B199: Property Under Finance Lease | C199: 0 | D199: 0 | E199: 0 | F199: 0 | G199: 0 | H199: 0 | I199: 0 | J199: 0 | K199: 0 | L199: 10 | M199: 0.1 | N199: 0 | O199: 0 | P199: 0 | Q199: 0 | R199: 0 | S199: 0
B200: Total | C200: =SUM(C158:C199) -> 15119879.79 | D200: 0 | E200: 15119879.79 | F200: 0 | G200: 75.48 | H200: -75.48 | I200: 2152462.49 | J200: 281.4546548 | K200: 2.858370513 | L200: 531 | N200: =SUM(N158:N199) -> 964592.6637 | O200: -3.559661257 | P200: 49425.5968 | Q200: 1014014.701 | R200: 1009861.96 | S200: -4152.740839
C201: 0 | D201: 0 | E201: 0 | F201: 0 | G201: 0 | H201: 0 | I201: 0 | J201: 0 | K201: 0 | L201: 0 | M201: 0 | N201: 0 | O201: 0 | P201: 0 | Q201: 0 | R201: 0 | S201: 0
C202: =C201-C200 -> -15119879.79 | D202: =D201-D200 -> 0 | E202: -15119879.79 | F202: 0 | G202: -75.48 | H202: 75.48 | I202: -2152462.49 | J202: -281.4546548 | K202: -2.858370513 | L202: -531 | M202: 0 | N202: -964592.6637 | O202: 3.559661257 | P202: -49425.5968 | Q202: -1014014.701 | R202: -1009861.96 | S202: 4152.740839
A203: General: | B203: Applicants are to complete this appendix to show the reasonability of the depreciation expense that is included in rate base via. Accumulated depreciation and the revenue requirement.
B204: Applicants must provide a breakdown of depreciation and amortization expense in the above format for all relevant accounts. Balances presented in the table should exclude asset retirement obligations (AROs) and the related depreciation and accretion expense. These should be disclosed separately consistent with the Notes of historical Audited Financial Statements.
B205: This appendix must be completed under MIFRS for each year for the earlier of: 1) all historical years back to its last rebasing; or 2) at least three years of historical actuals, in addition to Bridge Year and Test Year forecasts. If this is the first application where the applicant is rebasing under MIFRS, contact OEB staff for further guidance on the appropriate depreciation schedules to complete (i.e. applicable years and accounting standard for each schedule).
A207: Notes:
A208: 1 | B208: This is the net book value of assets that existed as at the date of the utility's change in depreciation policies (i.e. as at Jan. 1, 2012 or Jan. 1, 2013). These assets are to be depreciated at the average remaining service life. This amount will not change in years subsequent to the date of the utility's change in depreciation policies. This column is expected to be used until the assets that existed as at the date of the utility's change in depreciation policies are fully depreciated.
A209: 2 | B209: This is the opening gross book value of assets that have been acquired after the date of the utility's change in depreciation policies (i.e. additions starting in 2012/2013 for those who changed policies Jan. 1, 2012/2013). These assets are to be depreciated at the revised service life. The amount is expected to be equal to the opening gross book value of the prior year plus the prior year's additions.
A210: 3 | B210: A recalculation should be performed to determine the average remaining life of opening balance of assets (i.e. excluding current year's additions) under the change in policies under CGAAP. For example, Asset A had a useful life of 20 years under CGAAP without the change in policies. On January 1 of the year of policy changes, Asset A was 3 years depreciated. As a result, Asset A would have a remaining service life of 17 years (20 years less 3 years) as at January 1 of the year of policy changes. Due to making the change in policies under CGAAP, management re-assessed the asset useful lives and concluded that the revised useful life of Asset A is now 30 years. Therefore, the average remaining useful life of the opening balance of Asset A is determined to be 27 years (30 years less 3 years) under the revised CGAAP as at January 1 of the year of policy changes.
A211: 4 | B211: The useful life used should be consistent with the OEB's regulatory accounting policies as set out in the Accounting Procedures Handbook for Electricity Distributors, effective Jan. 1, 2012 and also with the Report of the Board, Transition to International Financial Reporting Standards, EB-2008-0408, and the Kinectrics Report.
A212: 5 | B212: OEB policy of the "half-year" rule - the applicant must ensure that additions in the year attract a half-year depreciation expense in the first year. Deviations from this standard practice must be supported in the application.
A213: 6 | B213: The applicant must provide an explanation of material variances in evidence.
A214: 7 | B214: This should include assets in column A (excel column C) that become fully depreciated since the date of the policy change. The amount input in b (excel column D) should equal the net book value of the asset as at the date of depreciation policy change
A215: 8 | B215: This should include assets in column D (excel column F) that have become fully depreciated. The amount input in e (excel column G) should equal the gross book value of the asset
A218: Appendix 2-C
A219: Depreciation and Amortization Expense
A220: This appendix is to be completed in conjunction with the accounting instructions in Appendix 2-B | I220: 2015 CGAAP
C223: Book Values | J223: Service Lives | N223: Depreciation Expense
A224: Account | B224: Description | C224: Opening Net Book Value of Existing Assets as at Date of Policy Change (Jan. 1) 1 | D224: Less Fully Depreciated 7 | E224: Net Amount of Existing Assets Before Policy Change to be Depreciated | F224: Opening Gross Book Value of Assets Acquired After Policy Change 2 | G224: Less Fully Depreciated 8 | H224: Net Amount of Assets Acquired After Policy Change to be Depreciated | I224: Current Year Additions | J224: Average Remaining Life of Assets Existing Before Policy Change 3 | K224: Depreciation Rate Assets Acquired After Policy Change | L224: Life of Assets Acquired After Policy Change 4 | M224: Depreciation Rate on New Additions | N224: Depreciation Expense on Assets Existing Before Policy Change | O224: Depreciation Expense on Assets Acquired After Policy Change | P224: Depreciation Expense on Current Year Additions 5 | Q224: Total Current Year Depreciation Expense | R224: Depreciation Expense per Appendix 2-BA Fixed Assets, Column J | S224: Variance 6
C225: a | D225: b | E225: c = a-b | F225: d | G225: e | H225: f = d- e | I225: g | J225: h | K225: i = 1/h | L225: j | M225: k = 1/j | N225: l = c/h | O225: m = f/j | P225: n = g*0.5/j | Q225: o = l+m+n | R225: p | S225: q = p-o
A226: 1611 | B226: Computer Software (Formally known as Account 1925) | C226: 44660.61 | D226: 8404 | E226: =C226-D226 -> 36256.61 | F226: 51314.4 | G226: 0 | H226: =F226-G226 -> 51314.4 | I226: 12521.16 | J226: 4.699718742 | K226: =IF(J226=0,0,1/J226) -> 0.2127786906 | L226: 5 | M226: =IF(L226=0,0,1/L226) -> 0.2 | N226: =IF(J226=0,0,+E226/J226) -> 7714.634 | O226: =IF(L226=0,0,+H226/L226) -> 10262.88 | P226: =IF(L226=0,0,+(I226*0.5)/L226) -> 1252.116 | Q226: =IF(ISERROR(+N226+O226+P226), 0, +N226+O226+P226) -> 19229.63 | R226: 19229.63 | S226: =IF(ISERROR(+R226-Q226), 0, +R226-Q226) -> 1.091393642e-11
A227: 1612 | B227: Land Rights (Formally known as Account 1906) | C227: 0 | D227: 0 | E227: =C227-D227 -> 0 | F227: 0 | G227: 0 | H227: =F227-G227 -> 0 | I227: 0 | J227: 0 | K227: =IF(J227=0,0,1/J227) -> 0 | L227: 0 | M227: =IF(L227=0,0,1/L227) -> 0 | N227: =IF(J227=0,0,+E227/J227) -> 0 | O227: =IF(L227=0,0,+H227/L227) -> 0 | P227: 0 | Q227: =IF(ISERROR(+N227+O227+P227), 0, +N227+O227+P227) -> 0 | R227: 0 | S227: =IF(ISERROR(+R227-Q227), 0, +R227-Q227) -> 0
A228: 1805 | B228: Land | C228: 456548.3 | D228: 456548.3 | E228: 0 | F228: 0 | G228: 0 | H228: 0 | I228: 0 | J228: 0 | K228: 0 | L228: 0 | M228: 0 | N228: 0 | O228: 0 | P228: 0 | Q228: 0 | R228: 0 | S228: 0
... 641 more rows

Sheet App.2-D_Overhead
N1: File Number: | O1: =EBNUMBER -> EB-2022-0028
N2: Exhibit:
N3: Tab:
N4: Schedule:
N5: Page:
N7: Date:
A9: Appendix 2-D
A10: Overhead Expense
A12: Applicants are to provide a breakdown of OM&A before capitalization in the below table. OM&A before capitalization may be broken down by cost center, program, drivers or another format best suited to focus on capitalized vs. uncapitalized OM&A.
A14: OM&A Before Capitalization
B15: 2013 | C15: =D15-1 -> 2013 | D15: 2014 | E15: 2015 | F15: 2016 | G15: 2017 | H15: 2018 | I15: 2019 | J15: =M15-3 -> 2020 | K15: =M15-2 -> 2021 | L15: =M15-1 -> 2022 | M15: =TestYear -> 2023
B16: Last rebasing Year | C16: Historical Year | D16: Historical Year | E16: Historical Year | F16: Historical Year | G16: Historical Year | H16: Historical Year | I16: Historical Year | J16: Historical Year | K16: Historical Year | L16: Bridge Year | M16: Test Year
A17: Operating and Maintenance | B17: 2491720 | C17: 2412881.53 | D17: 2503326.74 | E17: 3194516.94 | F17: 3331367.33 | G17: 3407824.94 | H17: 3442388.42 | I17: 3361545.07 | J17: 3770070.35 | K17: 3859485.39 | L17: 3863350.19 | M17: 3995939.604
A18: Billing and collecting | B18: 993862 | C18: 839379.55 | D18: 809917.45 | E18: 823061.8 | F18: 895356.13 | G18: 974045.71 | H18: 949464.02 | I18: 975000.41 | J18: 1010747.59 | K18: 985536.93 | L18: 1070447.75 | M18: 1109303.922
A19: Community Relations | B19: 138000 | C19: 153000.33 | D19: 161767.3 | E19: 210765.51 | F19: 158939.3 | G19: 225346.14 | H19: 227791.18 | I19: 241736.02 | J19: 239792.5 | K19: 176984.29 | L19: 181661.4 | M19: 188552.4825
A20: General and Administrative | B20: 1380298 | C20: 1369268.05 | D20: 1423503.22 | E20: 1282167.15 | F20: 1380719.19 | G20: 1228690.18 | H20: 1311958.35 | I20: 2118937.04 | J20: 2075032.96 | K20: 1897222.19 | L20: 2383437.07 | M20: 2615186.336
A27: Total OM&A Before Capitalization (B) | B27: =SUM(B17:B26) -> 5003880 | C27: =SUM(C17:C26) -> 4774529.46 | D27: 4898514.71 | E27: 5510511.4 | F27: 5766381.95 | G27: 5835906.97 | H27: 5931601.97 | I27: 6697218.54 | J27: =SUM(J17:J26) -> 7095643.4 | K27: =SUM(K17:K26) -> 6919228.8 | L27: =SUM(L17:L26) -> 7498896.41 | M27: =SUM(M17:M26) -> 7908982.344
A31: Applicants are to provide a breakdown of capitalized OM&A in the below table. Capitalized OM&A may be broken down using the categories listed in the table below if possible. Otherwise, applicants are to provide its own break down of capitalized OM&A.
A33: Capitalized OM&A | N33: Directly | O33: Explanation for Change in Overhead Capitalized
B34: 2013 | C34: =F34-3 -> 2013 | D34: 2014 | E34: 2015 | F34: 2016 | G34: 2017 | H34: 2018 | I34: 2019 | J34: =M34-3 -> 2020 | K34: =M34-2 -> 2021 | L34: =M34-1 -> 2022 | M34: =TestYear -> 2023 | N34: Attributable?
B35: Last rebasing Year | C35: Historical Year | D35: Historical Year | E35: Historical Year | F35: Historical Year | G35: Historical Year | H35: Historical Year | I35: Historical Year | J35: Historical Year | K35: Historical Year | L35: Bridge Year | M35: Test Year | N35: (Yes/No)
A36: employee benefits | B36: 0 | C36: 0 | D36: 0 | E36: 0 | F36: 0 | G36: 0 | H36: 0 | I36: 0 | J36: 0 | K36: 0 | L36: 0 | M36: 0 | N36: 0
A37: costs of site preparation | B37: 0 | C37: 0 | D37: 0 | E37: 0 | F37: 0 | G37: 0 | H37: 0 | I37: 0 | J37: 0 | K37: 0 | L37: 0 | M37: 0 | N37: 0
A38: initial delivery and handling costs | B38: 0 | C38: 0 | D38: 0 | E38: 0 | F38: 0 | G38: 0 | H38: 0 | I38: 0 | J38: 0 | K38: 0 | L38: 0 | M38: 0 | N38: 0
A39: costs of testing whether the asset is functioning properly | B39: 0 | C39: 0 | D39: 0 | E39: 0 | F39: 0 | G39: 0 | H39: 0 | I39: 0 | J39: 0 | K39: 0 | L39: 0 | M39: 0 | N39: 0
A40: professional fees | B40: 0 | C40: 0 | D40: 0 | E40: 0 | F40: 0 | G40: 0 | H40: 0 | I40: 0 | J40: 0 | K40: 0 | L40: 0 | M40: 0 | N40: 0
A41: Direct Wages | B41: 205920 | C41: 179712.09 | D41: 167107.09 | E41: 333398.74 | F41: 454767.69 | G41: 633493.23 | H41: 595658.4 | I41: 565272 | J41: 469049 | K41: 690658 | L41: 664340 | M41: 685010 | N41: Yes | O41: Increased capital work demands from growing customer base and aging infrastructure as well as decreased reliance on contractors to perform capital work
A42: Burden, administration and other general overhead costs | B42: 212800 | C42: 179712.09 | D42: 167107.09 | E42: 472405.73 | F42: 394468.5 | G42: 584437.72 | H42: 536686.8 | I42: 537786 | J42: 515156 | K42: 716474 | L42: 668477 | M42: 693657 | N42: Yes | O42: Change in capitalized overhead policy on EPCOR Acquisition, further described in Exhibit 2 Section 2.10 along with greater amount of capital work as described above
A44: Insert description of additional item(s) and new rows if needed | B44: 0 | C44: 0 | D44: 0 | E44: 0 | F44: 0 | G44: 0 | H44: 0 | I44: 0 | J44: 0 | K44: 0 | L44: 0 | M44: 0 | N44: 0
A46: Total Capitalized OM&A (A) | B46: =SUM(B36:B45) -> 418720 | C46: 359424.18 | D46: 334214.18 | E46: 805804.47 | F46: 849236.19 | G46: 1217930.95 | H46: 1132345.2 | I46: 1103058 | J46: 984205 | K46: 1407132 | L46: 1332817 | M46: 1378667
A48: % of Capitalized OM&A (=A/B) | B48: =IF(ISERROR(B46/B27),"0%",B46/B27) -> 0.08367906505 | C48: 0.0752794978 | D48: 0.06822765671 | E48: 0.1462304333 | F48: 0.1472736626 | G48: 0.2086960872 | H48: 0.1909004019 | I48: 0.1647038981 | J48: 0.138705533 | K48: 0.2033654386 | L48: 0.1777350862 | M48: 0.1743166112 | O48: Increased capital work demands from growing customer base and aging infrastructure as well as decreased reliance on contractors to perform capital work

Sheet App.2-EA_Account 1575 (2015) (hidden)
H1: File Number: | I1: =EBNUMBER -> EB-2022-0028
H2: Exhibit:
H3: Tab:
H4: Schedule:
H5: Page:
H7: Date:
A9: Appendix 2-EA
A10: Account 1575 - IFRS-CGAAP Transitional PP&E Amounts
A11: 2015 Adopters of IFRS for Financial Reporting Purposes
A13: For applicants that adopted IFRS on January 1, 2015 for financial reporting purposes
B17: 2014 | C17: =TestYear-3 -> 2020 | D17: =TestYear-2 -> 2021 | E17: =CONCATENATE(TestYear-1," Bridge Year") -> 2022 Bridge Year | F17: =CONCATENATE(TestYear," Rebasing Year") -> 2023 Rebasing Year
A18: Reporting Basis | B18: CGAAP | C18: CGAAP | D18: CGAAP | E18: MIFRS | F18: MIFRS
B19: Actual | C19: Actual | D19: Actual | E19: Forecast | F19: Forecast
D20: $ | E20: $
A21: PP&E Values under CGAAP
A22: Opening net PP&E - Note 1 | C22: =+B25 -> 0 | D22: =+C25 -> 0 | E22: =+D25 -> 0
A23: Net Additions - Note 4
A24: Net Depreciation (amounts should be negative) - Note 4
A25: Closing net PP&E (1) | B25: =SUM(B22:B24) -> 0 | C25: =SUM(C22:C24) -> 0 | D25: =SUM(D22:D24) -> 0 | E25: =SUM(E22:E24) -> 0
A27: PP&E Values under MIFRS (Starts from 2014, the transition year)
A28: Opening net PP&E - Note 1 | C28: =+B31 -> 0 | D28: =+C31 -> 0 | E28: =+D31 -> 0
A29: Net Additions - Note 4
A30: Net Depreciation (amounts should be negative) - Note 4
A31: Closing net PP&E (2) | B31: =SUM(B28:B30) -> 0 | C31: =SUM(C28:C30) -> 0 | D31: =SUM(D28:D30) -> 0 | E31: =SUM(E28:E30) -> 0
A33: Difference in Closing net PP&E, former CGAAP vs. revised CGAAP | B33: =B25-B31 -> 0 | C33: =C25-C31 -> 0 | D33: =D25-D31 -> 0 | E33: =E25-E31 -> 0
A36: Effect on Deferral and Variance Account Rate Riders
A37: Closing balance in Account 1575 | F37: =IF(ISERROR(E33), 0, E33) -> 0 | H37: WACC
A38: Return on Rate Base Associated with Account 1575 balance at WACC - Note 2 | F38: =E33*I37*I38 -> 0 | G38: # of years of rate rider disposition period
A39: Amount included in Deferral and Variance Account Rate Rider Calculation | F39: =F37+F38 -> 0
A41: Notes:
A42: 1 For an applicant that adopted IFRS on January 1, 2015, the PP&E values as of January 1, 2014 under both CGAAP and MIFRS should be the same.
A43: 2 Return on rate base associated with deferred balance is calculated as:
A44: the deferral account closing balance as of 2017 x WACC X # of years of rate rider disposition period
A45: * Please note that the calculation should be adjusted once WACC is updated and finalized in the rate application.
A46: 3 The PP&E deferral account is cleared by including the total balance in the deferral and variance account rate rider calculation.
A47: 4 Net additions are additions net of disposals; Net depreciation is additions to depreciation net of disposals.

Sheet App.2-EB_Account 1576 (2012) (hidden)
K1: File Number: | L1: =EBNUMBER -> EB-2022-0028
K2: Exhibit:
K3: Tab:
K4: Schedule:
K5: Page:
K7: Date:
A9: Appendix 2-EB
A10: Account 1576 - Accounting Changes under CGAAP
A11: 2012 Changes in Accounting Policies under CGAAP
A13: For applicants with a balance in Account 1576 and made capitalization and depreciation expense accounting policy changes under CGAAP effective January 1, 2012. This is the first time the applicant is rebasing with changes in these accounting policies.
B17: Prior Years Rebasing | C17: 2012 | D17: 2013 | E17: 2014 | F17: 2015 | G17: 2016 | H17: 2017 | I17: 2018 Rebasing Year
A18: Reporting Basis | B18: CGAAP | C18: CGAAP | D18: CGAAP | E18: CGAAP | F18: MIFRS - Note 5 | G18: MIFRS | H18: MIFRS | I18: MIFRS
B19: Forecast | C19: Actual | D19: Actual | E19: Actual | F19: Actual | G19: Actual | H19: Forecast | I19: Forecast
C20: $ | D20: $ | E20: $ | F20: $ | G20: $ | H20: $
A21: PP&E Values under former CGAAP
A22: Opening net PP&E - Note 1 | D22: =+C25 -> 0 | E22: =+D25 -> 0 | F22: =+E25 -> 0 | G22: =+F25 -> 0 | H22: =+G25 -> 0
A23: Net Additions - Note 4
A24: Net Depreciation (amounts should be negative) - Note 4
A25: Closing net PP&E (1) | C25: =C22+C23+C24 -> 0 | D25: 0 | E25: 0 | F25: 0 | G25: 0 | H25: 0
A27: PP&E Values under revised CGAAP (Starts from 2012)
A28: Opening net PP&E - Note 1 | D28: =+C31 -> 0 | E28: =+D31 -> 0 | F28: =+E31 -> 0 | G28: =+F31 -> 0 | H28: =+G31 -> 0
A29: Net Additions - Note 4
A30: Net Depreciation (amounts should be negative) - Note 4
A31: Closing net PP&E (2) | C31: =SUM(C28:C30) -> 0 | D31: 0 | E31: 0 | F31: 0 | G31: 0 | H31: 0
A33: Difference in Closing net PP&E, former CGAAP vs. revised CGAAP | C33: =C25-C31 -> 0 | D33: 0 | E33: 0 | F33: 0 | G33: 0 | H33: 0
A36: Effect on Deferral and Variance Account Rate Riders
A37: Closing balance in Account 1576 | I37: =IF(ISERROR(H33), 0, H33) -> 0 | K37: WACC
A38: Return on Rate Base Associated with Account 1576 balance at WACC - Note 2 | I38: =H33*L37*L38 -> 0 | J38: # of years of rate rider disposition period
A39: Amount included in Deferral and Variance Account Rate Rider Calculation | I39: =I37+I38 -> 0
A41: Notes:
A42: 1 For an applicant that made the capitalization and depreciation expense accounting policy changes on January 1, 2012, the PP&E values as of January 1, 2012 under both former CGAAP and revised CGAAP should be the same.
A43: 2 Return on rate base associated with Account 1576 balance is calculated as:
A44: the variance account ending balance as of 2017 x WACC X # of years of rate rider disposition period
A45: * Please note that the calculation should be adjusted once WACC is updated and finalized in the rate application.
A46: 3 Account 1576 is cleared by including the total balance in the deferral and variance account rate rider calculation.
A47: 4 Net additions are additions net of disposals; Net depreciation is additions to depreciation net of disposals.
A48: 5 Differences due to the adoption of MIFRS are to be shown separately in Account 1575 in Appendix 2-EA as Accounts 1575 and 1576 cannot be used interchangably.

Sheet App.2-EC_Account 1576 (2013) (hidden)
J1: File Number: | K1: =EBNUMBER -> EB-2022-0028
J2: Exhibit:
J3: Tab:
J4: Schedule:
J5: Page:
J7: Date:
A9: Appendix 2-EC
A10: Account 1576 - Accounting Changes under CGAAP
A11: 2013 Changes in Accounting Policies under CGAAP
A13: For applicants with a balance in Account 1576 and made capitalization and depreciation expense accounting policy changes under CGAAP effective January 1, 2013. This is the first time the applicant is rebasing with changes in these accounting policies.
B17: Prior Years Rebasing | C17: 2013 | D17: 2014 | E17: 2015 | F17: 2016 | G17: 2017 | H17: 2018 Rebasing Year
A18: Reporting Basis | B18: CGAAP | C18: CGAAP | D18: CGAAP | E18: MIFRS - Note 5 | F18: MIFRS | G18: MIFRS | H18: MIFRS
B19: Actual | C19: Actual | D19: Actual | E19: Actual | F19: Actual | G19: Forecast | H19: Forecast
C20: $ | D20: $ | F20: $
A21: PP&E Values under former CGAAP
A22: Opening net PP&E - Note 1 | D22: =+C25 -> 0 | E22: =+D25 -> 0 | F22: =+E25 -> 0 | G22: =+F25 -> 0
A23: Net Additions - Note 4
A24: Net Depreciation (amounts should be negative) - Note 4
A25: Closing net PP&E (1) | C25: =C22+C23+C24 -> 0 | D25: =D22+D23+D24 -> 0 | E25: =E22+E23+E24 -> 0 | F25: =F22+F23+F24 -> 0 | G25: =G22+G23+G24 -> 0
A27: PP&E Values under revised CGAAP (Starts from 2012)
A28: Opening net PP&E - Note 1 | D28: =+C31 -> 0 | E28: =+D31 -> 0 | F28: =+E31 -> 0 | G28: =+F31 -> 0
A29: Net Additions - Note 4
A30: Net Depreciation (amounts should be negative) - Note 4
A31: Closing net PP&E (2) | C31: =SUM(C28:C30) -> 0 | D31: =SUM(D28:D30) -> 0 | E31: =SUM(E28:E30) -> 0 | F31: =SUM(F28:F30) -> 0 | G31: =SUM(G28:G30) -> 0
A33: Difference in Closing net PP&E, former CGAAP vs. revised CGAAP | C33: =C25-C31 -> 0 | D33: =D25-D31 -> 0 | E33: =E25-E31 -> 0 | F33: =F25-F31 -> 0 | G33: =G25-G31 -> 0
A36: Effect on Deferral and Variance Account Rate Riders
A37: Closing balance in Account 1576 | H37: =IF(ISERROR(G33), 0, G33) -> 0 | J37: WACC
A38: Return on Rate Base Associated with Account 1576 balance at WACC - Note 2 | H38: =G33*K37*K38 -> 0 | I38: # of years of rate rider disposition period
A39: Amount included in Deferral and Variance Account Rate Rider Calculation | H39: =H37+H38 -> 0
A41: Notes:
A42: 1 For an applicant that made the capitalization and depreciation expense accounting policy changes on January 1, 2013, the PP&E values as of January 1, 2013 under both former CGAAP and revised CGAAP should be the same.
A43: 2 Return on rate base associated with Account 1576 balance is calculated as:
A44: the variance account ending balance as of 2017 x WACC X # of years of rate rider disposition period
A45: * Please note that the calculation should be adjusted once WACC is updated and finalized in the rate application.
A46: 3 Account 1576 is cleared by including the total balance in the deferral and variance account rate rider calculation.
A47: 4 Net additions are additions net of disposals; Net depreciation is additions to depreciation net of disposals.
A48: 5 Differences due to the adoption of MIFRS are to be shown separately in Account 1575 in Appendix 2-EA as Accounts 1575 and 1576 cannot be used interchangably.

Sheet Hidden_REG Invest. (hidden)
A1: Utility Name | B1: EB Number | C1: Test Year | D1: Bridge Year | E1: Last Rebasing Year | F1: Renewable Generation Connection Investment Summary | G1: Year | H1: Amount
A2: ='LDC Info'!$E$14 -> EPCOR Electricity Distribution Ontario Inc. | B2: =EBNUMBER -> EB-2022-0028 | C2: =TestYear -> 2023 | D2: =BridgeYear -> 2022 | E2: =RebaseYear -> 2013 | F2: REI Investments_A_Total Capital Costs | G2: ='App.2-FA Proposed REG Invest.'!$C$31 -> 2018 | H2: ='App.2-FA Proposed REG Invest.'!C62 -> 0
A3: ='LDC Info'!$E$14 -> EPCOR Electricity Distribution Ontario Inc. | B3: EB-2022-0028 | C3: 2023 | D3: 2022 | E3: 2013 | F3: REI Investments_A_Total OM&A Start-Up | G3: ='App.2-FA Proposed REG Invest.'!$C$31 -> 2018 | H3: ='App.2-FA Proposed REG Invest.'!$C63 -> 0
A4: ='LDC Info'!$E$14 -> EPCOR Electricity Distribution Ontario Inc. | B4: EB-2022-0028 | C4: 2023 | D4: 2022 | E4: 2013 | F4: REI Investments_A_Total OM&A Ongoing | G4: ='App.2-FA Proposed REG Invest.'!$C$31 -> 2018 | H4: ='App.2-FA Proposed REG Invest.'!$C64 -> 0
A5: ='LDC Info'!$E$14 -> EPCOR Electricity Distribution Ontario Inc. | B5: EB-2022-0028 | C5: 2023 | D5: 2022 | E5: 2013 | F5: REI Investments_A_Total Capital Costs | G5: ='App.2-FA Proposed REG Invest.'!$D$31 -> 2019 | H5: ='App.2-FA Proposed REG Invest.'!D62 -> 0
A6: ='LDC Info'!$E$14 -> EPCOR Electricity Distribution Ontario Inc. | B6: EB-2022-0028 | C6: 2023 | D6: 2022 | E6: 2013 | F6: REI Investments_A_Total OM&A Start-Up | G6: ='App.2-FA Proposed REG Invest.'!$D$31 -> 2019 | H6: ='App.2-FA Proposed REG Invest.'!D63 -> 0
A7: ='LDC Info'!$E$14 -> EPCOR Electricity Distribution Ontario Inc. | B7: EB-2022-0028 | C7: 2023 | D7: 2022 | E7: 2013 | F7: REI Investments_A_Total OM&A Ongoing | G7: ='App.2-FA Proposed REG Invest.'!$D$31 -> 2019 | H7: ='App.2-FA Proposed REG Invest.'!D64 -> 0
A8: ='LDC Info'!$E$14 -> EPCOR Electricity Distribution Ontario Inc. | B8: EB-2022-0028 | C8: 2023 | D8: 2022 | E8: 2013 | F8: REI Investments_A_Total Capital Costs | G8: ='App.2-FA Proposed REG Invest.'!$E$31 -> 2020 | H8: ='App.2-FA Proposed REG Invest.'!E62 -> 0
A9: ='LDC Info'!$E$14 -> EPCOR Electricity Distribution Ontario Inc. | B9: EB-2022-0028 | C9: 2023 | D9: 2022 | E9: 2013 | F9: REI Investments_A_Total OM&A Start-Up | G9: ='App.2-FA Proposed REG Invest.'!$E$31 -> 2020 | H9: ='App.2-FA Proposed REG Invest.'!E63 -> 0
A10: ='LDC Info'!$E$14 -> EPCOR Electricity Distribution Ontario Inc. | B10: EB-2022-0028 | C10: 2023 | D10: 2022 | E10: 2013 | F10: REI Investments_A_Total OM&A Ongoing | G10: ='App.2-FA Proposed REG Invest.'!$E$31 -> 2020 | H10: ='App.2-FA Proposed REG Invest.'!E64 -> 0
A11: ='LDC Info'!$E$14 -> EPCOR Electricity Distribution Ontario Inc. | B11: EB-2022-0028 | C11: 2023 | D11: 2022 | E11: 2013 | F11: REI Investments_A_Total Capital Costs | G11: ='App.2-FA Proposed REG Invest.'!$F$31 -> 2021 | H11: ='App.2-FA Proposed REG Invest.'!F62 -> 0
A12: ='LDC Info'!$E$14 -> EPCOR Electricity Distribution Ontario Inc. | B12: EB-2022-0028 | C12: 2023 | D12: 2022 | E12: 2013 | F12: REI Investments_A_Total OM&A Start-Up | G12: ='App.2-FA Proposed REG Invest.'!$F$31 -> 2021 | H12: ='App.2-FA Proposed REG Invest.'!F63 -> 0
A13: ='LDC Info'!$E$14 -> EPCOR Electricity Distribution Ontario Inc. | B13: EB-2022-0028 | C13: 2023 | D13: 2022 | E13: 2013 | F13: REI Investments_A_Total OM&A Ongoing | G13: ='App.2-FA Proposed REG Invest.'!$F$31 -> 2021 | H13: ='App.2-FA Proposed REG Invest.'!F64 -> 0
A14: ='LDC Info'!$E$14 -> EPCOR Electricity Distribution Ontario Inc. | B14: EB-2022-0028 | C14: 2023 | D14: 2022 | E14: 2013 | F14: REI Investments_A_Total Capital Costs | G14: ='App.2-FA Proposed REG Invest.'!$G$31 -> 2022 | H14: ='App.2-FA Proposed REG Invest.'!G62 -> 0
A15: ='LDC Info'!$E$14 -> EPCOR Electricity Distribution Ontario Inc. | B15: EB-2022-0028 | C15: 2023 | D15: 2022 | E15: 2013 | F15: REI Investments_A_Total OM&A Start-Up | G15: ='App.2-FA Proposed REG Invest.'!$G$31 -> 2022 | H15: ='App.2-FA Proposed REG Invest.'!G63 -> 0
A16: ='LDC Info'!$E$14 -> EPCOR Electricity Distribution Ontario Inc. | B16: EB-2022-0028 | C16: 2023 | D16: 2022 | E16: 2013 | F16: REI Investments_A_Total OM&A Ongoing | G16: ='App.2-FA Proposed REG Invest.'!$G$31 -> 2022 | H16: ='App.2-FA Proposed REG Invest.'!G64 -> 0
A17: ='LDC Info'!$E$14 -> EPCOR Electricity Distribution Ontario Inc. | B17: EB-2022-0028 | C17: 2023 | D17: 2022 | E17: 2013 | F17: REI Investments_A_Total Capital Costs | G17: ='App.2-FA Proposed REG Invest.'!$H$31 -> 2023 | H17: ='App.2-FA Proposed REG Invest.'!H62 -> 0
A18: ='LDC Info'!$E$14 -> EPCOR Electricity Distribution Ontario Inc. | B18: EB-2022-0028 | C18: 2023 | D18: 2022 | E18: 2013 | F18: REI Investments_A_Total OM&A Start-Up | G18: ='App.2-FA Proposed REG Invest.'!$H$31 -> 2023 | H18: ='App.2-FA Proposed REG Invest.'!H63 -> 0
A19: ='LDC Info'!$E$14 -> EPCOR Electricity Distribution Ontario Inc. | B19: EB-2022-0028 | C19: 2023 | D19: 2022 | E19: 2013 | F19: REI Investments_A_Total OM&A Ongoing | G19: ='App.2-FA Proposed REG Invest.'!$H$31 -> 2023 | H19: ='App.2-FA Proposed REG Invest.'!H64 -> 0
A20: ='LDC Info'!$E$14 -> EPCOR Electricity Distribution Ontario Inc. | B20: EB-2022-0028 | C20: 2023 | D20: 2022 | E20: 2013 | F20: REI Investments_A_Total Capital Costs | G20: ='App.2-FA Proposed REG Invest.'!$I$31 -> 2024 | H20: ='App.2-FA Proposed REG Invest.'!I62 -> 0
A21: ='LDC Info'!$E$14 -> EPCOR Electricity Distribution Ontario Inc. | B21: EB-2022-0028 | C21: 2023 | D21: 2022 | E21: 2013 | F21: REI Investments_A_Total OM&A Start-Up | G21: ='App.2-FA Proposed REG Invest.'!$I$31 -> 2024 | H21: ='App.2-FA Proposed REG Invest.'!I63 -> 0
A22: ='LDC Info'!$E$14 -> EPCOR Electricity Distribution Ontario Inc. | B22: EB-2022-0028 | C22: 2023 | D22: 2022 | E22: 2013 | F22: REI Investments_A_Total OM&A Ongoing | G22: ='App.2-FA Proposed REG Invest.'!$I$31 -> 2024 | H22: ='App.2-FA Proposed REG Invest.'!I64 -> 0
A23: ='LDC Info'!$E$14 -> EPCOR Electricity Distribution Ontario Inc. | B23: EB-2022-0028 | C23: 2023 | D23: 2022 | E23: 2013 | F23: REI Investments_A_Total Capital Costs | G23: ='App.2-FA Proposed REG Invest.'!$J$31 -> 2025 | H23: ='App.2-FA Proposed REG Invest.'!J62 -> 0
A24: ='LDC Info'!$E$14 -> EPCOR Electricity Distribution Ontario Inc. | B24: EB-2022-0028 | C24: 2023 | D24: 2022 | E24: 2013 | F24: REI Investments_A_Total OM&A Start-Up | G24: ='App.2-FA Proposed REG Invest.'!$J$31 -> 2025 | H24: ='App.2-FA Proposed REG Invest.'!J63 -> 0
A25: ='LDC Info'!$E$14 -> EPCOR Electricity Distribution Ontario Inc. | B25: EB-2022-0028 | C25: 2023 | D25: 2022 | E25: 2013 | F25: REI Investments_A_Total OM&A Ongoing | G25: ='App.2-FA Proposed REG Invest.'!$J$31 -> 2025 | H25: ='App.2-FA Proposed REG Invest.'!J64 -> 0
A26: ='LDC Info'!$E$14 -> EPCOR Electricity Distribution Ontario Inc. | B26: EB-2022-0028 | C26: 2023 | D26: 2022 | E26: 2013 | F26: REI Investments_A_Total Capital Costs | G26: ='App.2-FA Proposed REG Invest.'!$K$31 -> 2026 | H26: ='App.2-FA Proposed REG Invest.'!K62 -> 0
A27: ='LDC Info'!$E$14 -> EPCOR Electricity Distribution Ontario Inc. | B27: EB-2022-0028 | C27: 2023 | D27: 2022 | E27: 2013 | F27: REI Investments_A_Total OM&A Start-Up | G27: ='App.2-FA Proposed REG Invest.'!$K$31 -> 2026 | H27: ='App.2-FA Proposed REG Invest.'!K63 -> 0
A28: ='LDC Info'!$E$14 -> EPCOR Electricity Distribution Ontario Inc. | B28: EB-2022-0028 | C28: 2023 | D28: 2022 | E28: 2013 | F28: REI Investments_A_Total OM&A Ongoing | G28: ='App.2-FA Proposed REG Invest.'!$K$31 -> 2026 | H28: ='App.2-FA Proposed REG Invest.'!K64 -> 0
A29: ='LDC Info'!$E$14 -> EPCOR Electricity Distribution Ontario Inc. | B29: EB-2022-0028 | C29: 2023 | D29: 2022 | E29: 2013 | F29: REI Investments_A_Total Capital Costs | G29: ='App.2-FA Proposed REG Invest.'!$L$31 -> 2027 | H29: ='App.2-FA Proposed REG Invest.'!L62 -> 0
A30: ='LDC Info'!$E$14 -> EPCOR Electricity Distribution Ontario Inc. | B30: EB-2022-0028 | C30: 2023 | D30: 2022 | E30: 2013 | F30: REI Investments_A_Total OM&A Start-Up | G30: ='App.2-FA Proposed REG Invest.'!$L$31 -> 2027 | H30: ='App.2-FA Proposed REG Invest.'!L63 -> 0
A31: ='LDC Info'!$E$14 -> EPCOR Electricity Distribution Ontario Inc. | B31: EB-2022-0028 | C31: 2023 | D31: 2022 | E31: 2013 | F31: REI Investments_A_Total OM&A Ongoing | G31: ='App.2-FA Proposed REG Invest.'!$L$31 -> 2027 | H31: ='App.2-FA Proposed REG Invest.'!L64 -> 0
A32: ='LDC Info'!$E$14 -> EPCOR Electricity Distribution Ontario Inc. | B32: EB-2022-0028 | C32: 2023 | D32: 2022 | E32: 2013 | F32: Expansion Investments_B_Total Capital Costs | G32: ='App.2-FA Proposed REG Invest.'!$C$31 -> 2018 | H32: ='App.2-FA Proposed REG Invest.'!C99 -> 0
A33: ='LDC Info'!$E$14 -> EPCOR Electricity Distribution Ontario Inc. | B33: EB-2022-0028 | C33: 2023 | D33: 2022 | E33: 2013 | F33: Expansion Investments_B_Total OM&A Start-Up | G33: ='App.2-FA Proposed REG Invest.'!$C$31 -> 2018 | H33: ='App.2-FA Proposed REG Invest.'!C100 -> 0
A34: ='LDC Info'!$E$14 -> EPCOR Electricity Distribution Ontario Inc. | B34: EB-2022-0028 | C34: 2023 | D34: 2022 | E34: 2013 | F34: Expansion Investments_B_Total OM&A Ongoing | G34: ='App.2-FA Proposed REG Invest.'!$C$31 -> 2018 | H34: ='App.2-FA Proposed REG Invest.'!C101 -> 0
A35: ='LDC Info'!$E$14 -> EPCOR Electricity Distribution Ontario Inc. | B35: EB-2022-0028 | C35: 2023 | D35: 2022 | E35: 2013 | F35: Expansion Investments_B_Total Capital Costs | G35: ='App.2-FA Proposed REG Invest.'!$D$31 -> 2019 | H35: ='App.2-FA Proposed REG Invest.'!D99 -> 0
A36: ='LDC Info'!$E$14 -> EPCOR Electricity Distribution Ontario Inc. | B36: EB-2022-0028 | C36: 2023 | D36: 2022 | E36: 2013 | F36: Expansion Investments_B_Total OM&A Start-Up | G36: ='App.2-FA Proposed REG Invest.'!$D$31 -> 2019 | H36: ='App.2-FA Proposed REG Invest.'!D100 -> 0
A37: ='LDC Info'!$E$14 -> EPCOR Electricity Distribution Ontario Inc. | B37: EB-2022-0028 | C37: 2023 | D37: 2022 | E37: 2013 | F37: Expansion Investments_B_Total OM&A Ongoing | G37: ='App.2-FA Proposed REG Invest.'!$D$31 -> 2019 | H37: ='App.2-FA Proposed REG Invest.'!D101 -> 0
A38: ='LDC Info'!$E$14 -> EPCOR Electricity Distribution Ontario Inc. | B38: EB-2022-0028 | C38: 2023 | D38: 2022 | E38: 2013 | F38: Expansion Investments_B_Total Capital Costs | G38: ='App.2-FA Proposed REG Invest.'!$E$31 -> 2020 | H38: ='App.2-FA Proposed REG Invest.'!E99 -> 0
A39: ='LDC Info'!$E$14 -> EPCOR Electricity Distribution Ontario Inc. | B39: EB-2022-0028 | C39: 2023 | D39: 2022 | E39: 2013 | F39: Expansion Investments_B_Total OM&A Start-Up | G39: ='App.2-FA Proposed REG Invest.'!$E$31 -> 2020 | H39: ='App.2-FA Proposed REG Invest.'!E100 -> 0
A40: ='LDC Info'!$E$14 -> EPCOR Electricity Distribution Ontario Inc. | B40: EB-2022-0028 | C40: 2023 | D40: 2022 | E40: 2013 | F40: Expansion Investments_B_Total OM&A Ongoing | G40: ='App.2-FA Proposed REG Invest.'!$E$31 -> 2020 | H40: ='App.2-FA Proposed REG Invest.'!E101 -> 0
A41: ='LDC Info'!$E$14 -> EPCOR Electricity Distribution Ontario Inc. | B41: EB-2022-0028 | C41: 2023 | D41: 2022 | E41: 2013 | F41: Expansion Investments_B_Total Capital Costs | G41: ='App.2-FA Proposed REG Invest.'!$F$31 -> 2021 | H41: ='App.2-FA Proposed REG Invest.'!F99 -> 0
A42: ='LDC Info'!$E$14 -> EPCOR Electricity Distribution Ontario Inc. | B42: EB-2022-0028 | C42: 2023 | D42: 2022 | E42: 2013 | F42: Expansion Investments_B_Total OM&A Start-Up | G42: ='App.2-FA Proposed REG Invest.'!$F$31 -> 2021 | H42: ='App.2-FA Proposed REG Invest.'!F100 -> 0
A43: ='LDC Info'!$E$14 -> EPCOR Electricity Distribution Ontario Inc. | B43: EB-2022-0028 | C43: 2023 | D43: 2022 | E43: 2013 | F43: Expansion Investments_B_Total OM&A Ongoing | G43: ='App.2-FA Proposed REG Invest.'!$F$31 -> 2021 | H43: ='App.2-FA Proposed REG Invest.'!F101 -> 0
A44: ='LDC Info'!$E$14 -> EPCOR Electricity Distribution Ontario Inc. | B44: EB-2022-0028 | C44: 2023 | D44: 2022 | E44: 2013 | F44: Expansion Investments_B_Total Capital Costs | G44: ='App.2-FA Proposed REG Invest.'!$G$31 -> 2022 | H44: ='App.2-FA Proposed REG Invest.'!G99 -> 0
A45: ='LDC Info'!$E$14 -> EPCOR Electricity Distribution Ontario Inc. | B45: EB-2022-0028 | C45: 2023 | D45: 2022 | E45: 2013 | F45: Expansion Investments_B_Total OM&A Start-Up | G45: ='App.2-FA Proposed REG Invest.'!$G$31 -> 2022 | H45: ='App.2-FA Proposed REG Invest.'!G100 -> 0
A46: ='LDC Info'!$E$14 -> EPCOR Electricity Distribution Ontario Inc. | B46: EB-2022-0028 | C46: 2023 | D46: 2022 | E46: 2013 | F46: Expansion Investments_B_Total OM&A Ongoing | G46: ='App.2-FA Proposed REG Invest.'!$G$31 -> 2022 | H46: ='App.2-FA Proposed REG Invest.'!G101 -> 0
A47: ='LDC Info'!$E$14 -> EPCOR Electricity Distribution Ontario Inc. | B47: EB-2022-0028 | C47: 2023 | D47: 2022 | E47: 2013 | F47: Expansion Investments_B_Total Capital Costs | G47: ='App.2-FA Proposed REG Invest.'!$H$31 -> 2023 | H47: ='App.2-FA Proposed REG Invest.'!H99 -> 0
A48: ='LDC Info'!$E$14 -> EPCOR Electricity Distribution Ontario Inc. | B48: EB-2022-0028 | C48: 2023 | D48: 2022 | E48: 2013 | F48: Expansion Investments_B_Total OM&A Start-Up | G48: ='App.2-FA Proposed REG Invest.'!$H$31 -> 2023 | H48: ='App.2-FA Proposed REG Invest.'!H100 -> 0
A49: ='LDC Info'!$E$14 -> EPCOR Electricity Distribution Ontario Inc. | B49: EB-2022-0028 | C49: 2023 | D49: 2022 | E49: 2013 | F49: Expansion Investments_B_Total OM&A Ongoing | G49: ='App.2-FA Proposed REG Invest.'!$H$31 -> 2023 | H49: ='App.2-FA Proposed REG Invest.'!H101 -> 0
A50: ='LDC Info'!$E$14 -> EPCOR Electricity Distribution Ontario Inc. | B50: EB-2022-0028 | C50: 2023 | D50: 2022 | E50: 2013 | F50: Expansion Investments_B_Total Capital Costs | G50: ='App.2-FA Proposed REG Invest.'!$I$31 -> 2024 | H50: ='App.2-FA Proposed REG Invest.'!I99 -> 0
A51: ='LDC Info'!$E$14 -> EPCOR Electricity Distribution Ontario Inc. | B51: EB-2022-0028 | C51: 2023 | D51: 2022 | E51: 2013 | F51: Expansion Investments_B_Total OM&A Start-Up | G51: ='App.2-FA Proposed REG Invest.'!$I$31 -> 2024 | H51: ='App.2-FA Proposed REG Invest.'!I100 -> 0
A52: ='LDC Info'!$E$14 -> EPCOR Electricity Distribution Ontario Inc. | B52: EB-2022-0028 | C52: 2023 | D52: 2022 | E52: 2013 | F52: Expansion Investments_B_Total OM&A Ongoing | G52: ='App.2-FA Proposed REG Invest.'!$I$31 -> 2024 | H52: ='App.2-FA Proposed REG Invest.'!I101 -> 0
A53: ='LDC Info'!$E$14 -> EPCOR Electricity Distribution Ontario Inc. | B53: EB-2022-0028 | C53: 2023 | D53: 2022 | E53: 2013 | F53: Expansion Investments_B_Total Capital Costs | G53: ='App.2-FA Proposed REG Invest.'!$J$31 -> 2025 | H53: ='App.2-FA Proposed REG Invest.'!J99 -> 0
A54: ='LDC Info'!$E$14 -> EPCOR Electricity Distribution Ontario Inc. | B54: EB-2022-0028 | C54: 2023 | D54: 2022 | E54: 2013 | F54: Expansion Investments_B_Total OM&A Start-Up | G54: ='App.2-FA Proposed REG Invest.'!$J$31 -> 2025 | H54: ='App.2-FA Proposed REG Invest.'!J100 -> 0
A55: ='LDC Info'!$E$14 -> EPCOR Electricity Distribution Ontario Inc. | B55: EB-2022-0028 | C55: 2023 | D55: 2022 | E55: 2013 | F55: Expansion Investments_B_Total OM&A Ongoing | G55: ='App.2-FA Proposed REG Invest.'!$J$31 -> 2025 | H55: ='App.2-FA Proposed REG Invest.'!J101 -> 0
A56: ='LDC Info'!$E$14 -> EPCOR Electricity Distribution Ontario Inc. | B56: EB-2022-0028 | C56: 2023 | D56: 2022 | E56: 2013 | F56: Expansion Investments_B_Total Capital Costs | G56: ='App.2-FA Proposed REG Invest.'!$K$31 -> 2026 | H56: ='App.2-FA Proposed REG Invest.'!K99 -> 0
A57: ='LDC Info'!$E$14 -> EPCOR Electricity Distribution Ontario Inc. | B57: EB-2022-0028 | C57: 2023 | D57: 2022 | E57: 2013 | F57: Expansion Investments_B_Total OM&A Start-Up | G57: ='App.2-FA Proposed REG Invest.'!$K$31 -> 2026 | H57: ='App.2-FA Proposed REG Invest.'!K100 -> 0
A58: ='LDC Info'!$E$14 -> EPCOR Electricity Distribution Ontario Inc. | B58: EB-2022-0028 | C58: 2023 | D58: 2022 | E58: 2013 | F58: Expansion Investments_B_Total OM&A Ongoing | G58: ='App.2-FA Proposed REG Invest.'!$K$31 -> 2026 | H58: ='App.2-FA Proposed REG Invest.'!K101 -> 0
A59: ='LDC Info'!$E$14 -> EPCOR Electricity Distribution Ontario Inc. | B59: EB-2022-0028 | C59: 2023 | D59: 2022 | E59: 2013 | F59: Expansion Investments_B_Total Capital Costs | G59: ='App.2-FA Proposed REG Invest.'!$L$31 -> 2027 | H59: ='App.2-FA Proposed REG Invest.'!L99 -> 0
A60: ='LDC Info'!$E$14 -> EPCOR Electricity Distribution Ontario Inc. | B60: EB-2022-0028 | C60: 2023 | D60: 2022 | E60: 2013 | F60: Expansion Investments_B_Total OM&A Start-Up | G60: ='App.2-FA Proposed REG Invest.'!$L$31 -> 2027 | H60: ='App.2-FA Proposed REG Invest.'!L100 -> 0
A61: ='LDC Info'!$E$14 -> EPCOR Electricity Distribution Ontario Inc. | B61: EB-2022-0028 | C61: 2023 | D61: 2022 | E61: 2013 | F61: Expansion Investments_B_Total OM&A Ongoing | G61: ='App.2-FA Proposed REG Invest.'!$L$31 -> 2027 | H61: ='App.2-FA Proposed REG Invest.'!L101 -> 0

Sheet Hidden_REG Improvement (hidden)
A1: Utility Name | B1: EB Number | C1: Test Year | D1: Bridge Year | E1: Last Rebasing Year | F1: Renewable Generation Connection Direct Benefits/Provincial Amount Renewable Enabling Improvement Investments | G1: Year | H1: Amount
A2: ='LDC Info'!$E$14 -> EPCOR Electricity Distribution Ontario Inc. | B2: =EBNUMBER -> EB-2022-0028 | C2: =TestYear -> 2023 | D2: =BridgeYear -> 2022 | E2: =RebaseYear -> 2013 | F2: Provincial Rate Protection | G2: ='App.2-FB Calc of REG Improvemnt'!D17 -> 2018 | H2: ='App.2-FB Calc of REG Improvemnt'!F$44 -> 0
A3: ='LDC Info'!$E$14 -> EPCOR Electricity Distribution Ontario Inc. | B3: EB-2022-0028 | C3: 2023 | D3: 2022 | E3: 2013 | F3: Provincial Rate Protection | G3: ='App.2-FB Calc of REG Improvemnt'!G17 -> 2019 | H3: ='App.2-FB Calc of REG Improvemnt'!I$44 -> 0
A4: ='LDC Info'!$E$14 -> EPCOR Electricity Distribution Ontario Inc. | B4: EB-2022-0028 | C4: 2023 | D4: 2022 | E4: 2013 | F4: Provincial Rate Protection | G4: ='App.2-FB Calc of REG Improvemnt'!J17 -> 2020 | H4: ='App.2-FB Calc of REG Improvemnt'!L$44 -> 0
A5: ='LDC Info'!$E$14 -> EPCOR Electricity Distribution Ontario Inc. | B5: EB-2022-0028 | C5: 2023 | D5: 2022 | E5: 2013 | F5: Provincial Rate Protection | G5: ='App.2-FB Calc of REG Improvemnt'!M17 -> 2021 | H5: ='App.2-FB Calc of REG Improvemnt'!O$44 -> 0
A6: ='LDC Info'!$E$14 -> EPCOR Electricity Distribution Ontario Inc. | B6: EB-2022-0028 | C6: 2023 | D6: 2022 | E6: 2013 | F6: Provincial Rate Protection | G6: ='App.2-FB Calc of REG Improvemnt'!P17 -> 2022 | H6: ='App.2-FB Calc of REG Improvemnt'!R$44 -> 0
A7: ='LDC Info'!$E$14 -> EPCOR Electricity Distribution Ontario Inc. | B7: EB-2022-0028 | C7: 2023 | D7: 2022 | E7: 2013 | F7: Provincial Rate Protection | G7: ='App.2-FB Calc of REG Improvemnt'!S17 -> 2023 | H7: ='App.2-FB Calc of REG Improvemnt'!U$44 -> 0
A8: ='LDC Info'!$E$14 -> EPCOR Electricity Distribution Ontario Inc. | B8: EB-2022-0028 | C8: 2023 | D8: 2022 | E8: 2013 | F8: Provincial Rate Protection | G8: ='App.2-FB Calc of REG Improvemnt'!V17 -> 2024 | H8: ='App.2-FB Calc of REG Improvemnt'!X$44 -> 0
A9: ='LDC Info'!$E$14 -> EPCOR Electricity Distribution Ontario Inc. | B9: EB-2022-0028 | C9: 2023 | D9: 2022 | E9: 2013 | F9: Provincial Rate Protection | G9: ='App.2-FB Calc of REG Improvemnt'!Y17 -> 2025 | H9: ='App.2-FB Calc of REG Improvemnt'!AA$44 -> 0
A10: ='LDC Info'!$E$14 -> EPCOR Electricity Distribution Ontario Inc. | B10: EB-2022-0028 | C10: 2023 | D10: 2022 | E10: 2013 | F10: Provincial Rate Protection | G10: ='App.2-FB Calc of REG Improvemnt'!AB17 -> 2026 | H10: ='App.2-FB Calc of REG Improvemnt'!AD$44 -> 0
A11: ='LDC Info'!$E$14 -> EPCOR Electricity Distribution Ontario Inc. | B11: EB-2022-0028 | C11: 2023 | D11: 2022 | E11: 2013 | F11: Provincial Rate Protection | G11: ='App.2-FB Calc of REG Improvemnt'!AE17 -> 2027 | H11: ='App.2-FB Calc of REG Improvemnt'!AG$44 -> 0

Sheet Hidden_REG Expansion (hidden)
A1: Utility Name | B1: EB Number | C1: Test Year | D1: Bridge Year | E1: Last Rebasing Year | F1: Calculation of Renewable Generation Connection Direct Benefits/Provincial Amount Renewable Expansion Investments | G1: Year | H1: Amount
A2: ='LDC Info'!$E$14 -> EPCOR Electricity Distribution Ontario Inc. | B2: =EBNUMBER -> EB-2022-0028 | C2: =TestYear -> 2023 | D2: =BridgeYear -> 2022 | E2: =RebaseYear -> 2013 | F2: Provincial Rate Protection | G2: ='App.2-FC Calc of REG Expansion'!D$17 -> 2018 | H2: ='App.2-FC Calc of REG Expansion'!F$44 -> 0
A3: ='LDC Info'!$E$14 -> EPCOR Electricity Distribution Ontario Inc. | B3: EB-2022-0028 | C3: 2023 | D3: 2022 | E3: 2013 | F3: Provincial Rate Protection | G3: ='App.2-FC Calc of REG Expansion'!G$17 -> 2019 | H3: ='App.2-FC Calc of REG Expansion'!I$44 -> 0
A4: ='LDC Info'!$E$14 -> EPCOR Electricity Distribution Ontario Inc. | B4: EB-2022-0028 | C4: 2023 | D4: 2022 | E4: 2013 | F4: Provincial Rate Protection | G4: ='App.2-FC Calc of REG Expansion'!J$17 -> 2020 | H4: ='App.2-FC Calc of REG Expansion'!L$44 -> 0
A5: ='LDC Info'!$E$14 -> EPCOR Electricity Distribution Ontario Inc. | B5: EB-2022-0028 | C5: 2023 | D5: 2022 | E5: 2013 | F5: Provincial Rate Protection | G5: ='App.2-FC Calc of REG Expansion'!M$17 -> 2021 | H5: ='App.2-FC Calc of REG Expansion'!O$44 -> 0
A6: ='LDC Info'!$E$14 -> EPCOR Electricity Distribution Ontario Inc. | B6: EB-2022-0028 | C6: 2023 | D6: 2022 | E6: 2013 | F6: Provincial Rate Protection | G6: ='App.2-FC Calc of REG Expansion'!P$17 -> 2022 | H6: ='App.2-FC Calc of REG Expansion'!R$44 -> 0
A7: ='LDC Info'!$E$14 -> EPCOR Electricity Distribution Ontario Inc. | B7: EB-2022-0028 | C7: 2023 | D7: 2022 | E7: 2013 | F7: Provincial Rate Protection | G7: ='App.2-FC Calc of REG Expansion'!S$17 -> 2023 | H7: ='App.2-FC Calc of REG Expansion'!U$44 -> 0
A8: ='LDC Info'!$E$14 -> EPCOR Electricity Distribution Ontario Inc. | B8: EB-2022-0028 | C8: 2023 | D8: 2022 | E8: 2013 | F8: Provincial Rate Protection | G8: ='App.2-FC Calc of REG Expansion'!V$17 -> 2024 | H8: ='App.2-FC Calc of REG Expansion'!X$44 -> 0
A9: ='LDC Info'!$E$14 -> EPCOR Electricity Distribution Ontario Inc. | B9: EB-2022-0028 | C9: 2023 | D9: 2022 | E9: 2013 | F9: Provincial Rate Protection | G9: ='App.2-FC Calc of REG Expansion'!Y$17 -> 2025 | H9: ='App.2-FC Calc of REG Expansion'!AA$44 -> 0
A10: ='LDC Info'!$E$14 -> EPCOR Electricity Distribution Ontario Inc. | B10: EB-2022-0028 | C10: 2023 | D10: 2022 | E10: 2013 | F10: Provincial Rate Protection | G10: ='App.2-FC Calc of REG Expansion'!AB$17 -> 2026 | H10: ='App.2-FC Calc of REG Expansion'!AD$44 -> 0
A11: ='LDC Info'!$E$14 -> EPCOR Electricity Distribution Ontario Inc. | B11: EB-2022-0028 | C11: 2023 | D11: 2022 | E11: 2013 | F11: Provincial Rate Protection | G11: ='App.2-FC Calc of REG Expansion'!AE$17 -> 2027 | H11: ='App.2-FC Calc of REG Expansion'!AG$44 -> 0

Sheet App.2-FA Proposed REG Invest.
K1: File Number: | L1: 0
K2: Exhibit:
K3: Tab:
A4: TO BE UPDATED AT DRAFT RATE ORDER STAGE | K4: Schedule:
K5: Page:
K7: Date:
A9: Appendix 2-FA
A10: Renewable Generation Connection Investment Summary (past investments or over the future rate setting period)
A12: Enter the details of the Renewable Generation Connection projects as described in the appropriate section of the Filing Requirements.
A13: All costs entered on this page will be transferred to the appropriate cells in the appendices that follow.
A14: For Part A, Renewable Enabling Improvements (REI), these amounts will be transferred to Appendix 2 - FB
A15: For Part B, Expansions, these amounts will be transferred to Appendix 2 - FC
A17: If there are more than five projects proposed to be in-service in a certain year, please amend the tables below and ensure that the formulae for the Total Amounts in any given rate year are updated.
A18: Based on the current methodology and allocation, amounts allocated represent 6% for REI Connection Investments and 17% for Expansion Investments. (EB-2009-0349, 6-10-2010, p. 15, note 9)
A19: Ensure that OM&A costs below are not included in Recoverable OM&A (App. 2-JA)
A20: There are two scenarios described below. Separate sets of spreadsheets (2-FA, 2-FB, 2-FC) should be submited for each scenario as required.
A21: Scenario 1: | B21: Past Investments with No Recovery. The distributor has made investments in the past (during the IRM Years), but has not received approval for these projects and therefore did not receive
B22: revenue from the IESO under Regulation 330/09 and did not receive ratepayer revenue for the direct benefit portion of the investment.
B23: The WCA percentage, debt percentages, interest rates, kWh, tax rates, amortization period, CCA Class and percentage should correspond to the distributor's last Cost of Service approval.
B24: The Direct Benefit portion of the calculated Revenue Requirement for each year should be summed and can be applied for recovery from the distributor's ratepayers through a rate rider.
B25: The Provincial Recovery portion of the calculated Revenue Requirement for each year should be summed and can be applied for recovery from the IESO through a separate order.
A27: Scenario 2: | B27: Investments in the Test Year and Beyond. Distributor plans to make investments in 2023 and/or beyond. These investments should be added to 2-FA in the appropriate year.
B28: The WCA percentage, debt percentages, interest rates, kWh, tax rates, amortization period, CCA Class and percentage should correspond to the distributor's current application.
A30: Part A | H30: Test Year
A31: REI Investments (Direct Benefit at 6%) | C31: =D31-1 -> 2018 | D31: =E31-1 -> 2019 | E31: =F31-1 -> 2020 | F31: =G31-1 -> 2021 | G31: =H31-1 -> 2022 | H31: ='LDC Info'!$E$24 -> 2023 | I31: =H31+1 -> 2024 | J31: =I31+1 -> 2025 | K31: =J31+1 -> 2026 | L31: =K31+1 -> 2027
A32: Project 1
A33: Name: REI Connection Project
A34: Capital Costs | C34: 0 | D34: 0 | E34: 0 | F34: 0 | G34: 0 | H34: 0 | I34: 0 | J34: 0 | K34: 0 | L34: 0
A35: Incremental OM&A (Start-Up) | C35: 0 | D35: 0 | E35: 0 | F35: 0 | G35: 0 | H35: 0 | I35: 0 | J35: 0 | K35: 0 | L35: 0
A36: Incremental OM&A (Ongoing) | C36: 0 | D36: 0 | E36: 0 | F36: 0 | G36: 0 | H36: 0 | I36: 0 | J36: 0 | K36: 0 | L36: 0
A38: Project 2
A39: Name: REI Connection Project
A40: Capital Costs | C40: 0 | D40: 0 | E40: 0 | F40: 0 | G40: 0 | H40: 0 | I40: 0 | J40: 0 | K40: 0 | L40: 0
A41: Incremental OM&A (Start-Up) | C41: 0 | D41: 0 | E41: 0 | F41: 0 | G41: 0 | H41: 0 | I41: 0 | J41: 0 | K41: 0 | L41: 0
A42: Incremental OM&A (Ongoing) | C42: 0 | D42: 0 | E42: 0 | F42: 0 | G42: 0 | H42: 0 | I42: 0 | J42: 0 | K42: 0 | L42: 0
A44: Project 3
A45: Name: REI Connection Project
A46: Capital Costs | C46: 0 | D46: 0 | E46: 0 | F46: 0 | G46: 0 | H46: 0 | I46: 0 | J46: 0 | K46: 0 | L46: 0
A47: Incremental OM&A (Start-Up) | C47: 0 | D47: 0 | E47: 0 | F47: 0 | G47: 0 | H47: 0 | I47: 0 | J47: 0 | K47: 0 | L47: 0
A48: Incremental OM&A (Ongoing) | C48: 0 | D48: 0 | E48: 0 | F48: 0 | G48: 0 | H48: 0 | I48: 0 | J48: 0 | K48: 0 | L48: 0
A50: Project 4
A51: Name: REI Connection Project
A52: Capital Costs | C52: 0 | D52: 0 | E52: 0 | F52: 0 | G52: 0 | H52: 0 | I52: 0 | J52: 0 | K52: 0 | L52: 0
A53: Incremental OM&A (Start-Up) | C53: 0 | D53: 0 | E53: 0 | F53: 0 | G53: 0 | H53: 0 | I53: 0 | J53: 0 | K53: 0 | L53: 0
A54: Incremental OM&A (Ongoing) | C54: 0 | D54: 0 | E54: 0 | F54: 0 | G54: 0 | H54: 0 | I54: 0 | J54: 0 | K54: 0 | L54: 0
A56: Project 5
A57: Name: REI Connection Project
A58: Capital Costs | C58: 0 | D58: 0 | E58: 0 | F58: 0 | G58: 0 | H58: 0 | I58: 0 | J58: 0 | K58: 0 | L58: 0
A59: Incremental OM&A (Start-Up) | C59: 0 | D59: 0 | E59: 0 | F59: 0 | G59: 0 | H59: 0 | I59: 0 | J59: 0 | K59: 0 | L59: 0
A60: Incremental OM&A (Ongoing) | C60: 0 | D60: 0 | E60: 0 | F60: 0 | G60: 0 | H60: 0 | I60: 0 | J60: 0 | K60: 0 | L60: 0
A62: Total Capital Costs | C62: =SUM(C58,C52,C46,C40,C34) -> 0 | D62: 0 | E62: 0 | F62: 0 | G62: 0 | H62: 0 | I62: 0 | J62: 0 | K62: 0 | L62: 0
A63: Total Incremental OM&A (Start-Up) | C63: 0 | D63: 0 | E63: 0 | F63: 0 | G63: 0 | H63: 0 | I63: 0 | J63: 0 | K63: 0 | L63: 0
A64: Total Incremental OM&A (Ongoing) | C64: 0 | D64: 0 | E64: 0 | F64: 0 | G64: 0 | H64: 0 | I64: 0 | J64: 0 | K64: 0 | L64: 0
A67: Part B | H67: Test Year
A68: Expansion Investments (Direct Benefit at 17%) | C68: =D68-1 -> 2018 | D68: =E68-1 -> 2019 | E68: =F68-1 -> 2020 | F68: =G68-1 -> 2021 | G68: =H68-1 -> 2022 | H68: =H31 -> 2023 | I68: =H68+1 -> 2024 | J68: =I68+1 -> 2025 | K68: =J68+1 -> 2026 | L68: =K68+1 -> 2027
A69: Project 1
A70: Name: Expansion Connection Project
A71: Capital Costs | C71: 0 | D71: 0 | E71: 0 | F71: 0 | G71: 0 | H71: 0 | I71: 0 | J71: 0 | K71: 0 | L71: 0
A72: Incremental OM&A (Start-Up) | C72: 0 | D72: 0 | E72: 0 | F72: 0 | G72: 0 | H72: 0 | I72: 0 | J72: 0 | K72: 0 | L72: 0
A73: Incremental OM&A (Ongoing) | C73: 0 | D73: 0 | E73: 0 | F73: 0 | G73: 0 | H73: 0 | I73: 0 | J73: 0 | K73: 0 | L73: 0
A75: Project 2
A76: Name: Expansion Connection Project
A77: Capital Costs | C77: 0 | D77: 0 | E77: 0 | F77: 0 | G77: 0 | H77: 0 | I77: 0 | J77: 0 | K77: 0 | L77: 0
A78: Incremental OM&A (Start-Up) | C78: 0 | D78: 0 | E78: 0 | F78: 0 | G78: 0 | H78: 0 | I78: 0 | J78: 0 | K78: 0 | L78: 0
A79: Incremental OM&A (Ongoing) | C79: 0 | D79: 0 | E79: 0 | F79: 0 | G79: 0 | H79: 0 | I79: 0 | J79: 0 | K79: 0 | L79: 0
A81: Project 3
A82: Name: Expansion Connection Project
A83: Capital Costs | C83: 0 | D83: 0 | E83: 0 | F83: 0 | G83: 0 | H83: 0 | I83: 0 | J83: 0 | K83: 0 | L83: 0
A84: Incremental OM&A (Start-Up) | C84: 0 | D84: 0 | E84: 0 | F84: 0 | G84: 0 | H84: 0 | I84: 0 | J84: 0 | K84: 0 | L84: 0
A85: Incremental OM&A (Ongoing) | C85: 0 | D85: 0 | E85: 0 | F85: 0 | G85: 0 | H85: 0 | I85: 0 | J85: 0 | K85: 0 | L85: 0
A87: Project 4
A88: Name: Expansion Connection Project
A89: Capital Costs | C89: 0 | D89: 0 | E89: 0 | F89: 0 | G89: 0 | H89: 0 | I89: 0 | J89: 0 | K89: 0 | L89: 0
A90: Incremental OM&A (Start-Up) | C90: 0 | D90: 0 | E90: 0 | F90: 0 | G90: 0 | H90: 0 | I90: 0 | J90: 0 | K90: 0 | L90: 0
A91: Incremental OM&A (Ongoing) | C91: 0 | D91: 0 | E91: 0 | F91: 0 | G91: 0 | H91: 0 | I91: 0 | J91: 0 | K91: 0 | L91: 0
A93: Project 5
A94: Name: Expansion Connection Project
A95: Capital Costs | C95: 0 | D95: 0 | E95: 0 | F95: 0 | G95: 0 | H95: 0 | I95: 0 | J95: 0 | K95: 0 | L95: 0
A96: Incremental OM&A (Start-Up) | C96: 0 | D96: 0 | E96: 0 | F96: 0 | G96: 0 | H96: 0 | I96: 0 | J96: 0 | K96: 0 | L96: 0
A97: Incremental OM&A (Ongoing) | C97: 0 | D97: 0 | E97: 0 | F97: 0 | G97: 0 | H97: 0 | I97: 0 | J97: 0 | K97: 0 | L97: 0
A99: Total Capital Costs | C99: =SUM(C95,C89,C83,C77,C71) -> 0 | D99: 0 | E99: 0 | F99: 0 | G99: 0 | H99: 0 | I99: 0 | J99: 0 | K99: 0 | L99: 0
A100: Total Incremental OM&A (Start-Up) | C100: 0 | D100: 0 | E100: 0 | F100: 0 | G100: 0 | H100: 0 | I100: 0 | J100: 0 | K100: 0 | L100: 0
A101: Total Incremental OM&A (Ongoing) | C101: 0 | D101: 0 | E101: 0 | F101: 0 | G101: 0 | H101: 0 | I101: 0 | J101: 0 | K101: 0 | L101: 0

Sheet App.2-FB Calc of REG Improvemnt
R1: File Number: | S1: 0
R2: Exhibit:
R3: Tab:
A4: TO BE UPDATED AT DRAFT RATE ORDER STAGE | R4: Schedule:
R5: Page:
R7: Date:
A9: Appendix 2-FB
A10: Calculation of Renewable Generation Connection Direct Benefits/Provincial Amount: Renewable Enabling Improvement Investments
A12: This table will calculate the distributor/provincial shares of the investments entered in Part A of Appendix 2-FA.
A13: Enter values in green shaded cells: WCA percentage, debt percentages, interest rates, kWh, tax rates, amortization period, CCA Class and percentage.
A14: For historical investments, enter these variables that were approved in your last cost of service test year. For test year and beyond, enter variables as in the application.
A15: Rate Riders related to the direct benefit portion of the renewable investments are not calculated for the Test Year as these assets and costs are already in the distributor's rate base/revenue requirement.
S16: Test Year
D17: =G17-1 -> 2018 | G17: =J17-1 -> 2019 | J17: =M17-1 -> 2020 | M17: =P17-1 -> 2021 | P17: =S17-1 -> 2022 | S17: ='LDC Info'!$E$24 -> 2023 | V17: =S17+1 -> 2024 | Y17: =V17+1 -> 2025 | Z17: 2016 | AB17: =Y17+1 -> 2026 | AE17: =AB17+1 -> 2027 | AH17: =AE17+1 -> 2028
E18: Direct Benefit | F18: Provincial | H18: Direct Benefit | I18: Provincial | K18: Direct Benefit | L18: Provincial | N18: Direct Benefit | O18: Provincial | Q18: Direct Benefit | R18: Provincial | T18: Direct Benefit | U18: Provincial | W18: Direct Benefit | X18: Provincial | Z18: Direct Benefit | AA18: Provincial | AC18: Direct Benefit | AD18: Provincial | AF18: Direct Benefit | AG18: Provincial | AI18: Direct Benefit | AJ18: Provincial
D19: Total | E19: 0.06 | F19: 0.94 | G19: Total | H19: 0.06 | I19: 0.94 | J19: Total | K19: 0.06 | L19: 0.94 | M19: Total | N19: 0.06 | O19: 0.94 | P19: Total | Q19: 0.06 | R19: 0.94 | S19: Total | T19: 0.06 | U19: 0.94 | V19: Total | W19: 0.06 | X19: 0.94 | Y19: Total | Z19: 0.06 | AA19: 0.94 | AB19: Total | AC19: 0.06 | AD19: 0.94 | AE19: Total | AF19: 0.06 | AG19: 0.94 | AH19: Total | AI19: 0.06 | AJ19: 0.94
A20: Net Fixed Assets (average) | D20: =E83 -> 0 | E20: =D20*E19 -> 0 | F20: =D20*F19 -> 0 | G20: =F83 -> 0 | H20: =G20*H19 -> 0 | I20: =G20*I19 -> 0 | J20: =G83 -> 0 | K20: =J20*K19 -> 0 | L20: =J20*L19 -> 0 | M20: =H83 -> 0 | N20: =M20*N19 -> 0 | O20: =M20*O19 -> 0 | P20: =I83 -> 0 | Q20: =P20*Q19 -> 0 | R20: =P20*R19 -> 0 | S20: =J83 -> 0 | T20: =S20*T19 -> 0 | U20: =S20*U19 -> 0 | V20: =K83 -> 0 | W20: =V20*W19 -> 0 | X20: =V20*X19 -> 0 | Y20: =L83 -> 0 | Z20: =Y20*Z19 -> 0 | AA20: =Y20*AA19 -> 0 | AB20: =M83 -> 0 | AC20: =AB20*AC19 -> 0 | AD20: =AB20*AD19 -> 0 | AE20: =N83 -> 0 | AF20: =AE20*AF19 -> 0 | AG20: =AE20*AG19 -> 0 | AH20: =O83 -> 0 | AI20: =AH20*AI19 -> 0 | AJ20: =AH20*AJ19 -> 0
A21: Incremental OM&A (on-going, N/A for Provincial Recovery) | D21: 0 | E21: =D21*E19 -> 0 | F21: =D21*F19 -> 0 | G21: 0 | H21: =G21*H19 -> 0 | I21: =G21*I19 -> 0 | J21: 0 | K21: =J21*K19 -> 0 | L21: =J21*L19 -> 0 | M21: 0 | N21: =M21*N19 -> 0 | O21: =M21*O19 -> 0 | P21: 0 | Q21: =P21*Q19 -> 0 | R21: =P21*R19 -> 0 | S21: 0 | T21: =S21*T19 -> 0 | U21: =S21*U19 -> 0 | V21: 0 | W21: =V21*W19 -> 0 | X21: =V21*X19 -> 0 | Y21: 0 | Z21: =Y21*Z19 -> 0 | AA21: =Y21*AA19 -> 0 | AB21: 0 | AC21: =AB21*AC19 -> 0 | AD21: =AB21*AD19 -> 0 | AE21: 0 | AF21: =AE21*AF19 -> 0 | AG21: =AE21*AG19 -> 0 | AH21: 0 | AI21: =AH21*AI19 -> 0 | AJ21: =AH21*AJ19 -> 0
A22: Incremental OM&A (start-up, applicable for Provincial Recovery) | D22: 0 | E22: =D22*E19 -> 0 | F22: =D22*F19 -> 0 | G22: 0 | H22: =G22*H19 -> 0 | I22: =G22*I19 -> 0 | J22: 0 | K22: =J22*K19 -> 0 | L22: =J22*L19 -> 0 | M22: 0 | N22: =M22*N19 -> 0 | O22: =M22*O19 -> 0 | P22: 0 | Q22: =P22*Q19 -> 0 | R22: =P22*R19 -> 0 | S22: 0 | T22: =S22*T19 -> 0 | U22: =S22*U19 -> 0 | V22: 0 | W22: =V22*W19 -> 0 | X22: =V22*X19 -> 0 | Y22: 0 | Z22: =Y22*Z19 -> 0 | AA22: =Y22*AA19 -> 0 | AB22: 0 | AC22: =AB22*AC19 -> 0 | AD22: =AB22*AD19 -> 0 | AE22: 0 | AF22: =AE22*AF19 -> 0 | AG22: =AE22*AG19 -> 0 | AH22: 0 | AI22: =AH22*AI19 -> 0 | AJ22: =AH22*AJ19 -> 0
A23: Rebasing Year vs. Test Year | B23: ='LDC Info'!E28 -> 2013 | C23: ='LDC Info'!E24 -> 2023
A24: Allowance for Working Capital (enter rate) | E24: =IF(AND(D$17>=$B$23, D$17<$C$23),(E21+E22)*$B$24,(E21+E22)*$C$24) -> 0 | F24: =IF(AND(D$17>=$B$23, D$17<$C$23),(F22)*$B$24,(F22)*$C$24) -> 0 | H24: =IF(AND(G$17>=$B$23, G$17<$C$23),(H21+H22)*$B$24,(H21+H22)*$C$24) -> 0 | I24: =IF(AND(G$17>=$B$23, G$17<$C$23),(I22)*$B$24,(I22)*$C$24) -> 0 | K24: =IF(AND(J$17>=$B$23, J$17<$C$23),(K21+K22)*$B$24,(K21+K22)*$C$24) -> 0 | L24: =IF(AND(J$17>=$B$23, J$17<$C$23),(L22)*$B$24,(L22)*$C$24) -> 0 | N24: =IF(AND(M$17>=$B$23, M$17<$C$23),(N21+N22)*$B$24,(N21+N22)*$C$24) -> 0 | O24: =IF(AND(M$17>=$B$23, M$17<$C$23),(O22)*$B$24,(O22)*$C$24) -> 0 | Q24: =IF(AND(P$17>=$B$23, P$17<$C$23),(Q21+Q22)*$B$24,(Q21+Q22)*$C$24) -> 0 | R24: =IF(AND(P$17>=$B$23, P$17<$C$23),(R22)*$B$24,(R22)*$C$24) -> 0 | T24: =IF(AND(S$17>=$B$23, S$17<$C$23),(T21+T22)*$B$24,(T21+T22)*$C$24) -> 0 | U24: =IF(AND(S$17>=$B$23, S$17<$C$23),(U22)*$B$24,(U22)*$C$24) -> 0 | W24: =IF(AND(V$17>=$B$23, V$17<$C$23),(W21+W22)*$B$24,(W21+W22)*$C$24) -> 0 | X24: =IF(AND(V$17>=$B$23, V$17<$C$23),(X22)*$B$24,(X22)*$C$24) -> 0 | Z24: =IF(AND(Y$17>=$B$23, Y$17<$C$23),(Z21+Z22)*$B$24,(Z21+Z22)*$C$24) -> 0 | AA24: =IF(AND(Y$17>=$B$23, Y$17<$C$23),(AA22)*$B$24,(AA22)*$C$24) -> 0 | AC24: =IF(AND(AB$17>=$B$23, AB$17<$C$23),(AC21+AC22)*$B$24,(AC21+AC22)*$C$24) -> 0 | AD24: =IF(AND(AB$17>=$B$23, AB$17<$C$23),(AD22)*$B$24,(AD22)*$C$24) -> 0 | AF24: =IF(AND(AE$17>=$B$23, AE$17<$C$23),(AF21+AF22)*$B$24,(AF21+AF22)*$C$24) -> 0 | AG24: =IF(AND(AE$17>=$B$23, AE$17<$C$23),(AG22)*$B$24,(AG22)*$C$24) -> 0 | AI24: =IF(AND(AH$17>=$B$23, AH$17<$C$23),(AI21+AI22)*$B$24,(AI21+AI22)*$C$24) -> 0 | AJ24: =IF(AND(AH$17>=$B$23, AH$17<$C$23),(AJ22)*$B$24,(AJ22)*$C$24) -> 0
A25: Rate Base | E25: =SUM(E20+E24) -> 0 | F25: =SUM(F20+F24) -> 0 | H25: =SUM(H20+H24) -> 0 | I25: =SUM(I20+I24) -> 0 | K25: =SUM(K20+K24) -> 0 | L25: =SUM(L20+L24) -> 0 | N25: =SUM(N20+N24) -> 0 | O25: =SUM(O20+O24) -> 0 | Q25: =SUM(Q20+Q24) -> 0 | R25: =SUM(R20+R24) -> 0 | T25: =SUM(T20+T24) -> 0 | U25: =SUM(U20+U24) -> 0 | W25: =SUM(W20+W24) -> 0 | X25: =SUM(X20+X24) -> 0 | Z25: =SUM(Z20+Z24) -> 0 | AA25: =SUM(AA20+AA24) -> 0 | AC25: =SUM(AC20+AC24) -> 0 | AD25: =SUM(AD20+AD24) -> 0 | AF25: =SUM(AF20+AF24) -> 0 | AG25: =SUM(AG20+AG24) -> 0 | AI25: =SUM(AI20+AI24) -> 0 | AJ25: =SUM(AJ20+AJ24) -> 0
A27: Rebasing Year vs. Test Year | B27: =B23 -> 2013 | C27: =C23 -> 2023
A28: Deemed ST Debt | B28: 0.04 | C28: 0.04 | E28: =E25*$B$28 -> 0 | F28: =F25*$B$28 -> 0 | H28: =H25*$B$28 -> 0 | I28: =I25*$B$28 -> 0 | K28: =K25*$B$28 -> 0 | L28: =L25*$B$28 -> 0 | N28: =N25*$B$28 -> 0 | O28: =O25*$B$28 -> 0 | Q28: =Q25*$B$28 -> 0 | R28: =R25*$B$28 -> 0 | T28: =T25*$C$28 -> 0 | U28: =U25*$C$28 -> 0 | W28: =W25*$C$28 -> 0 | X28: =X25*$C$28 -> 0 | Z28: =Z25*$C$28 -> 0 | AA28: =AA25*$C$28 -> 0 | AC28: =AC25*$C$28 -> 0 | AD28: =AD25*$C$28 -> 0 | AF28: =AF25*$C$28 -> 0 | AG28: =AG25*$C$28 -> 0 | AI28: =AI25*$C$28 -> 0 | AJ28: =AJ25*$C$28 -> 0
A29: Deemed LT Debt | B29: 0.56 | C29: 0.56 | E29: =E25*$B$29 -> 0 | F29: =F25*$B$29 -> 0 | H29: =H25*$B$29 -> 0 | I29: =I25*$B$29 -> 0 | K29: =K25*$B$29 -> 0 | L29: =L25*$B$29 -> 0 | N29: =N25*$B$29 -> 0 | O29: =O25*$B$29 -> 0 | Q29: =Q25*$B$29 -> 0 | R29: =R25*$B$29 -> 0 | T29: =T25*$C$29 -> 0 | U29: =U25*$C$29 -> 0 | W29: =W25*$C$29 -> 0 | X29: =X25*$C$29 -> 0 | Z29: =Z25*$C$29 -> 0 | AA29: =AA25*$C$29 -> 0 | AC29: =AC25*$C$29 -> 0 | AD29: =AD25*$C$29 -> 0 | AF29: =AF25*$C$29 -> 0 | AG29: =AG25*$C$29 -> 0 | AI29: =AI25*$C$29 -> 0 | AJ29: =AJ25*$C$29 -> 0
A30: Deemed Equity | B30: 0.4 | C30: 0.4 | E30: =E25*$B$30 -> 0 | F30: =F25*$B$30 -> 0 | H30: =H25*$B$30 -> 0 | I30: =I25*$B$30 -> 0 | K30: =K25*$B$30 -> 0 | L30: =L25*$B$30 -> 0 | N30: =N25*$B$30 -> 0 | O30: =O25*$B$30 -> 0 | Q30: =Q25*$B$30 -> 0 | R30: =R25*$B$30 -> 0 | T30: =T25*$C$30 -> 0 | U30: =U25*$C$30 -> 0 | W30: =W25*$C$30 -> 0 | X30: =X25*$C$30 -> 0 | Z30: =Z25*$C$30 -> 0 | AA30: =AA25*$C$30 -> 0 | AC30: =AC25*$C$30 -> 0 | AD30: =AD25*$C$30 -> 0 | AF30: =AF25*$C$30 -> 0 | AG30: =AG25*$C$30 -> 0 | AI30: =AI25*$C$30 -> 0 | AJ30: =AJ25*$C$30 -> 0
A32: ST Interest (enter rate) | E32: =E28*$B32 -> 0 | F32: 0 | H32: 0 | I32: 0 | K32: 0 | L32: 0 | N32: 0 | O32: 0 | Q32: 0 | R32: 0 | T32: =T28*$C32 -> 0 | U32: 0 | W32: =W28*$C32 -> 0 | X32: 0 | Z32: =Z28*$C32 -> 0 | AA32: 0 | AC32: =AC28*$C32 -> 0 | AD32: 0 | AF32: =AF28*$C32 -> 0 | AG32: 0 | AI32: =AI28*$C32 -> 0 | AJ32: 0
A33: LT Interest (enter rate) | E33: 0 | F33: 0 | H33: 0 | I33: 0 | K33: 0 | L33: 0 | N33: 0 | O33: 0 | Q33: 0 | R33: 0 | T33: 0 | U33: 0 | W33: 0 | X33: 0 | Z33: 0 | AA33: 0 | AC33: 0 | AD33: 0 | AF33: 0 | AG33: 0 | AI33: 0 | AJ33: 0
A34: Return on Equity (enter rate) | E34: 0 | F34: 0 | H34: 0 | I34: 0 | K34: 0 | L34: 0 | N34: 0 | O34: 0 | Q34: 0 | R34: 0 | T34: 0 | U34: 0 | W34: 0 | X34: 0 | Z34: 0 | AA34: 0 | AC34: 0 | AD34: 0 | AF34: 0 | AG34: 0 | AI34: 0 | AJ34: 0
A35: Cost of Capital Total | E35: =SUM(E32:E34) -> 0 | F35: =SUM(F32:F34) -> 0 | H35: =SUM(H32:H34) -> 0 | I35: =SUM(I32:I34) -> 0 | K35: =SUM(K32:K34) -> 0 | L35: =SUM(L32:L34) -> 0 | N35: =SUM(N32:N34) -> 0 | O35: =SUM(O32:O34) -> 0 | Q35: =SUM(Q32:Q34) -> 0 | R35: =SUM(R32:R34) -> 0 | T35: =SUM(T32:T34) -> 0 | U35: =SUM(U32:U34) -> 0 | W35: =SUM(W32:W34) -> 0 | X35: =SUM(X32:X34) -> 0 | Z35: =SUM(Z32:Z34) -> 0 | AA35: =SUM(AA32:AA34) -> 0 | AC35: =SUM(AC32:AC34) -> 0 | AD35: =SUM(AD32:AD34) -> 0 | AF35: =SUM(AF32:AF34) -> 0 | AG35: =SUM(AG32:AG34) -> 0 | AI35: =SUM(AI32:AI34) -> 0 | AJ35: =SUM(AJ32:AJ34) -> 0
A37: OM&A | E37: =E21+E22 -> 0 | F37: =F22 -> 0 | H37: =H21+H22 -> 0 | I37: =I22 -> 0 | K37: =K21+K22 -> 0 | L37: =L22 -> 0 | N37: =N21+N22 -> 0 | O37: =O22 -> 0 | Q37: =Q21+Q22 -> 0 | R37: =R22 -> 0 | T37: =T21+T22 -> 0 | U37: =U22 -> 0 | W37: =W21+W22 -> 0 | X37: =X22 -> 0 | Z37: =Z21+Z22 -> 0 | AA37: =AA22 -> 0 | AC37: =AC21+AC22 -> 0 | AD37: =AD22 -> 0 | AF37: =AF21+AF22 -> 0 | AG37: =AG22 -> 0 | AI37: =AI21+AI22 -> 0 | AJ37: =AJ22 -> 0
A38: Amortization | D38: =+E77+E78 -> 0 | E38: =D38*E$19 -> 0 | F38: =D38*F$19 -> 0 | G38: =+F77+F78 -> 0 | H38: =G38*H$19 -> 0 | I38: =G38*I$19 -> 0 | J38: =+G77+G78 -> 0 | K38: =J38*K$19 -> 0 | L38: =J38*L$19 -> 0 | M38: =+H77+H78 -> 0 | N38: =M38*N$19 -> 0 | O38: =M38*O$19 -> 0 | P38: =+I77+I78 -> 0 | Q38: =P38*Q$19 -> 0 | R38: =P38*R$19 -> 0 | S38: =+J77+J78 -> 0 | T38: =S38*T$19 -> 0 | U38: =S38*U$19 -> 0 | V38: =+K77+K78 -> 0 | W38: =V38*W$19 -> 0 | X38: =V38*X$19 -> 0 | Y38: =+L77+L78 -> 0 | Z38: =Y38*Z$19 -> 0 | AA38: =Y38*AA$19 -> 0 | AB38: =+M77+M78 -> 0 | AC38: =AB38*AC$19 -> 0 | AD38: =AB38*AD$19 -> 0 | AE38: =+N77+N78 -> 0 | AF38: =AE38*AF$19 -> 0 | AG38: =AE38*AG$19 -> 0 | AH38: =+O77+O78 -> 0 | AI38: =AH38*AI$19 -> 0 | AJ38: =AH38*AJ$19 -> 0
A39: Grossed-up PILs | E39: =+E66 -> 0 | F39: =+F66 -> 0 | H39: =+H66 -> 0 | I39: =+I66 -> 0 | K39: =+K66 -> 0 | L39: =+L66 -> 0 | N39: =+N66 -> 0 | O39: =+O66 -> 0 | Q39: =+Q66 -> 0 | R39: =+R66 -> 0 | T39: =+T66 -> 0 | U39: =+U66 -> 0 | W39: =+W66 -> 0 | X39: =+X66 -> 0 | Z39: =+Z66 -> 0 | AA39: =+AA66 -> 0 | AC39: =+AC66 -> 0 | AD39: =+AD66 -> 0 | AF39: =+AF66 -> 0 | AG39: =+AG66 -> 0 | AI39: =+AI66 -> 0 | AJ39: =+AJ66 -> 0
A41: Revenue Requirement | E41: =SUM(E35:E39) -> 0 | F41: =SUM(F35:F39) -> 0 | H41: =SUM(H35:H39) -> 0 | I41: =SUM(I35:I39) -> 0 | K41: =SUM(K35:K39) -> 0 | L41: =SUM(L35:L39) -> 0 | N41: =SUM(N35:N39) -> 0 | O41: =SUM(O35:O39) -> 0 | Q41: =SUM(Q35:Q39) -> 0 | R41: =SUM(R35:R39) -> 0 | T41: =SUM(T35:T39) -> 0 | U41: =SUM(U35:U39) -> 0 | W41: =SUM(W35:W39) -> 0 | X41: =SUM(X35:X39) -> 0 | Z41: =SUM(Z35:Z39) -> 0 | AA41: =SUM(AA35:AA39) -> 0 | AC41: =SUM(AC35:AC39) -> 0 | AD41: =SUM(AD35:AD39) -> 0 | AF41: =SUM(AF35:AF39) -> 0 | AG41: =SUM(AG35:AG39) -> 0 | AI41: =SUM(AI35:AI39) -> 0 | AJ41: =SUM(AJ35:AJ39) -> 0
A44: Provincial Rate Protection | F44: =F41 -> 0 | I44: =I41 -> 0 | L44: =L41 -> 0 | O44: =O41 -> 0 | R44: =R41 -> 0 | U44: =U41 -> 0 | X44: =X41 -> 0 | AA44: =AA41 -> 0 | AD44: =AD41 -> 0 | AG44: =AG41 -> 0 | AJ44: =AJ41 -> 0
A46: Monthly Amount Paid by IESO | F46: =F44/12 -> 0 | I46: =I44/12 -> 0 | L46: =L44/12 -> 0 | O46: =O44/12 -> 0 | R46: =R44/12 -> 0 | U46: =U44/12 -> 0 | X46: =X44/12 -> 0 | AA46: =AA44/12 -> 0 | AD46: =AD44/12 -> 0 | AG46: =AG44/12 -> 0 | AJ46: =AJ44/12 -> 0
A48: Note 1: The distributor should follow the regulatory accounting set out in the Accounting Procedure Handbook Guidance FAQs issued in March 2015. Q10 of the APH FAQs states that: “For approved eligible investments as defined under O.Reg. 330/09 under the OEB Act, a variance account will continue to be used for the purpose of recording variances between the revenue requirement based on actual costs of approved eligible investments and the revenue received from the IESO.” The answer for Q10 provides the accounting guidance for this variance account: “Distributors that have included eligible investments to connect qualifying facilities in their DS plans are to establish the variance Account 1533 Renewable Generation Connection Funding Adder Deferral Account, Sub-account Provincial Rate Protection Payment Variances following OEB approval for investments forecast to enter service beyond the test year for purposes of implementing rate protection pursuant to O.Reg. 330/09. The purpose of this variance account is to track the variance between the distributor’s revenue requirement associated with the portion of the actual capital and/or operating costs that are eligible for rate protection, as incurred by the distributor for eligible renewable enabling and expansion investments, and the rate protection payments collected from the IESO.” The answer further provides the journal entries to record the variances. Distributors should follow the instructions in the answer for recording the journal entries in the variance account 1533.
A50: Note 2: For the Test Year, Costs and Revenues of the Direct Benefit are to be included in the test year applicant Rate Base and Revenues.
A52: PILs Calculation | T52: Test Year
E53: =G17-1 -> 2018 | H53: =G17 -> 2019 | K53: =J17 -> 2020 | N53: =M17 -> 2021 | Q53: =P17 -> 2022 | T53: =S17 -> 2023 | W53: =V17 -> 2024 | Z53: =Y17 -> 2025 | AC53: =AB17 -> 2026 | AF53: =AE17 -> 2027 | AI53: =AH17 -> 2028
A54: Income Tax | E54: Direct Benefit | F54: Provincial | H54: Direct Benefit | I54: Provincial | K54: Direct Benefit | L54: Provincial | N54: Direct Benefit | O54: Provincial | Q54: Direct Benefit | R54: Provincial | T54: Direct Benefit | U54: Provincial | W54: Direct Benefit | X54: Provincial | Z54: Direct Benefit | AA54: Provincial | AC54: Direct Benefit | AD54: Provincial | AF54: Direct Benefit | AG54: Provincial | AI54: Direct Benefit | AJ54: Provincial
AB55: Total | AE55: Total | AH55: Total
A56: Net Income - ROE on Rate Base | E56: =E34 -> 0 | F56: =F34 -> 0 | H56: =H34 -> 0 | I56: =I34 -> 0 | K56: =K34 -> 0 | L56: =L34 -> 0 | N56: =N34 -> 0 | O56: =O34 -> 0 | Q56: =Q34 -> 0 | R56: =R34 -> 0 | T56: =T34 -> 0 | U56: =U34 -> 0 | W56: =W34 -> 0 | X56: =X34 -> 0 | Z56: =Z34 -> 0 | AA56: =AA34 -> 0 | AC56: =AC34 -> 0 | AD56: =AD34 -> 0 | AF56: =AF34 -> 0 | AG56: =AG34 -> 0 | AI56: =AI34 -> 0 | AJ56: =AJ34 -> 0
A57: Amortization (6% DB and 94% P) | E57: =E38 -> 0 | F57: =F38 -> 0 | H57: =H38 -> 0 | I57: =I38 -> 0 | K57: =K38 -> 0 | L57: =L38 -> 0 | N57: =N38 -> 0 | O57: =O38 -> 0 | Q57: =Q38 -> 0 | R57: =R38 -> 0 | T57: =T38 -> 0 | U57: =U38 -> 0 | W57: =W38 -> 0 | X57: =X38 -> 0 | Z57: =Z38 -> 0 | AA57: =AA38 -> 0 | AC57: =AC38 -> 0 | AD57: =AD38 -> 0 | AF57: =AF38 -> 0 | AG57: =AG38 -> 0 | AI57: =AI38 -> 0 | AJ57: =AJ38 -> 0
A58: CCA (6% DB and 94% P) | E58: =-E95*$E$19 -> 0 | F58: =-E95*$F$19 -> 0 | H58: =-F95*$E$19 -> 0 | I58: =-F95*$F$19 -> 0 | K58: =-G95*$E$19 -> 0 | L58: =-G95*$F$19 -> 0 | N58: =-H95*$E$19 -> 0 | O58: =-H95*$F$19 -> 0 | Q58: =-I95*$E$19 -> 0 | R58: =-I95*$F$19 -> 0 | T58: =-J95*$E$19 -> 0 | U58: =-J95*$F$19 -> 0 | W58: =-K95*$E$19 -> 0 | X58: =-K95*$F$19 -> 0 | Z58: =-L95*$E$19 -> 0 | AA58: =-L95*$F$19 -> 0 | AC58: =-M95*$E$19 -> 0 | AD58: =-M95*$F$19 -> 0 | AF58: =-N95*$E$19 -> 0 | AG58: =-N95*$F$19 -> 0 | AI58: =-Q95*$E$19 -> 0 | AJ58: =-Q95*$F$19 -> 0
A59: Taxable income | E59: =SUM(E56:E58) -> 0 | F59: =SUM(F56:F58) -> 0 | H59: =SUM(H56:H58) -> 0 | I59: =SUM(I56:I58) -> 0 | K59: =SUM(K56:K58) -> 0 | L59: =SUM(L56:L58) -> 0 | N59: =SUM(N56:N58) -> 0 | O59: =SUM(O56:O58) -> 0 | Q59: =SUM(Q56:Q58) -> 0 | R59: =SUM(R56:R58) -> 0 | T59: =SUM(T56:T58) -> 0 | U59: =SUM(U56:U58) -> 0 | W59: =SUM(W56:W58) -> 0 | X59: =SUM(X56:X58) -> 0 | Z59: =SUM(Z56:Z58) -> 0 | AA59: =SUM(AA56:AA58) -> 0 | AC59: =SUM(AC56:AC58) -> 0 | AD59: =SUM(AD56:AD58) -> 0 | AF59: =SUM(AF56:AF58) -> 0 | AG59: =SUM(AG56:AG58) -> 0 | AI59: =SUM(AI56:AI58) -> 0 | AJ59: =SUM(AJ56:AJ58) -> 0
B60: =B27 -> 2013 | C60: =C27 -> 2023
A61: Tax Rate (to be entered) | E61: =IF(AND(E$53>=$B$60, E$53<$C$60),$B$61,$C$61) -> 0 | F61: =IF(AND(E$53>=$B$60, E$53<$C$60),$B$61,$C$61) -> 0 | H61: =IF(AND(H$53>=$B$60, H$53<$C$60),$B$61,$C$61) -> 0 | I61: =IF(AND(H$53>=$B$60, H$53<$C$60),$B$61,$C$61) -> 0 | K61: =IF(AND(K$53>=$B$60, K$53<$C$60),$B$61,$C$61) -> 0 | L61: =IF(AND(K$53>=$B$60, K$53<$C$60),$B$61,$C$61) -> 0 | N61: =IF(AND(N$53>=$B$60, N$53<$C$60),$B$61,$C$61) -> 0 | O61: =IF(AND(N$53>=$B$60, N$53<$C$60),$B$61,$C$61) -> 0 | Q61: =IF(AND(Q$53>=$B$60, Q$53<$C$60),$B$61,$C$61) -> 0 | R61: =IF(AND(Q$53>=$B$60, Q$53<$C$60),$B$61,$C$61) -> 0 | T61: =IF(AND(T$53>=$B$60, T$53<$C$60),$B$61,$C$61) -> 0 | U61: =IF(AND(T$53>=$B$60, T$53<$C$60),$B$61,$C$61) -> 0 | W61: =IF(AND(W$53>=$B$60, W$53<$C$60),$B$61,$C$61) -> 0 | X61: =IF(AND(W$53>=$B$60, W$53<$C$60),$B$61,$C$61) -> 0 | Z61: =IF(AND(Z$53>=$B$60, Z$53<$C$60),$B$61,$C$61) -> 0 | AA61: =IF(AND(Z$53>=$B$60, Z$53<$C$60),$B$61,$C$61) -> 0 | AC61: =IF(AND(AC$53>=$B$60, AC$53<$C$60),$B$61,$C$61) -> 0 | AD61: =IF(AND(AC$53>=$B$60, AC$53<$C$60),$B$61,$C$61) -> 0 | AF61: =IF(AND(AF$53>=$B$60, AF$53<$C$60),$B$61,$C$61) -> 0 | AG61: =IF(AND(AF$53>=$B$60, AF$53<$C$60),$B$61,$C$61) -> 0 | AI61: =IF(AND(AI$53>=$B$60, AI$53<$C$60),$B$61,$C$61) -> 0 | AJ61: =IF(AND(AI$53>=$B$60, AI$53<$C$60),$B$61,$C$61) -> 0
A63: Income Taxes Payable | E63: =E59*E61 -> 0 | F63: =F59*F61 -> 0 | H63: =H59*H61 -> 0 | I63: =I59*I61 -> 0 | K63: =K59*K61 -> 0 | L63: =L59*L61 -> 0 | N63: =N59*N61 -> 0 | O63: =O59*O61 -> 0 | Q63: =Q59*Q61 -> 0 | R63: =R59*R61 -> 0 | T63: =T59*T61 -> 0 | U63: =U59*U61 -> 0 | W63: =W59*W61 -> 0 | X63: =X59*X61 -> 0 | Z63: =Z59*Z61 -> 0 | AA63: =AA59*AA61 -> 0 | AC63: =AC59*AC61 -> 0 | AD63: =AD59*AD61 -> 0 | AF63: =AF59*AF61 -> 0 | AG63: =AG59*AG61 -> 0 | AI63: =AI59*AI61 -> 0 | AJ63: =AJ59*AJ61 -> 0
A64: Gross Up
A65: Income Taxes Payable | E65: =E63/(1-E61) -> 0 | F65: =F63/(1-F61) -> 0 | H65: =H63/(1-H61) -> 0 | I65: =I63/(1-I61) -> 0 | K65: =K63/(1-K61) -> 0 | L65: =L63/(1-L61) -> 0 | N65: =N63/(1-N61) -> 0 | O65: =O63/(1-O61) -> 0 | Q65: =Q63/(1-Q61) -> 0 | R65: =R63/(1-R61) -> 0 | T65: =T63/(1-T61) -> 0 | U65: =U63/(1-U61) -> 0 | W65: =W63/(1-W61) -> 0 | X65: =X63/(1-X61) -> 0 | Z65: =Z63/(1-Z61) -> 0 | AA65: =AA63/(1-AA61) -> 0 | AC65: =AC63/(1-AC61) -> 0 | AD65: =AD63/(1-AD61) -> 0 | AF65: =AF63/(1-AF61) -> 0 | AG65: =AG63/(1-AG61) -> 0 | AI65: =AI63/(1-AI61) -> 0 | AJ65: =AJ63/(1-AJ61) -> 0
A66: Grossed Up PILs | E66: =+E65 -> 0 | F66: =+F65 -> 0 | H66: =+H65 -> 0 | I66: =+I65 -> 0 | K66: =+K65 -> 0 | L66: =+L65 -> 0 | N66: =+N65 -> 0 | O66: =+O65 -> 0 | Q66: =+Q65 -> 0 | R66: =+R65 -> 0 | T66: =+T65 -> 0 | U66: =+U65 -> 0 | W66: =+W65 -> 0 | X66: =+X65 -> 0 | Z66: =+Z65 -> 0 | AA66: =+AA65 -> 0 | AC66: =+AC65 -> 0 | AD66: =+AD65 -> 0 | AF66: =+AF65 -> 0 | AG66: =+AG65 -> 0 | AI66: =+AI65 -> 0 | AJ66: =+AJ65 -> 0
J68: Test Year
E69: =F69-1 -> 2018 | F69: =G69-1 -> 2019 | G69: =H69-1 -> 2020 | H69: =I69-1 -> 2021 | I69: =J69-1 -> 2022 | J69: ='LDC Info'!E24 -> 2023 | K69: =J69+1 -> 2024 | L69: =K69+1 -> 2025 | M69: =L69+1 -> 2026 | N69: =M69+1 -> 2027 | O69: =N69+1 -> 2028
A70: Net Fixed Assets
A71: Enter applicable amortization in years: | B71: 40
A72: Opening Gross Fixed Assets | F72: =E74 -> 0 | G72: 0 | H72: 0 | I72: 0 | J72: 0 | K72: 0 | L72: 0 | M72: 0 | N72: 0 | O72: 0
A73: Capital Additions | E73: ='App.2-FA Proposed REG Invest.'!C62 -> 0 | F73: ='App.2-FA Proposed REG Invest.'!D62 -> 0 | G73: ='App.2-FA Proposed REG Invest.'!E62 -> 0 | H73: ='App.2-FA Proposed REG Invest.'!F62 -> 0 | I73: ='App.2-FA Proposed REG Invest.'!G62 -> 0 | J73: ='App.2-FA Proposed REG Invest.'!H62 -> 0 | K73: ='App.2-FA Proposed REG Invest.'!I62 -> 0 | L73: ='App.2-FA Proposed REG Invest.'!J62 -> 0 | M73: ='App.2-FA Proposed REG Invest.'!K62 -> 0 | N73: ='App.2-FA Proposed REG Invest.'!L62 -> 0 | O73: ='App.2-FA Proposed REG Invest.'!M62 -> 0
A74: Closing Gross Fixed Assets | E74: =SUM(E72:E73) -> 0 | F74: 0 | G74: 0 | H74: 0 | I74: 0 | J74: 0 | K74: 0 | L74: 0 | M74: 0 | N74: 0 | O74: =SUM(O72:O73) -> 0
A76: Opening Accumulated Amortization | F76: =+E79 -> 0 | G76: =+F79 -> 0 | H76: 0 | I76: 0 | J76: 0 | K76: 0 | L76: 0 | M76: 0 | N76: 0 | O76: 0
A77: Current Year Amortization (before additions) | E77: =IF(ISERROR(E72/$B$71), 0, E72/$B$71) -> 0 | F77: =IF(ISERROR(F72/$B$71), 0, F72/$B$71) -> 0 | G77: 0 | H77: 0 | I77: 0 | J77: 0 | K77: 0 | L77: 0 | M77: 0 | N77: 0 | O77: =IF(ISERROR(O72/$B$71), 0, O72/$B$71) -> 0
A78: Capital Additions Amortization (half year) | E78: =E73/$B$71/2 -> 0 | F78: =F73/$B$71/2 -> 0 | G78: 0 | H78: 0 | I78: 0 | J78: 0 | K78: 0 | L78: 0 | M78: 0 | N78: 0 | O78: =O73/$B$71/2 -> 0
A79: Closing Accumulated Amortization | E79: =SUM(E76+E77+E78) -> 0 | F79: 0 | G79: 0 | H79: 0 | I79: 0 | J79: 0 | K79: 0 | L79: 0 | M79: 0 | N79: 0 | O79: =SUM(O76+O77+O78) -> 0
A81: Opening Net Fixed Assets | E81: =E72-E76 -> 0 | F81: 0 | G81: 0 | H81: 0 | I81: 0 | J81: 0 | K81: 0 | L81: 0 | M81: 0 | N81: 0 | O81: =O72-O76 -> 0
A82: Closing Net Fixed Assets | E82: =E74-E79 -> 0 | F82: 0 | G82: 0 | H82: 0 | I82: 0 | J82: 0 | K82: 0 | L82: 0 | M82: 0 | N82: 0 | O82: =O74-O79 -> 0
A83: Average Net Fixed Assets | E83: =SUM(E81:E82)/2 -> 0 | F83: 0 | G83: 0 | H83: 0 | I83: 0 | J83: 0 | K83: 0 | L83: 0 | M83: 0 | N83: 0 | O83: =SUM(O81:O82)/2 -> 0
A85: UCC for PILs Calculation | J85: Test Year
E86: =E69 -> 2018 | F86: =F69 -> 2019 | G86: =G69 -> 2020 | H86: 2021 | I86: 2022 | J86: 2023 | K86: 2024 | L86: 2025 | M86: 2026 | N86: 2027 | O86: =O69 -> 2028
A88: Opening UCC | E88: =E72 -> 0 | F88: =E96 -> 0 | G88: 0 | H88: 0 | I88: 0 | J88: 0 | K88: 0 | L88: 0 | M88: 0 | N88: 0 | O88: 0
A89: Capital Additions | E89: =E73 -> 0 | F89: 0 | G89: 0 | H89: 0 | I89: 0 | J89: 0 | K89: 0 | L89: 0 | M89: 0 | N89: 0 | O89: =O73 -> 0
A90: UCC Before Half Year Rule | E90: =SUM(E88:E89) -> 0 | F90: 0 | G90: 0 | H90: 0 | I90: 0 | J90: 0 | K90: 0 | L90: 0 | M90: 0 | N90: 0 | O90: =SUM(O88:O89) -> 0
A91: Capital Additions (half year) | E91: =E89/2 -> 0 | F91: 0 | G91: 0 | H91: 0 | I91: 0 | J91: 0 | K91: 0 | L91: 0 | M91: 0 | N91: 0 | O91: =O89/2 -> 0
A92: Reduced UCC | E92: =E90-E91 -> 0 | F92: 0 | G92: 0 | H92: 0 | I92: 0 | J92: 0 | K92: 0 | L92: 0 | M92: 0 | N92: 0 | O92: =O90-O91 -> 0
A93: CCA Rate Class (to be entered)
A94: CCA Rate (to be entered)
A95: CCA | E95: =E92*$B$94 -> 0 | F95: =F92*$B$94 -> 0 | G95: 0 | H95: 0 | I95: 0 | J95: 0 | K95: 0 | L95: 0 | M95: 0 | N95: 0 | O95: =O92*$B$94 -> 0
A96: Closing UCC | E96: =E90-E95 -> 0 | F96: 0 | G96: 0 | H96: 0 | I96: 0 | J96: 0 | K96: 0 | L96: 0 | M96: 0 | N96: 0 | O96: =O90-O95 -> 0

Sheet App.2-FC Calc of REG Expansion
R1: File Number: | S1: 0
R2: Exhibit:
R3: Tab:
A4: TO BE UPDATED AT DRAFT RATE ORDER STAGE | R4: Schedule:
R5: Page:
R7: Date:
A9: Appendix 2-FC
A10: Calculation of Renewable Generation Connection Direct Benefits/Provincial Amount: Renewable Expansion Investments
A12: This table will calculate the distributor/provincial shares of the investments entered in Part B of Appendix 2-FA.
A13: Enter values in green shaded cells: WCA percentage, debt percentages, interest rates, kWh, tax rates, amortization period, CCA Class and percentage.
A14: For historical investments, enter these variables that were approved in your last cost of service test year. For test year and beyond, enter variables as in the application.
A15: Rate Riders related to the direct benefit portion of the renewable investments are not calculated for the Test Year as these assets and costs are already in the distributor's rate base/revenue requirement.
S16: Test Year
D17: =G17-1 -> 2018 | G17: =J17-1 -> 2019 | J17: =M17-1 -> 2020 | M17: =P17-1 -> 2021 | P17: =S17-1 -> 2022 | S17: ='LDC Info'!$E$24 -> 2023 | V17: =S17+1 -> 2024 | Y17: =V17+1 -> 2025 | Z17: 2016 | AB17: =Y17+1 -> 2026 | AE17: =AB17+1 -> 2027 | AH17: =AE17+1 -> 2028
E18: Direct Benefit | F18: Provincial | H18: Direct Benefit | I18: Provincial | K18: Direct Benefit | L18: Provincial | N18: Direct Benefit | O18: Provincial | Q18: Direct Benefit | R18: Provincial | T18: Direct Benefit | U18: Provincial | W18: Direct Benefit | X18: Provincial | Z18: Direct Benefit | AA18: Provincial | AC18: Direct Benefit | AD18: Provincial | AF18: Direct Benefit | AG18: Provincial | AI18: Direct Benefit | AJ18: Provincial
D19: Total | E19: 0.17 | F19: 0.83 | G19: Total | H19: 0.17 | I19: 0.83 | J19: Total | K19: 0.17 | L19: 0.83 | M19: Total | N19: 0.17 | O19: 0.83 | P19: Total | Q19: 0.17 | R19: 0.83 | S19: Total | T19: 0.17 | U19: 0.83 | V19: Total | W19: 0.17 | X19: 0.83 | Y19: Total | Z19: 0.17 | AA19: 0.83 | AB19: Total | AC19: 0.17 | AD19: 0.83 | AE19: Total | AF19: 0.17 | AG19: 0.83 | AH19: Total | AI19: 0.17 | AJ19: 0.83
A20: Net Fixed Assets (average) | D20: =E83 -> 0 | E20: =D20*E19 -> 0 | F20: =D20*F19 -> 0 | G20: =F83 -> 0 | H20: =G20*H19 -> 0 | I20: =G20*I19 -> 0 | J20: =G83 -> 0 | K20: =J20*K19 -> 0 | L20: =J20*L19 -> 0 | M20: =H83 -> 0 | N20: =M20*N19 -> 0 | O20: =M20*O19 -> 0 | P20: =I83 -> 0 | Q20: =P20*Q19 -> 0 | R20: =P20*R19 -> 0 | S20: =J83 -> 0 | T20: =S20*T19 -> 0 | U20: =S20*U19 -> 0 | V20: =K83 -> 0 | W20: =V20*W19 -> 0 | X20: =V20*X19 -> 0 | Y20: =L83 -> 0 | Z20: =Y20*Z19 -> 0 | AA20: =Y20*AA19 -> 0 | AB20: =M83 -> 0 | AC20: =AB20*AC19 -> 0 | AD20: =AB20*AD19 -> 0 | AE20: =N83 -> 0 | AF20: =AE20*AF19 -> 0 | AG20: =AE20*AG19 -> 0 | AH20: =O83 -> 0 | AI20: =AH20*AI19 -> 0 | AJ20: =AH20*AJ19 -> 0
A21: Incremental OM&A (on-going, N/A for Provincial Recovery) | D21: 0 | E21: =D21*E19 -> 0 | F21: =D21*F19 -> 0 | G21: 0 | H21: =G21*H19 -> 0 | I21: =G21*I19 -> 0 | J21: 0 | K21: =J21*K19 -> 0 | L21: =J21*L19 -> 0 | M21: 0 | N21: =M21*N19 -> 0 | O21: =M21*O19 -> 0 | P21: 0 | Q21: =P21*Q19 -> 0 | R21: =P21*R19 -> 0 | S21: 0 | T21: =S21*T19 -> 0 | U21: =S21*U19 -> 0 | V21: 0 | W21: =V21*W19 -> 0 | X21: =V21*X19 -> 0 | Y21: 0 | Z21: =Y21*Z19 -> 0 | AA21: =Y21*AA19 -> 0 | AB21: 0 | AC21: =AB21*AC19 -> 0 | AD21: =AB21*AD19 -> 0 | AE21: 0 | AF21: =AE21*AF19 -> 0 | AG21: =AE21*AG19 -> 0 | AH21: 0 | AI21: =AH21*AI19 -> 0 | AJ21: =AH21*AJ19 -> 0
A22: Incremental OM&A (start-up, applicable for Provincial Recovery) | D22: 0 | E22: =D22*E19 -> 0 | F22: =D22*F19 -> 0 | G22: 0 | H22: =G22*H19 -> 0 | I22: =G22*I19 -> 0 | J22: 0 | K22: =J22*K19 -> 0 | L22: =J22*L19 -> 0 | M22: 0 | N22: =M22*N19 -> 0 | O22: =M22*O19 -> 0 | P22: 0 | Q22: =P22*Q19 -> 0 | R22: =P22*R19 -> 0 | S22: 0 | T22: =S22*T19 -> 0 | U22: =S22*U19 -> 0 | V22: 0 | W22: =V22*W19 -> 0 | X22: =V22*X19 -> 0 | Y22: 0 | Z22: =Y22*Z19 -> 0 | AA22: =Y22*AA19 -> 0 | AB22: 0 | AC22: =AB22*AC19 -> 0 | AD22: =AB22*AD19 -> 0 | AE22: 0 | AF22: =AE22*AF19 -> 0 | AG22: =AE22*AG19 -> 0 | AH22: 0 | AI22: =AH22*AI19 -> 0 | AJ22: =AH22*AJ19 -> 0
A23: Rebasing Year vs. Test Year | B23: ='LDC Info'!E28 -> 2013 | C23: ='LDC Info'!E24 -> 2023
A24: Allowance for Working Capital (enter rate) | E24: =IF(AND(D$17>=$B$23, D$17<$C$23),(E21+E22)*$B$24,(E21+E22)*$C$24) -> 0 | F24: =IF(AND(D$17>=$B$23, D$17<$C$23),(F22)*$B$24,(F22)*$C$24) -> 0 | H24: =IF(AND(G$17>=$B$23, G$17<$C$23),(H21+H22)*$B$24,(H21+H22)*$C$24) -> 0 | I24: =IF(AND(G$17>=$B$23, G$17<$C$23),(I22)*$B$24,(I22)*$C$24) -> 0 | K24: =IF(AND(J$17>=$B$23, J$17<$C$23),(K21+K22)*$B$24,(K21+K22)*$C$24) -> 0 | L24: =IF(AND(J$17>=$B$23, J$17<$C$23),(L22)*$B$24,(L22)*$C$24) -> 0 | N24: =IF(AND(M$17>=$B$23, M$17<$C$23),(N21+N22)*$B$24,(N21+N22)*$C$24) -> 0 | O24: =IF(AND(M$17>=$B$23, M$17<$C$23),(O22)*$B$24,(O22)*$C$24) -> 0 | Q24: =IF(AND(P$17>=$B$23, P$17<$C$23),(Q21+Q22)*$B$24,(Q21+Q22)*$C$24) -> 0 | R24: =IF(AND(P$17>=$B$23, P$17<$C$23),(R22)*$B$24,(R22)*$C$24) -> 0 | T24: =IF(AND(S$17>=$B$23, S$17<$C$23),(T21+T22)*$B$24,(T21+T22)*$C$24) -> 0 | U24: =IF(AND(S$17>=$B$23, S$17<$C$23),(U22)*$B$24,(U22)*$C$24) -> 0 | W24: =IF(AND(V$17>=$B$23, V$17<$C$23),(W21+W22)*$B$24,(W21+W22)*$C$24) -> 0 | X24: =IF(AND(V$17>=$B$23, V$17<$C$23),(X22)*$B$24,(X22)*$C$24) -> 0 | Z24: =IF(AND(Y$17>=$B$23, Y$17<$C$23),(Z21+Z22)*$B$24,(Z21+Z22)*$C$24) -> 0 | AA24: =IF(AND(Y$17>=$B$23, Y$17<$C$23),(AA22)*$B$24,(AA22)*$C$24) -> 0 | AC24: =IF(AND(AB$17>=$B$23, AB$17<$C$23),(AC21+AC22)*$B$24,(AC21+AC22)*$C$24) -> 0 | AD24: =IF(AND(AB$17>=$B$23, AB$17<$C$23),(AD22)*$B$24,(AD22)*$C$24) -> 0 | AF24: =IF(AND(AE$17>=$B$23, AE$17<$C$23),(AF21+AF22)*$B$24,(AF21+AF22)*$C$24) -> 0 | AG24: =IF(AND(AE$17>=$B$23, AE$17<$C$23),(AG22)*$B$24,(AG22)*$C$24) -> 0 | AI24: =IF(AND(AH$17>=$B$23, AH$17<$C$23),(AI21+AI22)*$B$24,(AI21+AI22)*$C$24) -> 0 | AJ24: =IF(AND(AH$17>=$B$23, AH$17<$C$23),(AJ22)*$B$24,(AJ22)*$C$24) -> 0
A25: Rate Base | E25: =SUM(E20+E24) -> 0 | F25: =SUM(F20+F24) -> 0 | H25: =SUM(H20+H24) -> 0 | I25: =SUM(I20+I24) -> 0 | K25: =SUM(K20+K24) -> 0 | L25: =SUM(L20+L24) -> 0 | N25: =SUM(N20+N24) -> 0 | O25: =SUM(O20+O24) -> 0 | Q25: =SUM(Q20+Q24) -> 0 | R25: =SUM(R20+R24) -> 0 | T25: =SUM(T20+T24) -> 0 | U25: =SUM(U20+U24) -> 0 | W25: =SUM(W20+W24) -> 0 | X25: =SUM(X20+X24) -> 0 | Z25: =SUM(Z20+Z24) -> 0 | AA25: =SUM(AA20+AA24) -> 0 | AC25: =SUM(AC20+AC24) -> 0 | AD25: =SUM(AD20+AD24) -> 0 | AF25: =SUM(AF20+AF24) -> 0 | AG25: =SUM(AG20+AG24) -> 0 | AI25: =SUM(AI20+AI24) -> 0 | AJ25: =SUM(AJ20+AJ24) -> 0
B27: =B23 -> 2013 | C27: =C23 -> 2023
A28: Deemed ST Debt | B28: 0.04 | C28: 0.04 | E28: =E25*$B$28 -> 0 | F28: =F25*$B$28 -> 0 | H28: =H25*$B$28 -> 0 | I28: =I25*$B$28 -> 0 | K28: =K25*$B$28 -> 0 | L28: =L25*$B$28 -> 0 | N28: =N25*$B$28 -> 0 | O28: =O25*$B$28 -> 0 | Q28: =Q25*$B$28 -> 0 | R28: =R25*$B$28 -> 0 | T28: =T25*$C$28 -> 0 | U28: =U25*$C$28 -> 0 | W28: =W25*$C$28 -> 0 | X28: =X25*$C$28 -> 0 | Z28: =Z25*$C$28 -> 0 | AA28: =AA25*$C$28 -> 0 | AC28: =AC25*$C$28 -> 0 | AD28: =AD25*$C$28 -> 0 | AF28: =AF25*$C$28 -> 0 | AG28: =AG25*$C$28 -> 0 | AI28: =AI25*$C$28 -> 0 | AJ28: =AJ25*$C$28 -> 0
A29: Deemed LT Debt | B29: 0.56 | C29: 0.56 | E29: =E25*$B$29 -> 0 | F29: =F25*$B$29 -> 0 | H29: =H25*$B$29 -> 0 | I29: =I25*$B$29 -> 0 | K29: =K25*$B$29 -> 0 | L29: =L25*$B$29 -> 0 | N29: =N25*$B$29 -> 0 | O29: =O25*$B$29 -> 0 | Q29: =Q25*$B$29 -> 0 | R29: =R25*$B$29 -> 0 | T29: =T25*$C$29 -> 0 | U29: =U25*$C$29 -> 0 | W29: =W25*$C$29 -> 0 | X29: =X25*$C$29 -> 0 | Z29: =Z25*$C$29 -> 0 | AA29: =AA25*$C$29 -> 0 | AC29: =AC25*$C$29 -> 0 | AD29: =AD25*$C$29 -> 0 | AF29: =AF25*$C$29 -> 0 | AG29: =AG25*$C$29 -> 0 | AI29: =AI25*$C$29 -> 0 | AJ29: =AJ25*$C$29 -> 0
A30: Deemed Equity | B30: 0.4 | C30: 0.4 | E30: =E25*$B$30 -> 0 | F30: =F25*$B$30 -> 0 | H30: =H25*$B$30 -> 0 | I30: =I25*$B$30 -> 0 | K30: =K25*$B$30 -> 0 | L30: =L25*$B$30 -> 0 | N30: =N25*$B$30 -> 0 | O30: =O25*$B$30 -> 0 | Q30: =Q25*$B$30 -> 0 | R30: =R25*$B$30 -> 0 | T30: =T25*$C$30 -> 0 | U30: =U25*$C$30 -> 0 | W30: =W25*$C$30 -> 0 | X30: =X25*$C$30 -> 0 | Z30: =Z25*$C$30 -> 0 | AA30: =AA25*$C$30 -> 0 | AC30: =AC25*$C$30 -> 0 | AD30: =AD25*$C$30 -> 0 | AF30: =AF25*$C$30 -> 0 | AG30: =AG25*$C$30 -> 0 | AI30: =AI25*$C$30 -> 0 | AJ30: =AJ25*$C$30 -> 0
A32: ST Interest (enter rate) | E32: =E28*$B32 -> 0 | F32: 0 | H32: 0 | I32: 0 | K32: 0 | L32: 0 | N32: 0 | O32: 0 | Q32: 0 | R32: 0 | T32: =T28*$C32 -> 0 | U32: 0 | W32: =W28*$C32 -> 0 | X32: 0 | Z32: =Z28*$C32 -> 0 | AA32: 0 | AC32: =AC28*$C32 -> 0 | AD32: 0 | AF32: =AF28*$C32 -> 0 | AG32: 0 | AI32: =AI28*$C32 -> 0 | AJ32: 0
A33: LT Interest (enter rate) | E33: 0 | F33: 0 | H33: 0 | I33: 0 | K33: 0 | L33: 0 | N33: 0 | O33: 0 | Q33: 0 | R33: 0 | T33: 0 | U33: 0 | W33: 0 | X33: 0 | Z33: 0 | AA33: 0 | AC33: 0 | AD33: 0 | AF33: 0 | AG33: 0 | AI33: 0 | AJ33: 0
A34: Return on Equity (enter rate) | E34: 0 | F34: 0 | H34: 0 | I34: 0 | K34: 0 | L34: 0 | N34: 0 | O34: 0 | Q34: 0 | R34: 0 | T34: 0 | U34: 0 | W34: 0 | X34: 0 | Z34: 0 | AA34: 0 | AC34: 0 | AD34: 0 | AF34: 0 | AG34: 0 | AI34: 0 | AJ34: 0
A35: Cost of Capital Total | E35: =SUM(E32:E34) -> 0 | F35: =SUM(F32:F34) -> 0 | H35: =SUM(H32:H34) -> 0 | I35: =SUM(I32:I34) -> 0 | K35: =SUM(K32:K34) -> 0 | L35: =SUM(L32:L34) -> 0 | N35: =SUM(N32:N34) -> 0 | O35: =SUM(O32:O34) -> 0 | Q35: =SUM(Q32:Q34) -> 0 | R35: =SUM(R32:R34) -> 0 | T35: =SUM(T32:T34) -> 0 | U35: =SUM(U32:U34) -> 0 | W35: =SUM(W32:W34) -> 0 | X35: =SUM(X32:X34) -> 0 | Z35: =SUM(Z32:Z34) -> 0 | AA35: =SUM(AA32:AA34) -> 0 | AC35: =SUM(AC32:AC34) -> 0 | AD35: =SUM(AD32:AD34) -> 0 | AF35: =SUM(AF32:AF34) -> 0 | AG35: =SUM(AG32:AG34) -> 0 | AI35: =SUM(AI32:AI34) -> 0 | AJ35: =SUM(AJ32:AJ34) -> 0
A37: OM&A | E37: =E21+E22 -> 0 | F37: =F22 -> 0 | H37: =H21+H22 -> 0 | I37: =I22 -> 0 | K37: =K21+K22 -> 0 | L37: =L22 -> 0 | N37: =N21+N22 -> 0 | O37: =O22 -> 0 | Q37: =Q21+Q22 -> 0 | R37: =R22 -> 0 | T37: =T21+T22 -> 0 | U37: =U22 -> 0 | W37: =W21+W22 -> 0 | X37: =X22 -> 0 | Z37: =Z21+Z22 -> 0 | AA37: =AA22 -> 0 | AC37: =AC21+AC22 -> 0 | AD37: =AD22 -> 0 | AF37: =AF21+AF22 -> 0 | AG37: =AG22 -> 0 | AI37: =AI21+AI22 -> 0 | AJ37: =AJ22 -> 0
A38: Amortization | D38: =+E77+E78 -> 0 | E38: =D38*E$19 -> 0 | F38: =D38*F$19 -> 0 | G38: =+F77+F78 -> 0 | H38: =G38*H$19 -> 0 | I38: =G38*I$19 -> 0 | J38: =+G77+G78 -> 0 | K38: =J38*K$19 -> 0 | L38: =J38*L$19 -> 0 | M38: =+H77+H78 -> 0 | N38: =M38*N$19 -> 0 | O38: =M38*O$19 -> 0 | P38: =+I77+I78 -> 0 | Q38: =P38*Q$19 -> 0 | R38: =P38*R$19 -> 0 | S38: =+J77+J78 -> 0 | T38: =S38*T$19 -> 0 | U38: =S38*U$19 -> 0 | V38: =+K77+K78 -> 0 | W38: =V38*W$19 -> 0 | X38: =V38*X$19 -> 0 | Y38: =+L77+L78 -> 0 | Z38: =Y38*Z$19 -> 0 | AA38: =Y38*AA$19 -> 0 | AB38: =+M77+M78 -> 0 | AC38: =AB38*AC$19 -> 0 | AD38: =AB38*AD$19 -> 0 | AE38: =+N77+N78 -> 0 | AF38: =AE38*AF$19 -> 0 | AG38: =AE38*AG$19 -> 0 | AH38: =+O77+O78 -> 0 | AI38: =AH38*AI$19 -> 0 | AJ38: =AH38*AJ$19 -> 0
A39: Grossed-up PILs | E39: =+E66 -> 0 | F39: =+F66 -> 0 | H39: =+H66 -> 0 | I39: =+I66 -> 0 | K39: =+K66 -> 0 | L39: =+L66 -> 0 | N39: =+N66 -> 0 | O39: =+O66 -> 0 | Q39: =+Q66 -> 0 | R39: =+R66 -> 0 | T39: =+T66 -> 0 | U39: =+U66 -> 0 | W39: =+W66 -> 0 | X39: =+X66 -> 0 | Z39: =+Z66 -> 0 | AA39: =+AA66 -> 0 | AC39: =+AC66 -> 0 | AD39: =+AD66 -> 0 | AF39: =+AF66 -> 0 | AG39: =+AG66 -> 0 | AI39: =+AI66 -> 0 | AJ39: =+AJ66 -> 0
A41: Revenue Requirement | E41: =SUM(E35:E39) -> 0 | F41: =SUM(F35:F39) -> 0 | H41: =SUM(H35:H39) -> 0 | I41: =SUM(I35:I39) -> 0 | K41: =SUM(K35:K39) -> 0 | L41: =SUM(L35:L39) -> 0 | N41: =SUM(N35:N39) -> 0 | O41: =SUM(O35:O39) -> 0 | Q41: =SUM(Q35:Q39) -> 0 | R41: =SUM(R35:R39) -> 0 | T41: =SUM(T35:T39) -> 0 | U41: =SUM(U35:U39) -> 0 | W41: =SUM(W35:W39) -> 0 | X41: =SUM(X35:X39) -> 0 | Z41: =SUM(Z35:Z39) -> 0 | AA41: =SUM(AA35:AA39) -> 0 | AC41: =SUM(AC35:AC39) -> 0 | AD41: =SUM(AD35:AD39) -> 0 | AF41: =SUM(AF35:AF39) -> 0 | AG41: =SUM(AG35:AG39) -> 0 | AI41: =SUM(AI35:AI39) -> 0 | AJ41: =SUM(AJ35:AJ39) -> 0
A44: Provincial Rate Protection | F44: =F41 -> 0 | I44: =I41 -> 0 | L44: =L41 -> 0 | O44: =O41 -> 0 | R44: =R41 -> 0 | U44: =U41 -> 0 | X44: =X41 -> 0 | AA44: =AA41 -> 0 | AD44: =AD41 -> 0 | AG44: =AG41 -> 0 | AJ44: =AJ41 -> 0
A46: Monthly Amount Paid by IESO | F46: =F44/12 -> 0 | I46: =I44/12 -> 0 | L46: =L44/12 -> 0 | O46: =O44/12 -> 0 | R46: =R44/12 -> 0 | U46: =U44/12 -> 0 | X46: =X44/12 -> 0 | AA46: =AA44/12 -> 0 | AD46: =AD44/12 -> 0 | AG46: =AG44/12 -> 0 | AJ46: =AJ44/12 -> 0
A48: Note 1: The distributor should follow the regulatory accounting set out in the Accounting Procedure Handbook Guidance FAQs issued in March 2015. Q10 of the APH FAQs states that: “For approved eligible investments as defined under O.Reg. 330/09 under the OEB Act, a variance account will continue to be used for the purpose of recording variances between the revenue requirement based on actual costs of approved eligible investments and the revenue received from the IESO.” The answer for Q10 provides the accounting guidance for this variance account: “Distributors that have included eligible investments to connect qualifying facilities in their DS plans are to establish the variance Account 1533 Renewable Generation Connection Funding Adder Deferral Account, Sub-account Provincial Rate Protection Payment Variances following OEB approval for investments forecast to enter service beyond the test year for purposes of implementing rate protection pursuant to O.Reg. 330/09. The purpose of this variance account is to track the variance between the distributor’s revenue requirement associated with the portion of the actual capital and/or operating costs that are eligible for rate protection, as incurred by the distributor for eligible renewable enabling and expansion investments, and the rate protection payments collected from the IESO.” The answer further provides the journal entries to record the variances. Distributors should follow the instructions in the answer for recording the journal entries in the variance account 1533.
A50: Note 2: For the Test Year, Costs and Revenues of the Direct Benefit are to be included in the test year applicant Rate Base and Revenues.
A52: PILs Calculation | T52: Test Year
E53: =G17-1 -> 2018 | H53: =G17 -> 2019 | K53: =J17 -> 2020 | N53: =M17 -> 2021 | Q53: =P17 -> 2022 | T53: =S17 -> 2023 | W53: =V17 -> 2024 | Z53: =Y17 -> 2025 | AC53: =AB17 -> 2026 | AF53: =AE17 -> 2027 | AI53: =AH17 -> 2028
A54: Income Tax | E54: Direct Benefit | F54: Provincial | H54: Direct Benefit | I54: Provincial | K54: Direct Benefit | L54: Provincial | N54: Direct Benefit | O54: Provincial | Q54: Direct Benefit | R54: Provincial | T54: Direct Benefit | U54: Provincial | W54: Direct Benefit | X54: Provincial | Z54: Direct Benefit | AA54: Provincial | AC54: Direct Benefit | AD54: Provincial | AF54: Direct Benefit | AG54: Provincial | AI54: Direct Benefit | AJ54: Provincial
AB55: Total | AE55: Total | AH55: Total
A56: Net Income - ROE on Rate Base | E56: =E34 -> 0 | F56: =F34 -> 0 | H56: =H34 -> 0 | I56: =I34 -> 0 | K56: =K34 -> 0 | L56: =L34 -> 0 | N56: =N34 -> 0 | O56: =O34 -> 0 | Q56: =Q34 -> 0 | R56: =R34 -> 0 | T56: =T34 -> 0 | U56: =U34 -> 0 | W56: =W34 -> 0 | X56: =X34 -> 0 | Z56: =Z34 -> 0 | AA56: =AA34 -> 0 | AC56: =AC34 -> 0 | AD56: =AD34 -> 0 | AF56: =AF34 -> 0 | AG56: =AG34 -> 0 | AI56: =AI34 -> 0 | AJ56: =AJ34 -> 0
A57: Amortization (6% DB and 94% P) | E57: =E38 -> 0 | F57: =F38 -> 0 | H57: =H38 -> 0 | I57: =I38 -> 0 | K57: =K38 -> 0 | L57: =L38 -> 0 | N57: =N38 -> 0 | O57: =O38 -> 0 | Q57: =Q38 -> 0 | R57: =R38 -> 0 | T57: =T38 -> 0 | U57: =U38 -> 0 | W57: =W38 -> 0 | X57: =X38 -> 0 | Z57: =Z38 -> 0 | AA57: =AA38 -> 0 | AC57: =AC38 -> 0 | AD57: =AD38 -> 0 | AF57: =AF38 -> 0 | AG57: =AG38 -> 0 | AI57: =AI38 -> 0 | AJ57: =AJ38 -> 0
A58: CCA (6% DB and 94% P) | E58: =-E95*$E$19 -> 0 | F58: =-E95*$F$19 -> 0 | H58: =-F95*$E$19 -> 0 | I58: =-F95*$F$19 -> 0 | K58: =-G95*$E$19 -> 0 | L58: =-G95*$F$19 -> 0 | N58: =-H95*$E$19 -> 0 | O58: =-H95*$F$19 -> 0 | Q58: =-I95*$E$19 -> 0 | R58: =-I95*$F$19 -> 0 | T58: =-J95*$E$19 -> 0 | U58: =-J95*$F$19 -> 0 | W58: =-K95*$E$19 -> 0 | X58: =-K95*$F$19 -> 0 | Z58: =-L95*$E$19 -> 0 | AA58: =-L95*$F$19 -> 0 | AC58: =-M95*$E$19 -> 0 | AD58: =-M95*$F$19 -> 0 | AF58: =-N95*$E$19 -> 0 | AG58: =-N95*$F$19 -> 0 | AI58: =-Q95*$E$19 -> 0 | AJ58: =-Q95*$F$19 -> 0
A59: Taxable income | E59: =SUM(E56:E58) -> 0 | F59: =SUM(F56:F58) -> 0 | H59: =SUM(H56:H58) -> 0 | I59: =SUM(I56:I58) -> 0 | K59: =SUM(K56:K58) -> 0 | L59: =SUM(L56:L58) -> 0 | N59: =SUM(N56:N58) -> 0 | O59: =SUM(O56:O58) -> 0 | Q59: =SUM(Q56:Q58) -> 0 | R59: =SUM(R56:R58) -> 0 | T59: =SUM(T56:T58) -> 0 | U59: =SUM(U56:U58) -> 0 | W59: =SUM(W56:W58) -> 0 | X59: =SUM(X56:X58) -> 0 | Z59: =SUM(Z56:Z58) -> 0 | AA59: =SUM(AA56:AA58) -> 0 | AC59: =SUM(AC56:AC58) -> 0 | AD59: =SUM(AD56:AD58) -> 0 | AF59: =SUM(AF56:AF58) -> 0 | AG59: =SUM(AG56:AG58) -> 0 | AI59: =SUM(AI56:AI58) -> 0 | AJ59: =SUM(AJ56:AJ58) -> 0
B60: =B27 -> 2013 | C60: =C27 -> 2023
A61: Tax Rate (to be entered) | E61: =IF(AND(E$53>=$B$60, E$53<$C$60),$B$61,$C$61) -> 0 | F61: =IF(AND(E$53>=$B$60, E$53<$C$60),$B$61,$C$61) -> 0 | H61: =IF(AND(H$53>=$B$60, H$53<$C$60),$B$61,$C$61) -> 0 | I61: =IF(AND(H$53>=$B$60, H$53<$C$60),$B$61,$C$61) -> 0 | K61: =IF(AND(K$53>=$B$60, K$53<$C$60),$B$61,$C$61) -> 0 | L61: =IF(AND(K$53>=$B$60, K$53<$C$60),$B$61,$C$61) -> 0 | N61: =IF(AND(N$53>=$B$60, N$53<$C$60),$B$61,$C$61) -> 0 | O61: =IF(AND(N$53>=$B$60, N$53<$C$60),$B$61,$C$61) -> 0 | Q61: =IF(AND(Q$53>=$B$60, Q$53<$C$60),$B$61,$C$61) -> 0 | R61: =IF(AND(Q$53>=$B$60, Q$53<$C$60),$B$61,$C$61) -> 0 | T61: =IF(AND(T$53>=$B$60, T$53<$C$60),$B$61,$C$61) -> 0 | U61: =IF(AND(T$53>=$B$60, T$53<$C$60),$B$61,$C$61) -> 0 | W61: =IF(AND(W$53>=$B$60, W$53<$C$60),$B$61,$C$61) -> 0 | X61: =IF(AND(W$53>=$B$60, W$53<$C$60),$B$61,$C$61) -> 0 | Z61: =IF(AND(Z$53>=$B$60, Z$53<$C$60),$B$61,$C$61) -> 0 | AA61: =IF(AND(Z$53>=$B$60, Z$53<$C$60),$B$61,$C$61) -> 0 | AC61: =IF(AND(AC$53>=$B$60, AC$53<$C$60),$B$61,$C$61) -> 0 | AD61: =IF(AND(AC$53>=$B$60, AC$53<$C$60),$B$61,$C$61) -> 0 | AF61: =IF(AND(AF$53>=$B$60, AF$53<$C$60),$B$61,$C$61) -> 0 | AG61: =IF(AND(AF$53>=$B$60, AF$53<$C$60),$B$61,$C$61) -> 0 | AI61: =IF(AND(AI$53>=$B$60, AI$53<$C$60),$B$61,$C$61) -> 0 | AJ61: =IF(AND(AI$53>=$B$60, AI$53<$C$60),$B$61,$C$61) -> 0
A63: Income Taxes Payable | E63: =E59*E61 -> 0 | F63: =F59*F61 -> 0 | H63: =H59*H61 -> 0 | I63: =I59*I61 -> 0 | K63: =K59*K61 -> 0 | L63: =L59*L61 -> 0 | N63: =N59*N61 -> 0 | O63: =O59*O61 -> 0 | Q63: =Q59*Q61 -> 0 | R63: =R59*R61 -> 0 | T63: =T59*T61 -> 0 | U63: =U59*U61 -> 0 | W63: =W59*W61 -> 0 | X63: =X59*X61 -> 0 | Z63: =Z59*Z61 -> 0 | AA63: =AA59*AA61 -> 0 | AC63: =AC59*AC61 -> 0 | AD63: =AD59*AD61 -> 0 | AF63: =AF59*AF61 -> 0 | AG63: =AG59*AG61 -> 0 | AI63: =AI59*AI61 -> 0 | AJ63: =AJ59*AJ61 -> 0
A64: Gross Up
A65: Income Taxes Payable | E65: =E63/(1-E61) -> 0 | F65: =F63/(1-F61) -> 0 | H65: =H63/(1-H61) -> 0 | I65: =I63/(1-I61) -> 0 | K65: =K63/(1-K61) -> 0 | L65: =L63/(1-L61) -> 0 | N65: =N63/(1-N61) -> 0 | O65: =O63/(1-O61) -> 0 | Q65: =Q63/(1-Q61) -> 0 | R65: =R63/(1-R61) -> 0 | T65: =T63/(1-T61) -> 0 | U65: =U63/(1-U61) -> 0 | W65: =W63/(1-W61) -> 0 | X65: =X63/(1-X61) -> 0 | Z65: =Z63/(1-Z61) -> 0 | AA65: =AA63/(1-AA61) -> 0 | AC65: =AC63/(1-AC61) -> 0 | AD65: =AD63/(1-AD61) -> 0 | AF65: =AF63/(1-AF61) -> 0 | AG65: =AG63/(1-AG61) -> 0 | AI65: =AI63/(1-AI61) -> 0 | AJ65: =AJ63/(1-AJ61) -> 0
A66: Grossed Up PILs | E66: =+E65 -> 0 | F66: =+F65 -> 0 | H66: =+H65 -> 0 | I66: =+I65 -> 0 | K66: =+K65 -> 0 | L66: =+L65 -> 0 | N66: =+N65 -> 0 | O66: =+O65 -> 0 | Q66: =+Q65 -> 0 | R66: =+R65 -> 0 | T66: =+T65 -> 0 | U66: =+U65 -> 0 | W66: =+W65 -> 0 | X66: =+X65 -> 0 | Z66: =+Z65 -> 0 | AA66: =+AA65 -> 0 | AC66: =+AC65 -> 0 | AD66: =+AD65 -> 0 | AF66: =+AF65 -> 0 | AG66: =+AG65 -> 0 | AI66: =+AI65 -> 0 | AJ66: =+AJ65 -> 0
J68: Test Year
E69: =F69-1 -> 2018 | F69: =G69-1 -> 2019 | G69: =H69-1 -> 2020 | H69: =I69-1 -> 2021 | I69: =J69-1 -> 2022 | J69: ='LDC Info'!E24 -> 2023 | K69: =J69+1 -> 2024 | L69: =K69+1 -> 2025 | M69: =L69+1 -> 2026 | N69: =M69+1 -> 2027 | O69: =N69+1 -> 2028
A70: Net Fixed Assets
A71: Enter applicable amortization in years: | B71: 40
A72: Opening Gross Fixed Assets | F72: =E74 -> 0 | G72: 0 | H72: 0 | I72: 0 | J72: 0 | K72: 0 | L72: 0 | M72: 0 | N72: 0 | O72: 0
A73: Capital Additions | E73: ='App.2-FA Proposed REG Invest.'!C99 -> 0 | F73: ='App.2-FA Proposed REG Invest.'!D99 -> 0 | G73: ='App.2-FA Proposed REG Invest.'!E99 -> 0 | H73: ='App.2-FA Proposed REG Invest.'!F99 -> 0 | I73: ='App.2-FA Proposed REG Invest.'!G99 -> 0 | J73: ='App.2-FA Proposed REG Invest.'!H99 -> 0 | K73: ='App.2-FA Proposed REG Invest.'!I99 -> 0 | L73: ='App.2-FA Proposed REG Invest.'!J99 -> 0 | M73: ='App.2-FA Proposed REG Invest.'!K99 -> 0 | N73: ='App.2-FA Proposed REG Invest.'!L99 -> 0 | O73: ='App.2-FA Proposed REG Invest.'!M99 -> 0
A74: Closing Gross Fixed Assets | E74: =SUM(E72:E73) -> 0 | F74: 0 | G74: 0 | H74: 0 | I74: 0 | J74: 0 | K74: 0 | L74: 0 | M74: 0 | N74: 0 | O74: =SUM(O72:O73) -> 0
A76: Opening Accumulated Amortization | E76: 0 | F76: =+E79 -> 0 | G76: =+F79 -> 0 | H76: 0 | I76: 0 | J76: 0 | K76: 0 | L76: 0 | M76: 0 | N76: 0 | O76: 0
A77: Current Year Amortization (before additions) | E77: =IF(ISERROR(E72/$B$71), 0, E72/$B$71) -> 0 | F77: =IF(ISERROR(F72/$B$71), 0, F72/$B$71) -> 0 | G77: 0 | H77: 0 | I77: 0 | J77: 0 | K77: 0 | L77: 0 | M77: 0 | N77: 0 | O77: =IF(ISERROR(O72/$B$71), 0, O72/$B$71) -> 0
A78: Capital Additions Amortization (half year) | E78: =E73/$B$71/2 -> 0 | F78: =F73/$B$71/2 -> 0 | G78: 0 | H78: 0 | I78: 0 | J78: 0 | K78: 0 | L78: 0 | M78: 0 | N78: 0 | O78: =O73/$B$71/2 -> 0
A79: Closing Accumulated Amortization | E79: =SUM(E76+E77+E78) -> 0 | F79: 0 | G79: 0 | H79: 0 | I79: 0 | J79: 0 | K79: 0 | L79: 0 | M79: 0 | N79: 0 | O79: =SUM(O76+O77+O78) -> 0
A81: Opening Net Fixed Assets | E81: =E72-E76 -> 0 | F81: 0 | G81: 0 | H81: 0 | I81: 0 | J81: 0 | K81: 0 | L81: 0 | M81: 0 | N81: 0 | O81: =O72-O76 -> 0
A82: Closing Net Fixed Assets | E82: =E74-E79 -> 0 | F82: 0 | G82: 0 | H82: 0 | I82: 0 | J82: 0 | K82: 0 | L82: 0 | M82: 0 | N82: 0 | O82: =O74-O79 -> 0
A83: Average Net Fixed Assets | E83: =SUM(E81:E82)/2 -> 0 | F83: 0 | G83: 0 | H83: 0 | I83: 0 | J83: 0 | K83: 0 | L83: 0 | M83: 0 | N83: 0 | O83: =SUM(O81:O82)/2 -> 0
A85: UCC for PILs Calculation | J85: =J68 -> Test Year
E86: =E69 -> 2018 | F86: =F69 -> 2019 | G86: =G69 -> 2020 | H86: 2021 | I86: 2022 | J86: 2023 | K86: 2024 | L86: 2025 | M86: 2026 | N86: 2027 | O86: =O69 -> 2028
A88: Opening UCC | E88: =E72 -> 0 | F88: =E96 -> 0 | G88: 0 | H88: 0 | I88: 0 | J88: 0 | K88: 0 | L88: 0 | M88: 0 | N88: 0 | O88: 0
A89: Capital Additions | E89: =E73 -> 0 | F89: 0 | G89: 0 | H89: 0 | I89: 0 | J89: 0 | K89: 0 | L89: 0 | M89: 0 | N89: 0 | O89: =O73 -> 0
A90: UCC Before Half Year Rule | E90: =SUM(E88:E89) -> 0 | F90: 0 | G90: 0 | H90: 0 | I90: 0 | J90: 0 | K90: 0 | L90: 0 | M90: 0 | N90: 0 | O90: =SUM(O88:O89) -> 0
A91: Capital Additions (half year) | E91: =E89/2 -> 0 | F91: 0 | G91: 0 | H91: 0 | I91: 0 | J91: 0 | K91: 0 | L91: 0 | M91: 0 | N91: 0 | O91: =O89/2 -> 0
A92: Reduced UCC | E92: =E90-E91 -> 0 | F92: 0 | G92: 0 | H92: 0 | I92: 0 | J92: 0 | K92: 0 | L92: 0 | M92: 0 | N92: 0 | O92: =O90-O91 -> 0
A93: CCA Rate Class (to be entered)
A94: CCA Rate (to be entered)
A95: CCA | E95: =E92*$B$94 -> 0 | F95: =F92*$B$94 -> 0 | G95: 0 | H95: 0 | I95: 0 | J95: 0 | K95: 0 | L95: 0 | M95: 0 | N95: 0 | O95: =O92*$B$94 -> 0
A96: Closing UCC | E96: =E90-E95 -> 0 | F96: 0 | G96: 0 | H96: 0 | I96: 0 | J96: 0 | K96: 0 | L96: 0 | M96: 0 | N96: 0 | O96: =O90-O95 -> 0

Sheet App.2-G SQI
M1: File Number: | O1: =EBNUMBER -> EB-2022-0028
M2: Exhibit: | O2: 1
M3: Tab: | O3: 1
M4: Schedule: | O4: 1
M5: Page: | O5: 51
M7: Date: | O7: 2022-05-27
A9: Appendix 2-G
A10: Service Reliability and Quality Indicators
A12: Service Reliability
A14: Index | B14: Excluding Loss of Supply and Major Event Days | G14: Including Major Event Days, Excluding Loss of Supply | L14: Including Los of Supply, Excluding Major Event Days | Q14: Including Loss of Supply and Major Event Days
B16: =TestYear-6 -> 2017 | C16: =TestYear-5 -> 2018 | D16: =TestYear-4 -> 2019 | E16: =TestYear-3 -> 2020 | F16: =TestYear-2 -> 2021 | G16: =B16 -> 2017 | H16: 2018 | I16: 2019 | J16: 2020 | K16: 2021 | L16: 2017 | M16: 2018 | N16: 2019 | O16: 2020 | P16: 2021 | Q16: =L16 -> 2017 | R16: =M16 -> 2018 | S16: =N16 -> 2019 | T16: =O16 -> 2020 | U16: =P16 -> 2021
A17: SAIDI | B17: 1.51 | C17: 0.5 | D17: 1.65 | E17: 1.457850594 | F17: 2.648216634 | G17: 1.51 | H17: 0.5 | I17: 1.65 | J17: 1.457850594 | K17: 2.648216634 | L17: 4.52 | M17: 1.93 | N17: 3.56 | O17: 3.748631283 | P17: 4.469054025 | Q17: 4.52 | R17: 1.93 | S17: 3.56 | T17: 3.748631283 | U17: 4.469054025
A18: SAIFI | B18: 0.84 | C18: 0.2 | D18: 0.82 | E18: 0.9063656482 | F18: 1.384089304 | G18: 0.84 | H18: 0.2 | I18: 0.82 | J18: 0.9063656482 | K18: 1.384089304 | L18: 2.14 | M18: 1.08 | N18: 1.69 | O18: 1.935190523 | P18: 3.240654001 | Q18: 2.14 | R18: 1.08 | S18: 1.69 | T18: 1.935190523 | U18: 3.240654001
A20: 5 Year Historical Average
A21: SAIDI | F21: =IF(ISERROR(AVERAGE(B17:F17)), "", AVERAGE(B17:F17)) -> 1.553213446 | K21: =IF(ISERROR(AVERAGE(G17:K17)), "", AVERAGE(G17:K17)) -> 1.553213446 | P21: =IF(ISERROR(AVERAGE(L17:P17)), "", AVERAGE(L17:P17)) -> 3.645537062 | U21: =IF(ISERROR(AVERAGE(Q17:U17)), "", AVERAGE(Q17:U17)) -> 3.645537062
A22: SAIFI | F22: =IF(ISERROR(AVERAGE(B18:F18)), "", AVERAGE(B18:F18)) -> 0.8300909905 | K22: =IF(ISERROR(AVERAGE(G18:K18)), "", AVERAGE(G18:K18)) -> 0.8300909905 | P22: =IF(ISERROR(AVERAGE(L18:P18)), "", AVERAGE(L18:P18)) -> 2.017168905 | U22: =IF(ISERROR(AVERAGE(Q18:U18)), "", AVERAGE(Q18:U18)) -> 2.017168905
A24: SAIDI = System Average Interruption Duration Index
A25: SAIFI = System Average Interruption Frequency Index
A27: Service Quality
A29: Indicator | E29: OEB Minimum Standard | G29: =B16 -> 2017 | H29: =C16 -> 2018 | I29: =D16 -> 2019 | J29: =E16 -> 2020 | K29: =F16 -> 2021
A30: Low Voltage Connections | E30: 0.9 | G30: =IFERROR(VLOOKUP('LDC Info'!$E$14,'2.1.4_ServiceQuality'!$A:$FY,40,FALSE),"") -> 1 | H30: =IFERROR(VLOOKUP('LDC Info'!$E$14,'2.1.4_ServiceQuality'!$A:$FY,76,FALSE),"") -> 0.9592 | I30: =IFERROR(VLOOKUP('LDC Info'!$E$14,'2.1.4_ServiceQuality'!$A:$FY,112,FALSE),"") -> 0.9339 | J30: =IFERROR(VLOOKUP('LDC Info'!$E$14,'2.1.4_ServiceQuality'!$A:$FY,148,FALSE),"") -> 0.9171 | K30: 0.945
A31: High Voltage Connections | E31: 0.9 | G31: =IFERROR(VLOOKUP('LDC Info'!$E$14,'2.1.4_ServiceQuality'!$A:$FY,43,FALSE),"") -> N/A | H31: =IFERROR(VLOOKUP('LDC Info'!$E$14,'2.1.4_ServiceQuality'!$A:$FY,79,FALSE),"") -> N/A | I31: =IFERROR(VLOOKUP('LDC Info'!$E$14,'2.1.4_ServiceQuality'!$A:$FY,115,FALSE),"") -> N/A | J31: =IFERROR(VLOOKUP('LDC Info'!$E$14,'2.1.4_ServiceQuality'!$A:$FY,151,FALSE),"") -> 1 | K31: =IFERROR(VLOOKUP('LDC Info'!$E$14,'2.1.4_ServiceQuality'!$A:$FY,115,FALSE),"") -> N/A
A32: Telephone Accessibility | E32: 0.65 | G32: =IFERROR(VLOOKUP('LDC Info'!$E$14,'2.1.4_ServiceQuality'!$A:$FY,55,FALSE),"") -> 0.8192 | H32: =IFERROR(VLOOKUP('LDC Info'!$E$14,'2.1.4_ServiceQuality'!$A:$FY,91,FALSE),"") -> 0.8094 | I32: =IFERROR(VLOOKUP('LDC Info'!$E$14,'2.1.4_ServiceQuality'!$A:$FY,127,FALSE),"") -> 0.7649 | J32: =IFERROR(VLOOKUP('LDC Info'!$E$14,'2.1.4_ServiceQuality'!$A:$FY,163,FALSE),"") -> 0.7568 | K32: 0.7845
A33: Appointments Met | E33: 0.9 | G33: =IFERROR(VLOOKUP('LDC Info'!$E$14,'2.1.4_ServiceQuality'!$A:$FY,49,FALSE),"") -> 1 | H33: =IFERROR(VLOOKUP('LDC Info'!$E$14,'2.1.4_ServiceQuality'!$A:$FY,85,FALSE),"") -> 1 | I33: =IFERROR(VLOOKUP('LDC Info'!$E$14,'2.1.4_ServiceQuality'!$A:$FY,121,FALSE),"") -> 0.994 | J33: =IFERROR(VLOOKUP('LDC Info'!$E$14,'2.1.4_ServiceQuality'!$A:$FY,157,FALSE),"") -> 0.9951 | K33: 1
A34: Written Response to Enquires | E34: 0.8 | G34: =IFERROR(VLOOKUP('LDC Info'!$E$14,'2.1.4_ServiceQuality'!$A:$FY,61,FALSE),"") -> 0.9519 | H34: =IFERROR(VLOOKUP('LDC Info'!$E$14,'2.1.4_ServiceQuality'!$A:$FY,97,FALSE),"") -> 0.9494 | I34: =IFERROR(VLOOKUP('LDC Info'!$E$14,'2.1.4_ServiceQuality'!$A:$FY,133,FALSE),"") -> 0.9555 | J34: =IFERROR(VLOOKUP('LDC Info'!$E$14,'2.1.4_ServiceQuality'!$A:$FY,169,FALSE),"") -> 0.958 | K34: 0.979
A35: Emergency Urban Response | E35: 0.8 | G35: =IFERROR(VLOOKUP('LDC Info'!$E$14,'2.1.4_ServiceQuality'!$A:$FY,64,FALSE),"") -> N/A | H35: =IFERROR(VLOOKUP('LDC Info'!$E$14,'2.1.4_ServiceQuality'!$A:$FY,100,FALSE),"") -> N/A | I35: =IFERROR(VLOOKUP('LDC Info'!$E$14,'2.1.4_ServiceQuality'!$A:$FY,136,FALSE),"") -> N/A | J35: =IFERROR(VLOOKUP('LDC Info'!$E$14,'2.1.4_ServiceQuality'!$A:$FY,172,FALSE),"") -> N/A | K35: =IFERROR(VLOOKUP('LDC Info'!$E$14,'2.1.4_ServiceQuality'!$A:$FY,172,FALSE),"") -> N/A
A36: Emergency Rural Response | E36: 0.8 | G36: =IFERROR(VLOOKUP('LDC Info'!$E$14,'2.1.4_ServiceQuality'!$A:$FY,67,FALSE),"") -> N/A | H36: =IFERROR(VLOOKUP('LDC Info'!$E$14,'2.1.4_ServiceQuality'!$A:$FY,103,FALSE),"") -> N/A | I36: =IFERROR(VLOOKUP('LDC Info'!$E$14,'2.1.4_ServiceQuality'!$A:$FY,139,FALSE),"") -> N/A | J36: =IFERROR(VLOOKUP('LDC Info'!$E$14,'2.1.4_ServiceQuality'!$A:$FY,175,FALSE),"") -> N/A | K36: =IFERROR(VLOOKUP('LDC Info'!$E$14,'2.1.4_ServiceQuality'!$A:$FY,175,FALSE),"") -> N/A
A37: Telephone Call Abandon Rate | E37: 0.1 | G37: =IFERROR(VLOOKUP('LDC Info'!$E$14,'2.1.4_ServiceQuality'!$A:$FY,58,FALSE),"") -> 0.0136 | H37: =IFERROR(VLOOKUP('LDC Info'!$E$14,'2.1.4_ServiceQuality'!$A:$FY,94,FALSE),"") -> 0.0188 | I37: =IFERROR(VLOOKUP('LDC Info'!$E$14,'2.1.4_ServiceQuality'!$A:$FY,130,FALSE),"") -> 0.0165 | J37: =IFERROR(VLOOKUP('LDC Info'!$E$14,'2.1.4_ServiceQuality'!$A:$FY,166,FALSE),"") -> 0.0182 | K37: 0.0158
A38: Appointment Scheduling | E38: 0.9 | G38: =IFERROR(VLOOKUP('LDC Info'!$E$14,'2.1.4_ServiceQuality'!$A:$FY,46,FALSE),"") -> 1 | H38: =IFERROR(VLOOKUP('LDC Info'!$E$14,'2.1.4_ServiceQuality'!$A:$FY,82,FALSE),"") -> 0.9830840826 | I38: =IFERROR(VLOOKUP('LDC Info'!$E$14,'2.1.4_ServiceQuality'!$A:$FY,118,FALSE),"") -> 0.9610360265 | J38: =IFERROR(VLOOKUP('LDC Info'!$E$14,'2.1.4_ServiceQuality'!$A:$FY,154,FALSE),"") -> 0.9880478382 | K38: 0.999
A39: Rescheduling a Missed Appointment | E39: 1 | G39: =IFERROR(VLOOKUP('LDC Info'!$E$14,'2.1.4_ServiceQuality'!$A:$FY,52,FALSE),"") -> N/A | H39: =IFERROR(VLOOKUP('LDC Info'!$E$14,'2.1.4_ServiceQuality'!$A:$FY,88,FALSE),"") -> N/A | I39: =IFERROR(VLOOKUP('LDC Info'!$E$14,'2.1.4_ServiceQuality'!$A:$FY,124,FALSE),"") -> 1 | J39: =IFERROR(VLOOKUP('LDC Info'!$E$14,'2.1.4_ServiceQuality'!$A:$FY,160,FALSE),"") -> 1 | K39: 1
A40: Reconnection Performance Standard | E40: 0.85 | G40: =IFERROR(VLOOKUP('LDC Info'!$E$14,'2.1.4_ServiceQuality'!$A:$FY,70,FALSE),"") -> 0.9734 | H40: =IFERROR(VLOOKUP('LDC Info'!$E$14,'2.1.4_ServiceQuality'!$A:$FY,106,FALSE),"") -> 0.9956 | I40: =IFERROR(VLOOKUP('LDC Info'!$E$14,'2.1.4_ServiceQuality'!$A:$FY,142,FALSE),"") -> 0.9795 | J40: =IFERROR(VLOOKUP('LDC Info'!$E$14,'2.1.4_ServiceQuality'!$A:$FY,178,FALSE),"") -> 0.9792 | K40: 0.988

Sheet 2.1.4_ServiceQuality (hidden)
A1: Low Voltage Services
A2: Time run: 5/31/2021 2:22:17 PM
B4: 2017 | AL4: 2018 | BV4: 2019 | DF4: 2020 | EP4: 2021
B5: January 1, 2016 - December 31, 2016 | AL5: January 1, 2017 - December 31, 2017 | BV5: January 1, 2018 - December 31, 2018 | DF5: January 1, 2019 - December 31, 2019 | EP5: January 1, 2020 - December 31, 2020
